Workbook

Sheet data sheet
A1: Table | B1: PDD | C1: Time | D1: Revenue | E1: Cost | F1: Duration | H1: Name | I1: Value | L1: time | M1: delta | N1: Table | O1: Time | P1: Time | Q1: Duration | R1: Table | S1: Time | T1: Time | U1: Duration | V1: count | W1: answered | X1: spoken | Y1: PDD | Z1: Revenue | AA1: Cost | AB1: Duration | AH1: ="cost/h [CHF"&TEXT(I48,"0")&"]" -> cost/h [CHF798] | AI1: ="margin/h [CHF"&TEXT(I47-I48,"0")&"]" -> margin/h [CHF322] | AJ1: ="PDD x"&$I$59&" ["&TEXT(I46/1000/I42,"0.0\s")&"]" -> PDD x50 [16.2s] | AK1: ="spoken/m x"&$I$60&" ["&I44&"]" -> spoken/m x100 [4723] | AL1: ="failed/m x"&$I$60&" ["&(I43+I45)&"]" -> failed/m x100 [5326] | AM1: ="minutes/h ["&TEXT(I49/60,"0\m")&"]" -> minutes/h [39087m] | AN1: ="UTC"&TEXT($I$9,"+0\h;-0\h;+0\h")&" ["&IF(I31-I30>1,FLOOR(I31-I30,1)&"d","")&TEXT(I31-I30-INT(I31-I30),"[h]\hm\ms\s")&"]" -> UTC+2h [16h40m28s]
A2: 2 | B2: 0 | C2: 2013-10-06T17:39:14 | H2: driver | I2: {MySQL ODBC 5.2 Unicode Driver} | K2: 0 | L2: =I30 -> 2013-10-06T17:39:14 | M2: =I34 -> 0.02368687507 | N2: =IF($K2="_","_",IF(MOD(ROW()-1,2)=1,"=1",N$1)) -> =1 | O2: =IF($K2="_","_",IF(MOD(ROW()-1,2)=1,">="&$L2,O$1)) -> >=41553.7355787037 | P2: =IF($K2="_","_",IF(MOD(ROW()-1,2)=1,IF($K2<$I$27,"<"&($L2+$M2),">=0"),P$1)) -> <41553.7592655788 | Q2: =IF($K2="_","_",IF(MOD(ROW()-1,2)=1,">="&$I$39,Q$1)) -> >=10 | R2: =IF($K2="_","_",IF(MOD(ROW()-1,2)=0,"=1",R$1)) -> Table | S2: =IF($K2="_","_",IF(MOD(ROW()-1,2)=0,">="&$L2,S$1)) -> Time | T2: =IF($K2="_","_",IF(MOD(ROW()-1,2)=0,IF($K2<$I$27,"<"&($L2+$M2),">=0"),T$1)) -> Time | U2: =IF($K2="_","_",IF(MOD(ROW()-1,2)=0,">="&$I$39,U$1)) -> Duration | V2: =IF($K2="_","_",DCOUNT($A:$F,"Time",IF(MOD(ROW()-1,2)=1,$O1:$P2,$S1:$T2))) -> 786 | W2: =IF($K2="_","_",DCOUNT($A:$F,"Time",IF(MOD(ROW()-1,2)=1,$N1:$P2,$R1:$T2))) -> 386 | X2: =IF($K2="_","_",DCOUNT($A:$F,"Time",IF(MOD(ROW()-1,2)=1,$N1:$Q2,$R1:$U2))) -> 335 | Y2: =IF($K2="_","_",DSUM($A:$F,Y$1,IF(MOD(ROW()-1,2)=1,$N1:$P2,$R1:$T2))) -> 6535000 | Z2: =IF($K2="_","_",DSUM($A:$F,Z$1,IF(MOD(ROW()-1,2)=1,$N1:$P2,$R1:$T2))) -> 102.5079 | AA2: =IF($K2="_","_",DSUM($A:$F,AA$1,IF(MOD(ROW()-1,2)=1,$N1:$P2,$R1:$T2))) -> 68.63771 | AB2: =IF($K2="_","_",DSUM($A:$F,AB$1,IF(MOD(ROW()-1,2)=1,$N1:$P2,$R1:$T2))) -> 230494 | AD2: =IF($K2="_","_",L2+M2/2+$I$9/24) -> 2013-10-06T19:56:17.273 | AE2: =IF($K2="_","_",IF(ISNUMBER(AN2),IF(OR(INT(AD2)<>MAX(AE$1:AE1),COUNT(AN$1:AN2)=COUNT(AN:AN)),INT(AD2)))) -> 2013-10-06 | AF2: =IF($K2="_","_","Δ"&IF(M2>1,TEXT(M2,"0\d"),IF(M2>1/24,TEXT(M2*24,"0\h"),IF(M2>1/(24*60),TEXT(M2*24*60,"0\m"),TEXT(M2*24*60*60,"0\s"))))) -> Δ34m | AG2: =IF($K2="_","_",IF(COUNT(AN$1:AN2)=1,TEXT($I$30+$I$9/24,"┌yy-mm-dd hh:mm:ss┐ "),IF(COUNT(AN$1:AN2)=COUNT(AN:AN),TEXT($I$31+$I$9/24,"└yy-mm-dd hh:mm:ss┘ "),""))&TEXT(AD2,IF(AE2,"mmm d dddd hh:mm","hh:mm"))&REPT(" ",MAX(3*(5-LEN(AF2)),1))&AF2) -> ┌13-10-06 19:39:14┐ Oct 6 Sunday 19:56 Δ34m | AH2: =IF($K2="_","_",AA2/($M2*24)) -> 120.7379435 | AI2: =IF($K2="_","_",(Z2-AA2)/($M2*24)) -> 59.57974247 | AJ2: =IF($K2="_","_",IF(W2=0,NA(),Y2/W2/1000*$I$59)) -> 846.5025907 | AK2: =IF($K2="_","_",X2/($M2*24*60)*$I$60) -> 982.1425924 | AL2: =IF($K2="_","_",(V2-X2)/($M2*24*60)*$I$60) -> 1322.227789 | AM2: =IF($K2="_","_",(AB2/60)/($M2*24)) -> 6757.551483 | AN2: =IF($K2="_","_",IF(MOD(ROW()-2,$I$37)=0,0,NA())) -> 0
A3: 2 | B3: 0 | C3: 2013-10-06T17:39:14 | H3: server | I3: rep-db-1.switzernet.com | K3: =IF(ISNUMBER(K2),IF(K2<$I$27,K2+1,"_"),"_") -> 1 | L3: =IF(K3="_","_",L2+M2) -> 2013-10-06T18:13:20.546 | M3: =IF(K3="_","_",M2/$I$29) -> 0.02289232181 | N3: =IF($K3="_","_",IF(MOD(ROW()-1,2)=1,"=1",N$1)) -> Table | O3: =IF($K3="_","_",IF(MOD(ROW()-1,2)=1,">="&$L3,O$1)) -> Time | P3: Time | Q3: Duration | R3: =IF($K3="_","_",IF(MOD(ROW()-1,2)=0,"=1",R$1)) -> =1 | S3: =IF($K3="_","_",IF(MOD(ROW()-1,2)=0,">="&$L3,S$1)) -> >=41553.7592655788 | T3: <41553.7821579006 | U3: >=10 | V3: 763 | W3: 393 | X3: 344 | Y3: 6933000 | Z3: 89.49862 | AA3: 63.18079 | AB3: 215177 | AD3: 2013-10-06T20:29:49.494 | AE3: =IF($K3="_","_",IF(ISNUMBER(AN3),IF(OR(INT(AD3)<>MAX(AE$1:AE2),COUNT(AN$1:AN3)=COUNT(AN:AN)),INT(AD3)))) -> FALSE | AF3: =IF($K3="_","_","Δ"&IF(M3>1,TEXT(M3,"0\d"),IF(M3>1/24,TEXT(M3*24,"0\h"),IF(M3>1/(24*60),TEXT(M3*24*60,"0\m"),TEXT(M3*24*60*60,"0\s"))))) -> Δ33m | AG3: =IF($K3="_","_",IF(COUNT(AN$1:AN3)=1,TEXT($I$30+$I$9/24,"┌yy-mm-dd hh:mm:ss┐ "),IF(COUNT(AN$1:AN3)=COUNT(AN:AN),TEXT($I$31+$I$9/24,"└yy-mm-dd hh:mm:ss┘ "),""))&TEXT(AD3,IF(AE3,"mmm d dddd hh:mm","hh:mm"))&REPT(" ",MAX(3*(5-LEN(AF3)),1))&AF3) -> ┌13-10-06 19:39:14┐ 20:29 Δ33m | AH3: =IF($K3="_","_",AA3/($M3*24)) -> 114.9963266 | AI3: =IF($K3="_","_",(Z3-AA3)/($M3*24)) -> 47.90148675 | AJ3: 882.0610687 | AK3: 1043.532809 | AL3: 1271.04723 | AM3: =IF($K3="_","_",(AB3/60)/($M3*24)) -> 6527.449398
A4: 1 | B4: 36000 | C4: 2013-10-06T17:39:15 | D4: 0 | E4: 0.00114 | F4: 6 | H4: database | I4: porta-billing | K4: 2 | L4: =IF(K4="_","_",L3+M3) -> 2013-10-06T18:46:18.443 | M4: 0.02212442107 | N4: =1 | O4: >=41553.7821579006 | P4: <41553.8042823217 | Q4: >=10 | R4: Table | S4: Time | T4: Time | U4: Duration | V4: 677 | W4: 324 | X4: 297 | Y4: 5449000 | Z4: 137.48338 | AA4: 87.62285 | AB4: 182317 | AD4: 2013-10-06T21:02:14.218 | AE4: =IF($K4="_","_",IF(ISNUMBER(AN4),IF(OR(INT(AD4)<>MAX(AE$1:AE3),COUNT(AN$1:AN4)=COUNT(AN:AN)),INT(AD4)))) -> FALSE | AF4: Δ32m | AG4: =IF($K4="_","_",IF(COUNT(AN$1:AN4)=1,TEXT($I$30+$I$9/24,"┌yy-mm-dd hh:mm:ss┐ "),IF(COUNT(AN$1:AN4)=COUNT(AN:AN),TEXT($I$31+$I$9/24,"└yy-mm-dd hh:mm:ss┘ "),""))&TEXT(AD4,IF(AE4,"mmm d dddd hh:mm","hh:mm"))&REPT(" ",MAX(3*(5-LEN(AF4)),1))&AF4) -> 21:02 Δ32m | AH4: 165.0191014 | AI4: 93.90176026 | AJ4: 840.8950617 | AK4: 932.2277828 | AL4: 1192.749352 | AM4: 5722.591672 | AN4: 0
A5: 2 | B5: 0 | C5: 2013-10-06T17:39:18 | H5: user | K5: 3 | L5: 2013-10-06T19:18:09.993 | M5: 0.02138227882 | N5: Table | O5: Time | P5: Time | Q5: Duration | R5: =1 | S5: >=41553.8042823217 | T5: <41553.8256646005 | U5: >=10 | V5: 629 | W5: 303 | X5: 258 | Y5: 5327000 | Z5: 91.09545 | AA5: 66.60802 | AB5: 209904 | AD5: 2013-10-06T21:33:33.707 | AE5: =IF($K5="_","_",IF(ISNUMBER(AN5),IF(OR(INT(AD5)<>MAX(AE$1:AE4),COUNT(AN$1:AN5)=COUNT(AN:AN)),INT(AD5)))) -> FALSE | AF5: Δ31m | AG5: =IF($K5="_","_",IF(COUNT(AN$1:AN5)=1,TEXT($I$30+$I$9/24,"┌yy-mm-dd hh:mm:ss┐ "),IF(COUNT(AN$1:AN5)=COUNT(AN:AN),TEXT($I$31+$I$9/24,"└yy-mm-dd hh:mm:ss┘ "),""))&TEXT(AD5,IF(AE5,"mmm d dddd hh:mm","hh:mm"))&REPT(" ",MAX(3*(5-LEN(AF5)),1))&AF5) -> 21:33 Δ31m | AH5: 129.7959956 | AI5: 47.71753245 | AJ5: 879.0429043 | AK5: 837.9212908 | AL5: 1204.917825 | AM5: 6817.17173
A6: 1 | B6: 14000 | C6: 2013-10-06T17:39:19 | D6: 0.42 | E6: 0.21442 | F6: 155 | H6: password | K6: 4 | L6: 2013-10-06T19:48:57.421 | M6: 0.020665031 | N6: =1 | O6: >=41553.8256646005 | P6: <41553.8463296315 | Q6: >=10 | R6: Table | S6: Time | T6: Time | U6: Duration | V6: 443 | W6: 210 | X6: 173 | Y6: 3948000 | Z6: 92.68689 | AA6: 51.91352 | AB6: 142879 | AD6: 2013-10-06T22:03:50.151 | AE6: =IF($K6="_","_",IF(ISNUMBER(AN6),IF(OR(INT(AD6)<>MAX(AE$1:AE5),COUNT(AN$1:AN6)=COUNT(AN:AN)),INT(AD6)))) -> FALSE | AF6: Δ30m | AG6: =IF($K6="_","_",IF(COUNT(AN$1:AN6)=1,TEXT($I$30+$I$9/24,"┌yy-mm-dd hh:mm:ss┐ "),IF(COUNT(AN$1:AN6)=COUNT(AN:AN),TEXT($I$31+$I$9/24,"└yy-mm-dd hh:mm:ss┘ "),""))&TEXT(AD6,IF(AE6,"mmm d dddd hh:mm","hh:mm"))&REPT(" ",MAX(3*(5-LEN(AF6)),1))&AF6) -> 22:03 Δ30m | AH6: 104.6726392 | AI6: 82.21088158 | AJ6: 940 | AK6: 581.3632163 | AL6: 907.3298751 | AM6: 4801.421675 | AN6: 0
A7: 1 | B7: 6000 | C7: 2013-10-06T17:39:20 | D7: 0.00583 | E7: 0 | F7: 70 | H7: db_connect | I7: =H2&"="&I2&"; "&H3&"="&I3&"; "&H4&"="&I4&"; "&H5&"="&I5&"; "&H6&"="&I6&"; option=3" -> driver={MySQL ODBC 5.2 Unicode Driver}; server=rep-db-1.switzernet.com; database=porta-billing; user=; password=; option=3 | K7: 5 | L7: 2013-10-06T20:18:42.880 | M7: 0.01997184257 | N7: Table | O7: Time | P7: Time | Q7: Duration | R7: =1 | S7: >=41553.8463296315 | T7: <41553.866301474 | U7: >=10 | V7: 274 | W7: 155 | X7: 137 | Y7: 2881000 | Z7: 37.35519 | AA7: 36.01771 | AB7: 150943 | AD7: 2013-10-06T22:33:05.664 | AE7: =IF($K7="_","_",IF(ISNUMBER(AN7),IF(OR(INT(AD7)<>MAX(AE$1:AE6),COUNT(AN$1:AN7)=COUNT(AN:AN)),INT(AD7)))) -> FALSE | AF7: Δ29m | AG7: =IF($K7="_","_",IF(COUNT(AN$1:AN7)=1,TEXT($I$30+$I$9/24,"┌yy-mm-dd hh:mm:ss┐ "),IF(COUNT(AN$1:AN7)=COUNT(AN:AN),TEXT($I$31+$I$9/24,"└yy-mm-dd hh:mm:ss┘ "),""))&TEXT(AD7,IF(AE7,"mmm d dddd hh:mm","hh:mm"))&REPT(" ",MAX(3*(5-LEN(AF7)),1))&AF7) -> 22:33 Δ29m | AH7: 75.14268707 | AI7: 2.790345114 | AJ7: 929.3548387 | AK7: 476.3651052 | AL7: 476.3651052 | AM7: 5248.465553
A8: 1 | B8: 5000 | C8: 2013-10-06T17:39:22 | D8: 0.01 | E8: 0.00082 | F8: 12 | H8: db_error | K8: 6 | L8: 2013-10-06T20:47:28.447 | M8: 0.01930190648 | N8: =1 | O8: >=41553.866301474 | P8: <41553.8856033805 | Q8: >=10 | R8: Table | S8: Time | T8: Time | U8: Duration | V8: 200 | W8: 122 | X8: 102 | Y8: 2215000 | Z8: 23.80518 | AA8: 20.5817 | AB8: 90248 | AD8: 2013-10-06T23:01:22.290 | AE8: =IF($K8="_","_",IF(ISNUMBER(AN8),IF(OR(INT(AD8)<>MAX(AE$1:AE7),COUNT(AN$1:AN8)=COUNT(AN:AN)),INT(AD8)))) -> FALSE | AF8: Δ28m | AG8: =IF($K8="_","_",IF(COUNT(AN$1:AN8)=1,TEXT($I$30+$I$9/24,"┌yy-mm-dd hh:mm:ss┐ "),IF(COUNT(AN$1:AN8)=COUNT(AN:AN),TEXT($I$31+$I$9/24,"└yy-mm-dd hh:mm:ss┘ "),""))&TEXT(AD8,IF(AE8,"mmm d dddd hh:mm","hh:mm"))&REPT(" ",MAX(3*(5-LEN(AF8)),1))&AF8) -> 23:01 Δ28m | AH8: 44.42933315 | AI8: 6.958466348 | AJ8: 907.7868852 | AK8: 366.9758395 | AL8: 352.5846301 | AM8: 3246.944663 | AN8: 0
A9: 2 | B9: 0 | C9: 2013-10-06T17:39:25 | H9: time zone hours | I9: 2 | K9: 7 | L9: 2013-10-06T21:15:16.132 | M9: 0.01865444274 | N9: Table | O9: Time | P9: Time | Q9: Duration | R9: =1 | S9: >=41553.8856033805 | T9: <41553.9042578233 | U9: >=10 | V9: 101 | W9: 49 | X9: 43 | Y9: 874000 | Z9: 6.37672 | AA9: 5.20664 | AB9: 30712 | AD9: 2013-10-06T23:28:42.004 | AE9: =IF($K9="_","_",IF(ISNUMBER(AN9),IF(OR(INT(AD9)<>MAX(AE$1:AE8),COUNT(AN$1:AN9)=COUNT(AN:AN)),INT(AD9)))) -> FALSE | AF9: Δ27m | AG9: =IF($K9="_","_",IF(COUNT(AN$1:AN9)=1,TEXT($I$30+$I$9/24,"┌yy-mm-dd hh:mm:ss┐ "),IF(COUNT(AN$1:AN9)=COUNT(AN:AN),TEXT($I$31+$I$9/24,"└yy-mm-dd hh:mm:ss┘ "),""))&TEXT(AD9,IF(AE9,"mmm d dddd hh:mm","hh:mm"))&REPT(" ",MAX(3*(5-LEN(AF9)),1))&AF9) -> 23:28 Δ27m | AH9: 11.62957996 | AI9: 2.613497172 | AJ9: 891.8367347 | AK9: 160.0750638 | AL9: 215.9152023 | AM9: 1143.308223
A10: 2 | B10: 0 | C10: 2013-10-06T17:39:25 | H10: margin | I10: 0.0006944444444 | K10: 8 | L10: 2013-10-06T21:42:07.876 | M10: 0.01802869754 | N10: =1 | O10: >=41553.9042578233 | P10: <41553.9222865208 | Q10: >=10 | R10: Table | S10: Time | T10: Time | U10: Duration | V10: 88 | W10: 46 | X10: 37 | Y10: 825000 | Z10: 28.86066 | AA10: 21.02176 | AB10: 67526 | AD10: 2013-10-06T23:55:06.716 | AE10: =IF($K10="_","_",IF(ISNUMBER(AN10),IF(OR(INT(AD10)<>MAX(AE$1:AE9),COUNT(AN$1:AN10)=COUNT(AN:AN)),INT(AD10)))) -> FALSE | AF10: Δ26m | AG10: =IF($K10="_","_",IF(COUNT(AN$1:AN10)=1,TEXT($I$30+$I$9/24,"┌yy-mm-dd hh:mm:ss┐ "),IF(COUNT(AN$1:AN10)=COUNT(AN:AN),TEXT($I$31+$I$9/24,"└yy-mm-dd hh:mm:ss┘ "),""))&TEXT(AD10,IF(AE10,"mmm d dddd hh:mm","hh:mm"))&REPT(" ",MAX(3*(5-LEN(AF10)),1))&AF10) -> 23:55 Δ26m | AH10: 48.58402359 | AI10: 18.11671823 | AJ10: 896.7391304 | AK10: 142.5196933 | AL10: 196.4460638 | AM10: 2601.022922 | AN10: 0
A11: 2 | B11: 0 | C11: 2013-10-06T17:39:25 | H11: limit time | I11: 0.8333333333 | K11: 9 | L11: 2013-10-06T22:08:05.555 | M11: 0.01742394236 | N11: Table | O11: Time | P11: Time | Q11: Duration | R11: =1 | S11: >=41553.9222865208 | T11: <41553.9397104631 | U11: >=10 | V11: 55 | W11: 31 | X11: 26 | Y11: 535000 | Z11: 10.9354 | AA11: 2.3147 | AB11: 27143 | AD11: 2013-10-07T00:20:38.270 | AE11: =IF($K11="_","_",IF(ISNUMBER(AN11),IF(OR(INT(AD11)<>MAX(AE$1:AE10),COUNT(AN$1:AN11)=COUNT(AN:AN)),INT(AD11)))) -> FALSE | AF11: Δ25m | AG11: =IF($K11="_","_",IF(COUNT(AN$1:AN11)=1,TEXT($I$30+$I$9/24,"┌yy-mm-dd hh:mm:ss┐ "),IF(COUNT(AN$1:AN11)=COUNT(AN:AN),TEXT($I$31+$I$9/24,"└yy-mm-dd hh:mm:ss┘ "),""))&TEXT(AD11,IF(AE11,"mmm d dddd hh:mm","hh:mm"))&REPT(" ",MAX(3*(5-LEN(AF11)),1))&AF11) -> 00:20 Δ25m | AH11: 5.535247497 | AI11: 20.6150724 | AJ11: 862.9032258 | AK11: 103.6249729 | AL11: 115.5817006 | AM11: 1081.804862
A12: 2 | B12: 0 | C12: 2013-10-06T17:39:25 | H12: limit per select | I12: 49000 | K12: 10 | L12: 2013-10-06T22:33:10.984 | M12: 0.01683947311 | N12: =1 | O12: >=41553.9397104631 | P12: <41553.9565499363 | Q12: >=10 | R12: Table | S12: Time | T12: Time | U12: Duration | V12: 35 | W12: 16 | X12: 16 | Y12: 234000 | Z12: 4.01442 | AA12: 2.53475 | AB12: 18763 | AD12: 2013-10-07T00:45:18.449 | AE12: =IF($K12="_","_",IF(ISNUMBER(AN12),IF(OR(INT(AD12)<>MAX(AE$1:AE11),COUNT(AN$1:AN12)=COUNT(AN:AN)),INT(AD12)))) -> 2013-10-07 | AF12: Δ24m | AG12: =IF($K12="_","_",IF(COUNT(AN$1:AN12)=1,TEXT($I$30+$I$9/24,"┌yy-mm-dd hh:mm:ss┐ "),IF(COUNT(AN$1:AN12)=COUNT(AN:AN),TEXT($I$31+$I$9/24,"└yy-mm-dd hh:mm:ss┘ "),""))&TEXT(AD12,IF(AE12,"mmm d dddd hh:mm","hh:mm"))&REPT(" ",MAX(3*(5-LEN(AF12)),1))&AF12) -> Oct 7 Monday 00:45 Δ24m | AH12: 6.271846076 | AI12: 3.661214117 | AJ12: 731.25 | AK12: 65.98253426 | AL12: 78.35425943 | AM12: 773.7689314 | AN12: 0
A13: 2 | B13: 0 | C13: 2013-10-06T17:39:25 | H13: limit lines | I13: 555000 | K13: 11 | L13: 2013-10-06T22:57:25.914 | M13: 0.01627460931 | N13: Table | O13: Time | P13: Time | Q13: Duration | R13: =1 | S13: >=41553.9565499363 | T13: <41553.9728245456 | U13: >=10 | V13: 10 | W13: 8 | X13: 8 | Y13: 148000 | Z13: 41.38167 | AA13: 4.12496 | AB13: 8676 | AD13: 2013-10-07T01:09:08.978 | AE13: =IF($K13="_","_",IF(ISNUMBER(AN13),IF(OR(INT(AD13)<>MAX(AE$1:AE12),COUNT(AN$1:AN13)=COUNT(AN:AN)),INT(AD13)))) -> FALSE | AF13: Δ23m | AG13: =IF($K13="_","_",IF(COUNT(AN$1:AN13)=1,TEXT($I$30+$I$9/24,"┌yy-mm-dd hh:mm:ss┐ "),IF(COUNT(AN$1:AN13)=COUNT(AN:AN),TEXT($I$31+$I$9/24,"└yy-mm-dd hh:mm:ss┘ "),""))&TEXT(AD13,IF(AE13,"mmm d dddd hh:mm","hh:mm"))&REPT(" ",MAX(3*(5-LEN(AF13)),1))&AF13) -> 01:09 Δ23m | AH13: 10.560827 | AI13: 95.38557193 | AJ13: 925 | AK13: 34.13633747 | AL13: 8.534084368 | AM13: 370.2085799
A14: 1 | B14: 9000 | C14: 2013-10-06T17:39:29 | D14: 1.67475 | E14: 0.08505 | F14: 315 | H14: stop_did | I14: 2013-10-07T10:19:43 | K14: 12 | L14: 2013-10-06T23:20:52.041 | M14: 0.01572869332 | N14: =1 | O14: >=41553.9728245456 | P14: <41553.9885532389 | Q14: >=10 | R14: Table | S14: Time | T14: Time | U14: Duration | V14: 12 | W14: 10 | X14: 10 | Y14: 159000 | Z14: 4.10933 | AA14: 2.90034 | AB14: 37849 | AD14: 2013-10-07T01:32:11.520 | AE14: =IF($K14="_","_",IF(ISNUMBER(AN14),IF(OR(INT(AD14)<>MAX(AE$1:AE13),COUNT(AN$1:AN14)=COUNT(AN:AN)),INT(AD14)))) -> FALSE | AF14: Δ23m | AG14: =IF($K14="_","_",IF(COUNT(AN$1:AN14)=1,TEXT($I$30+$I$9/24,"┌yy-mm-dd hh:mm:ss┐ "),IF(COUNT(AN$1:AN14)=COUNT(AN:AN),TEXT($I$31+$I$9/24,"└yy-mm-dd hh:mm:ss┘ "),""))&TEXT(AD14,IF(AE14,"mmm d dddd hh:mm","hh:mm"))&REPT(" ",MAX(3*(5-LEN(AF14)),1))&AF14) -> 01:32 Δ23m | AH14: 7.683251086 | AI14: 3.202718899 | AJ14: 795 | AK14: 44.15143906 | AL14: 8.830287812 | AM14: 1671.087817 | AN14: 0
A15: 1 | B15: 12000 | C15: 2013-10-06T17:39:30 | D15: 0 | E15: 0.2288 | F15: 1560 | H15: now | I15: =NOW() -> 2013-10-07T12:22:25.660 | K15: 13 | L15: 2013-10-06T23:43:31 | M15: 0.01520108955 | N15: Table | O15: Time | P15: Time | Q15: Duration | R15: =1 | S15: >=41553.9885532389 | T15: <41554.0037543284 | U15: >=10 | V15: 15 | W15: 12 | X15: 8 | Y15: 260000 | Z15: 2.50883 | AA15: 2.8372 | AB15: 10326 | AD15: 2013-10-07T01:54:27.687 | AE15: =IF($K15="_","_",IF(ISNUMBER(AN15),IF(OR(INT(AD15)<>MAX(AE$1:AE14),COUNT(AN$1:AN15)=COUNT(AN:AN)),INT(AD15)))) -> FALSE | AF15: Δ22m | AG15: =IF($K15="_","_",IF(COUNT(AN$1:AN15)=1,TEXT($I$30+$I$9/24,"┌yy-mm-dd hh:mm:ss┐ "),IF(COUNT(AN$1:AN15)=COUNT(AN:AN),TEXT($I$31+$I$9/24,"└yy-mm-dd hh:mm:ss┘ "),""))&TEXT(AD15,IF(AE15,"mmm d dddd hh:mm","hh:mm"))&REPT(" ",MAX(3*(5-LEN(AF15)),1))&AF15) -> 01:54 Δ22m | AH15: 7.77685483 | AI15: -0.9000725435 | AJ15: 1083.333333 | AK15: 36.54708788 | AL15: 31.97870189 | AM15: 471.7315368
A16: 1 | B16: 18000 | C16: 2013-10-06T17:39:40 | D16: 0.38 | E16: 0.13208 | F16: 52 | H16: now in UTC | I16: =FLOOR(I15-I9/24,TIME(0,0,1)) -> 2013-10-07T10:22:25 | K16: 14 | L16: 2013-10-07T00:05:24.374 | M16: 0.01469118374 | N16: =1 | O16: >=41554.0037543284 | P16: <41554.0184455122 | Q16: >=10 | R16: Table | S16: Time | T16: Time | U16: Duration | V16: 2 | W16: 0 | X16: 0 | Y16: 0 | Z16: 0 | AA16: 0 | AB16: 0 | AD16: 2013-10-07T02:15:59.033 | AE16: =IF($K16="_","_",IF(ISNUMBER(AN16),IF(OR(INT(AD16)<>MAX(AE$1:AE15),COUNT(AN$1:AN16)=COUNT(AN:AN)),INT(AD16)))) -> FALSE | AF16: Δ21m | AG16: =IF($K16="_","_",IF(COUNT(AN$1:AN16)=1,TEXT($I$30+$I$9/24,"┌yy-mm-dd hh:mm:ss┐ "),IF(COUNT(AN$1:AN16)=COUNT(AN:AN),TEXT($I$31+$I$9/24,"└yy-mm-dd hh:mm:ss┘ "),""))&TEXT(AD16,IF(AE16,"mmm d dddd hh:mm","hh:mm"))&REPT(" ",MAX(3*(5-LEN(AF16)),1))&AF16) -> 02:15 Δ21m | AH16: 0 | AI16: 0 | AK16: 0 | AL16: 9.453893667 | AM16: 0 | AN16: 0
A17: 2 | B17: 0 | C17: 2013-10-06T17:39:44 | H17: stop_now | I17: =I16-I10 -> 2013-10-07T10:21:25 | K17: 15 | L17: 2013-10-07T00:26:33.692 | M17: 0.01419838222 | N17: Table | O17: Time | P17: Time | Q17: Duration | R17: =1 | S17: >=41554.0184455122 | T17: <41554.0326438944 | U17: >=10 | V17: 14 | W17: 6 | X17: 6 | Y17: 87000 | Z17: 0.59759 | AA17: 0.92388 | AB17: 15011 | AD17: 2013-10-07T02:36:47.062 | AE17: =IF($K17="_","_",IF(ISNUMBER(AN17),IF(OR(INT(AD17)<>MAX(AE$1:AE16),COUNT(AN$1:AN17)=COUNT(AN:AN)),INT(AD17)))) -> FALSE | AF17: Δ20m | AG17: =IF($K17="_","_",IF(COUNT(AN$1:AN17)=1,TEXT($I$30+$I$9/24,"┌yy-mm-dd hh:mm:ss┐ "),IF(COUNT(AN$1:AN17)=COUNT(AN:AN),TEXT($I$31+$I$9/24,"└yy-mm-dd hh:mm:ss┘ "),""))&TEXT(AD17,IF(AE17,"mmm d dddd hh:mm","hh:mm"))&REPT(" ",MAX(3*(5-LEN(AF17)),1))&AF17) -> 02:36 Δ20m | AH17: 2.711224378 | AI17: -0.9575327988 | AJ17: 725 | AK17: 29.34606635 | AL17: 39.12808846 | AM17: 734.1896699
A18: 1 | B18: 12000 | C18: 2013-10-06T17:39:46 | D18: 0 | E18: 0.01558 | F18: 82 | H18: start | I18: =IF(stop_now-stop_did<=I11,stop_did,stop_now-I11)+TIME(0,0,1) -> 2013-10-07T10:19:44 | K18: 16 | L18: 2013-10-07T00:47:00.432 | M18: 0.01372211126 | N18: =1 | O18: >=41554.0326438944 | P18: <41554.0463660056 | Q18: >=10 | R18: Table | S18: Time | T18: Time | U18: Duration | V18: 7 | W18: 1 | X18: 1 | Y18: 7000 | Z18: 0.128 | AA18: 0 | AB18: 1536 | AD18: 2013-10-07T02:56:53.228 | AE18: =IF($K18="_","_",IF(ISNUMBER(AN18),IF(OR(INT(AD18)<>MAX(AE$1:AE17),COUNT(AN$1:AN18)=COUNT(AN:AN)),INT(AD18)))) -> FALSE | AF18: Δ20m | AG18: =IF($K18="_","_",IF(COUNT(AN$1:AN18)=1,TEXT($I$30+$I$9/24,"┌yy-mm-dd hh:mm:ss┐ "),IF(COUNT(AN$1:AN18)=COUNT(AN:AN),TEXT($I$31+$I$9/24,"└yy-mm-dd hh:mm:ss┘ "),""))&TEXT(AD18,IF(AE18,"mmm d dddd hh:mm","hh:mm"))&REPT(" ",MAX(3*(5-LEN(AF18)),1))&AF18) -> 02:56 Δ20m | AH18: 0 | AI18: 0.3886671106 | AJ18: 350 | AK18: 5.06076967 | AL18: 30.36461802 | AM18: 77.73342213 | AN18: 0
A19: 2 | B19: 0 | C19: 2013-10-06T17:39:47 | H19: range select | I19: ="'"&TEXT(I18,"yyyy-mm-dd hh:mm:ss")&"' and '"&TEXT(stop_now,"yyyy-mm-dd hh:mm:ss")&"'" -> '2013-10-07 10:19:44' and '2013-10-07 10:21:25' | K19: 17 | L19: 2013-10-07T01:06:46.023 | M19: 0.01326181634 | N19: Table | O19: Time | P19: Time | Q19: Duration | R19: =1 | S19: >=41554.0463660056 | T19: <41554.059627822 | U19: >=10 | V19: 8 | W19: 2 | X19: 1 | Y19: 55000 | Z19: 0 | AA19: 9e-05 | AB19: 1139 | AD19: 2013-10-07T03:16:18.933 | AE19: =IF($K19="_","_",IF(ISNUMBER(AN19),IF(OR(INT(AD19)<>MAX(AE$1:AE18),COUNT(AN$1:AN19)=COUNT(AN:AN)),INT(AD19)))) -> FALSE | AF19: Δ19m | AG19: =IF($K19="_","_",IF(COUNT(AN$1:AN19)=1,TEXT($I$30+$I$9/24,"┌yy-mm-dd hh:mm:ss┐ "),IF(COUNT(AN$1:AN19)=COUNT(AN:AN),TEXT($I$31+$I$9/24,"└yy-mm-dd hh:mm:ss┘ "),""))&TEXT(AD19,IF(AE19,"mmm d dddd hh:mm","hh:mm"))&REPT(" ",MAX(3*(5-LEN(AF19)),1))&AF19) -> 03:16 Δ19m | AH19: 0.0002827666969 | AI19: -0.0002827666969 | AJ19: 1375 | AK19: 5.236420312 | AL19: 36.65494219 | AM19: 59.64282736
A20: 2 | B20: 0 | C20: 2013-10-06T17:39:48 | H20: mysql_query | I20: =IF(stop_now>=I18,"(select 1 as 'table', setup_time, disconnect_time as 'time', revenue, charged_amount, charged_quantity from CDR_Vendors where disconnect_time between " & I19 & " limit " & I12 & ") union all (select 2, setup_time, connect_time, null, null, null from CDR_Vendors_Failed where connect_time between " & I19 & " limit " & I12 & ") order by time") -> (select 1 as 'table', setup_time, disconnect_time as 'time', revenue, charged_amount, charged_quantity from CDR_Vendors where disconnect_time between '2013-10-07 10:19:44' and '2013-10-07 10:21:25' limit 49000) union all (select 2, setup_time, connect_time, null, null, null from CDR_Vendors_Failed where connect_time between '2013-10-07 10:19:44' and '2013-10-07 10:21:25' limit 49000) order by time | K20: 18 | L20: 2013-10-07T01:25:51.844 | M20: 0.01281696156 | N20: =1 | O20: >=41554.059627822 | P20: <41554.0724447835 | Q20: >=10 | R20: Table | S20: Time | T20: Time | U20: Duration | V20: 6 | W20: 2 | X20: 2 | Y20: 17000 | Z20: 0 | AA20: 0 | AB20: 6152 | AD20: 2013-10-07T03:35:05.537 | AE20: =IF($K20="_","_",IF(ISNUMBER(AN20),IF(OR(INT(AD20)<>MAX(AE$1:AE19),COUNT(AN$1:AN20)=COUNT(AN:AN)),INT(AD20)))) -> FALSE | AF20: Δ18m | AG20: =IF($K20="_","_",IF(COUNT(AN$1:AN20)=1,TEXT($I$30+$I$9/24,"┌yy-mm-dd hh:mm:ss┐ "),IF(COUNT(AN$1:AN20)=COUNT(AN:AN),TEXT($I$31+$I$9/24,"└yy-mm-dd hh:mm:ss┘ "),""))&TEXT(AD20,IF(AE20,"mmm d dddd hh:mm","hh:mm"))&REPT(" ",MAX(3*(5-LEN(AF20)),1))&AF20) -> 03:35 Δ18m | AH20: 0 | AI20: 0 | AJ20: 425 | AK20: 10.83633498 | AL20: 21.67266995 | AM20: 333.3256639 | AN20: 0
A21: 1 | B21: 11000 | C21: 2013-10-06T17:39:57 | D21: 0 | E21: 0.03708 | F21: 250 | H21: data_lines | I21: =COUNT(A:A)+1 -> 10050 | K21: 19 | L21: 2013-10-07T01:44:19.229 | M21: 0.01238702902 | N21: Table | O21: Time | P21: Time | Q21: Duration | R21: =1 | S21: >=41554.0724447835 | T21: <41554.0848318125 | U21: >=10 | V21: 6 | W21: 3 | X21: 2 | Y21: 74000 | Z21: 0.79 | AA21: 0.15068 | AB21: 1608 | AD21: 2013-10-07T03:53:14.349 | AE21: =IF($K21="_","_",IF(ISNUMBER(AN21),IF(OR(INT(AD21)<>MAX(AE$1:AE20),COUNT(AN$1:AN21)=COUNT(AN:AN)),INT(AD21)))) -> FALSE | AF21: Δ18m | AG21: =IF($K21="_","_",IF(COUNT(AN$1:AN21)=1,TEXT($I$30+$I$9/24,"┌yy-mm-dd hh:mm:ss┐ "),IF(COUNT(AN$1:AN21)=COUNT(AN:AN),TEXT($I$31+$I$9/24,"└yy-mm-dd hh:mm:ss┘ "),""))&TEXT(AD21,IF(AE21,"mmm d dddd hh:mm","hh:mm"))&REPT(" ",MAX(3*(5-LEN(AF21)),1))&AF21) -> 03:53 Δ18m | AH21: 0.5068473906 | AI21: 2.150502215 | AJ21: 1233.333333 | AK21: 11.21244559 | AL21: 22.42489119 | AM21: 90.14806257
A22: 1 | B22: 10000 | C22: 2013-10-06T17:39:59 | D22: 0.0825 | E22: 0.06698 | F22: 45 | H22: data_land | I22: =I24&"!A"&(data_lines+1) -> 'data sheet'!A10051 | K22: 20 | L22: 2013-10-07T02:02:09.469 | M22: 0.01197151814 | N22: =1 | O22: >=41554.0848318125 | P22: <41554.0968033307 | Q22: >=10 | R22: Table | S22: Time | T22: Time | U22: Duration | V22: 28 | W22: 15 | X22: 6 | Y22: 307000 | Z22: 0.30415 | AA22: 0.16076 | AB22: 747 | AD22: 2013-10-07T04:10:46.638 | AE22: =IF($K22="_","_",IF(ISNUMBER(AN22),IF(OR(INT(AD22)<>MAX(AE$1:AE21),COUNT(AN$1:AN22)=COUNT(AN:AN)),INT(AD22)))) -> FALSE | AF22: Δ17m | AG22: =IF($K22="_","_",IF(COUNT(AN$1:AN22)=1,TEXT($I$30+$I$9/24,"┌yy-mm-dd hh:mm:ss┐ "),IF(COUNT(AN$1:AN22)=COUNT(AN:AN),TEXT($I$31+$I$9/24,"└yy-mm-dd hh:mm:ss┘ "),""))&TEXT(AD22,IF(AE22,"mmm d dddd hh:mm","hh:mm"))&REPT(" ",MAX(3*(5-LEN(AF22)),1))&AF22) -> 04:10 Δ17m | AH22: 0.5595224647 | AI22: 0.4990664731 | AJ22: 1023.333333 | AK22: 34.80483109 | AL22: 127.617714 | AM22: 43.33201471 | AN22: 0
A23: 1 | B23: 14000 | C23: 2013-10-06T17:40:01 | D23: 0.008 | E23: 0 | F23: 96 | H23: data_scroll | I23: =IF(I21>I13,I24&"!"&"A2:F"&(2+I21-I13-1)) -> FALSE | K23: 21 | L23: 2013-10-07T02:19:23.808 | M23: 0.01156994517 | N23: Table | O23: Time | P23: Time | Q23: Duration | R23: =1 | S23: >=41554.0968033307 | T23: <41554.1083732758 | U23: >=10 | V23: 27 | W23: 13 | X23: 7 | Y23: 315000 | Z23: 1.22433 | AA23: 1.12263 | AB23: 994 | AD23: 2013-10-07T04:27:43.629 | AE23: =IF($K23="_","_",IF(ISNUMBER(AN23),IF(OR(INT(AD23)<>MAX(AE$1:AE22),COUNT(AN$1:AN23)=COUNT(AN:AN)),INT(AD23)))) -> FALSE | AF23: Δ17m | AG23: =IF($K23="_","_",IF(COUNT(AN$1:AN23)=1,TEXT($I$30+$I$9/24,"┌yy-mm-dd hh:mm:ss┐ "),IF(COUNT(AN$1:AN23)=COUNT(AN:AN),TEXT($I$31+$I$9/24,"└yy-mm-dd hh:mm:ss┘ "),""))&TEXT(AD23,IF(AE23,"mmm d dddd hh:mm","hh:mm"))&REPT(" ",MAX(3*(5-LEN(AF23)),1))&AF23) -> 04:27 Δ17m | AH23: 4.042910258 | AI23: 0.3662506554 | AJ23: 1211.538462 | AK23: 42.01498833 | AL23: 120.0428238 | AM23: 59.66128342
A24: 1 | B24: 10000 | C24: 2013-10-06T17:40:03 | D24: 0.39 | E24: 0.06687 | F24: 311 | H24: worksheet_name | I24: ="'"&REPLACE(CELL("filename",I24),1,SEARCH("]",CELL("filename",I24)),"")&"'" -> 'data sheet' | K24: 22 | L24: 2013-10-07T02:36:03.451 | M24: 0.01118184257 | N24: =1 | O24: >=41554.1083732758 | P24: <41554.1195551184 | Q24: >=10 | R24: Table | S24: Time | T24: Time | U24: Duration | V24: 20 | W24: 10 | X24: 5 | Y24: 269000 | Z24: 1.41017 | AA24: 0.63333 | AB24: 2205 | AD24: 2013-10-07T04:44:06.507 | AE24: =IF($K24="_","_",IF(ISNUMBER(AN24),IF(OR(INT(AD24)<>MAX(AE$1:AE23),COUNT(AN$1:AN24)=COUNT(AN:AN)),INT(AD24)))) -> FALSE | AF24: Δ16m | AG24: =IF($K24="_","_",IF(COUNT(AN$1:AN24)=1,TEXT($I$30+$I$9/24,"┌yy-mm-dd hh:mm:ss┐ "),IF(COUNT(AN$1:AN24)=COUNT(AN:AN),TEXT($I$31+$I$9/24,"└yy-mm-dd hh:mm:ss┘ "),""))&TEXT(AD24,IF(AE24,"mmm d dddd hh:mm","hh:mm"))&REPT(" ",MAX(3*(5-LEN(AF24)),1))&AF24) -> 04:44 Δ16m | AH24: 2.359964364 | AI24: 2.894722683 | AJ24: 1345 | AK24: 31.05232612 | AL24: 93.15697836 | AM24: 136.9407582 | AN24: 0
A25: 1 | B25: 22000 | C25: 2013-10-06T17:40:05 | D25: 0 | E25: 0.09429 | F25: 449 | H25: period_refresh | I25: =I24&"!"&ADDRESS(ROW(I15:I20),COLUMN(I15:I20))&":"&ADDRESS(ROW(I15:I20)+ROWS(I15:I20)-1,COLUMN(I15:I20)) -> 'data sheet'!$I$15:$I$20 | K25: 23 | L25: 2013-10-07T02:52:09.562 | M25: 0.0108067585 | N25: Table | O25: Time | P25: Time | Q25: Duration | R25: =1 | S25: >=41554.1195551184 | T25: <41554.1303618769 | U25: >=10 | V25: 5 | W25: 4 | X25: 4 | Y25: 78000 | Z25: 0.33917 | AA25: 1.06937 | AB25: 3140 | AD25: 2013-10-07T04:59:56.414 | AE25: =IF($K25="_","_",IF(ISNUMBER(AN25),IF(OR(INT(AD25)<>MAX(AE$1:AE24),COUNT(AN$1:AN25)=COUNT(AN:AN)),INT(AD25)))) -> FALSE | AF25: Δ16m | AG25: =IF($K25="_","_",IF(COUNT(AN$1:AN25)=1,TEXT($I$30+$I$9/24,"┌yy-mm-dd hh:mm:ss┐ "),IF(COUNT(AN$1:AN25)=COUNT(AN:AN),TEXT($I$31+$I$9/24,"└yy-mm-dd hh:mm:ss┘ "),""))&TEXT(AD25,IF(AE25,"mmm d dddd hh:mm","hh:mm"))&REPT(" ",MAX(3*(5-LEN(AF25)),1))&AF25) -> 04:59 Δ16m | AH25: 4.123075695 | AI25: -2.815367808 | AJ25: 975 | AK25: 25.70407932 | AL25: 6.426019829 | AM25: 201.7770226
A26: 2 | B26: 0 | C26: 2013-10-06T17:40:07 | K26: 24 | L26: 2013-10-07T03:07:43.266 | M26: 0.01044425627 | N26: =1 | O26: >=41554.1303618769 | P26: <41554.1408061332 | Q26: >=10 | R26: Table | S26: Time | T26: Time | U26: Duration | V26: 4 | W26: 2 | X26: 2 | Y26: 37000 | Z26: 0 | AA26: 0.01555 | AB26: 176 | AD26: 2013-10-07T05:15:14.458 | AE26: =IF($K26="_","_",IF(ISNUMBER(AN26),IF(OR(INT(AD26)<>MAX(AE$1:AE25),COUNT(AN$1:AN26)=COUNT(AN:AN)),INT(AD26)))) -> FALSE | AF26: Δ15m | AG26: =IF($K26="_","_",IF(COUNT(AN$1:AN26)=1,TEXT($I$30+$I$9/24,"┌yy-mm-dd hh:mm:ss┐ "),IF(COUNT(AN$1:AN26)=COUNT(AN:AN),TEXT($I$31+$I$9/24,"└yy-mm-dd hh:mm:ss┘ "),""))&TEXT(AD26,IF(AE26,"mmm d dddd hh:mm","hh:mm"))&REPT(" ",MAX(3*(5-LEN(AF26)),1))&AF26) -> 05:15 Δ15m | AH26: 0.06203569216 | AI26: -0.06203569216 | AJ26: 925 | AK26: 13.29811193 | AL26: 13.29811193 | AM26: 11.7023385 | AN26: 0
A27: 1 | B27: 4000 | C27: 2013-10-06T17:40:07 | D27: 0.02933 | E27: 0.02933 | F27: 16 | H27: time intervals | I27: 120 | K27: 25 | L27: 2013-10-07T03:22:45.650 | M27: 0.01009391382 | N27: Table | O27: Time | P27: Time | Q27: Duration | R27: =1 | S27: >=41554.1408061332 | T27: <41554.150900047 | U27: >=10 | V27: 20 | W27: 11 | X27: 6 | Y27: 193000 | Z27: 2.39534 | AA27: 1.69998 | AB27: 1249 | AD27: 2013-10-07T05:30:01.707 | AE27: =IF($K27="_","_",IF(ISNUMBER(AN27),IF(OR(INT(AD27)<>MAX(AE$1:AE26),COUNT(AN$1:AN27)=COUNT(AN:AN)),INT(AD27)))) -> FALSE | AF27: Δ15m | AG27: =IF($K27="_","_",IF(COUNT(AN$1:AN27)=1,TEXT($I$30+$I$9/24,"┌yy-mm-dd hh:mm:ss┐ "),IF(COUNT(AN$1:AN27)=COUNT(AN:AN),TEXT($I$31+$I$9/24,"└yy-mm-dd hh:mm:ss┘ "),""))&TEXT(AD27,IF(AE27,"mmm d dddd hh:mm","hh:mm"))&REPT(" ",MAX(3*(5-LEN(AF27)),1))&AF27) -> 05:30 Δ15m | AH27: 7.017347412 | AI27: 2.870376532 | AJ27: 877.2727273 | AK27: 41.27899982 | AL27: 96.31766625 | AM27: 85.92911796
A28: 1 | B28: 8000 | C28: 2013-10-06T17:40:15 | D28: 0.89 | E28: 0.55067 | F28: 413 | H28: largest/smallest | I28: 60 | K28: 26 | L28: 2013-10-07T03:37:17.764 | M28: 0.009755323264 | N28: =1 | O28: >=41554.150900047 | P28: <41554.1606553703 | Q28: >=10 | R28: Table | S28: Time | T28: Time | U28: Duration | V28: 11 | W28: 8 | X28: 7 | Y28: 177000 | Z28: 2.09233 | AA28: 1.07157 | AB28: 1288 | AD28: 2013-10-07T05:44:19.194 | AE28: =IF($K28="_","_",IF(ISNUMBER(AN28),IF(OR(INT(AD28)<>MAX(AE$1:AE27),COUNT(AN$1:AN28)=COUNT(AN:AN)),INT(AD28)))) -> FALSE | AF28: Δ14m | AG28: =IF($K28="_","_",IF(COUNT(AN$1:AN28)=1,TEXT($I$30+$I$9/24,"┌yy-mm-dd hh:mm:ss┐ "),IF(COUNT(AN$1:AN28)=COUNT(AN:AN),TEXT($I$31+$I$9/24,"└yy-mm-dd hh:mm:ss┘ "),""))&TEXT(AD28,IF(AE28,"mmm d dddd hh:mm","hh:mm"))&REPT(" ",MAX(3*(5-LEN(AF28)),1))&AF28) -> 05:44 Δ14m | AH28: 4.576860119 | AI28: 4.359841854 | AJ28: 1106.25 | AK28: 49.83034369 | AL28: 28.47448211 | AM28: 91.6878324 | AN28: 0
A29: 1 | B29: 22000 | C29: 2013-10-06T17:40:18 | D29: 0 | E29: 0.00513 | F29: 27 | H29: time factor | I29: =I28^(1/I27) -> 1.034708286 | K29: 27 | L29: 2013-10-07T03:51:20.624 | M29: 0.009428090403 | N29: Table | O29: Time | P29: Time | Q29: Duration | R29: =1 | S29: >=41554.1606553703 | T29: <41554.1700834607 | U29: >=10 | V29: 13 | W29: 6 | X29: 6 | Y29: 110000 | Z29: 5.2805 | AA29: 3.51523 | AB29: 2714 | AD29: 2013-10-07T05:58:07.917 | AE29: =IF($K29="_","_",IF(ISNUMBER(AN29),IF(OR(INT(AD29)<>MAX(AE$1:AE28),COUNT(AN$1:AN29)=COUNT(AN:AN)),INT(AD29)))) -> FALSE | AF29: Δ14m | AG29: =IF($K29="_","_",IF(COUNT(AN$1:AN29)=1,TEXT($I$30+$I$9/24,"┌yy-mm-dd hh:mm:ss┐ "),IF(COUNT(AN$1:AN29)=COUNT(AN:AN),TEXT($I$31+$I$9/24,"└yy-mm-dd hh:mm:ss┘ "),""))&TEXT(AD29,IF(AE29,"mmm d dddd hh:mm","hh:mm"))&REPT(" ",MAX(3*(5-LEN(AF29)),1))&AF29) -> 05:58 Δ14m | AH29: 15.53526859 | AI29: 7.801464933 | AJ29: 916.6666667 | AK29: 44.19417388 | AL29: 51.55986953 | AM29: 199.9049799
A30: 1 | B30: 8000 | C30: 2013-10-06T17:40:20 | D30: 0.06233 | E30: 0.06386 | F30: 34 | H30: first call | I30: =MIN(C:C) -> 2013-10-06T17:39:14 | K30: 28 | L30: 2013-10-07T04:04:55.211 | M30: 0.009111834251 | N30: =1 | O30: >=41554.1700834607 | P30: <41554.1791952949 | Q30: >=10 | R30: Table | S30: Time | T30: Time | U30: Duration | V30: 49 | W30: 22 | X30: 21 | Y30: 299000 | Z30: 4.452 | AA30: 2.3212 | AB30: 3470 | AD30: 2013-10-07T06:11:28.842 | AE30: =IF($K30="_","_",IF(ISNUMBER(AN30),IF(OR(INT(AD30)<>MAX(AE$1:AE29),COUNT(AN$1:AN30)=COUNT(AN:AN)),INT(AD30)))) -> FALSE | AF30: Δ13m | AG30: =IF($K30="_","_",IF(COUNT(AN$1:AN30)=1,TEXT($I$30+$I$9/24,"┌yy-mm-dd hh:mm:ss┐ "),IF(COUNT(AN$1:AN30)=COUNT(AN:AN),TEXT($I$31+$I$9/24,"└yy-mm-dd hh:mm:ss┘ "),""))&TEXT(AD30,IF(AE30,"mmm d dddd hh:mm","hh:mm"))&REPT(" ",MAX(3*(5-LEN(AF30)),1))&AF30) -> 06:11 Δ13m | AH30: 10.61440145 | AI30: 9.743738844 | AJ30: 679.5454545 | AK30: 160.0482727 | AL30: 213.397697 | AM30: 264.4607173 | AN30: 0
A31: 2 | B31: 0 | C31: 2013-10-06T17:40:36 | H31: last call | I31: =MAX(C:C) -> 2013-10-07T10:19:42 | K31: 29 | L31: 2013-10-07T04:18:02.473 | M31: 0.008806186605 | N31: Table | O31: Time | P31: Time | Q31: Duration | R31: =1 | S31: >=41554.1791952949 | T31: <41554.1880014815 | U31: >=10 | V31: 13 | W31: 11 | X31: 10 | Y31: 187000 | Z31: 2.77 | AA31: 1.3904 | AB31: 1540 | AD31: 2013-10-07T06:24:22.901 | AE31: =IF($K31="_","_",IF(ISNUMBER(AN31),IF(OR(INT(AD31)<>MAX(AE$1:AE30),COUNT(AN$1:AN31)=COUNT(AN:AN)),INT(AD31)))) -> FALSE | AF31: Δ13m | AG31: =IF($K31="_","_",IF(COUNT(AN$1:AN31)=1,TEXT($I$30+$I$9/24,"┌yy-mm-dd hh:mm:ss┐ "),IF(COUNT(AN$1:AN31)=COUNT(AN:AN),TEXT($I$31+$I$9/24,"└yy-mm-dd hh:mm:ss┘ "),""))&TEXT(AD31,IF(AE31,"mmm d dddd hh:mm","hh:mm"))&REPT(" ",MAX(3*(5-LEN(AF31)),1))&AF31) -> 06:24 Δ13m | AH31: 6.578708348 | AI31: 6.527607909 | AJ31: 850 | AK31: 78.85870191 | AL31: 23.65761057 | AM31: 121.4424009
A32: 2 | B32: 0 | C32: 2013-10-06T17:40:39 | H32: period | I32: =I31-I30 -> 0.6947685185 | K32: 30 | L32: 2013-10-07T04:30:43.328 | M32: 0.008510791613 | N32: =1 | O32: >=41554.1880014815 | P32: <41554.1965122731 | Q32: >=10 | R32: Table | S32: Time | T32: Time | U32: Duration | V32: 25 | W32: 10 | X32: 9 | Y32: 159000 | Z32: 2.18617 | AA32: 1.22991 | AB32: 1457 | AD32: 2013-10-07T06:36:50.994 | AE32: =IF($K32="_","_",IF(ISNUMBER(AN32),IF(OR(INT(AD32)<>MAX(AE$1:AE31),COUNT(AN$1:AN32)=COUNT(AN:AN)),INT(AD32)))) -> FALSE | AF32: Δ12m | AG32: =IF($K32="_","_",IF(COUNT(AN$1:AN32)=1,TEXT($I$30+$I$9/24,"┌yy-mm-dd hh:mm:ss┐ "),IF(COUNT(AN$1:AN32)=COUNT(AN:AN),TEXT($I$31+$I$9/24,"└yy-mm-dd hh:mm:ss┘ "),""))&TEXT(AD32,IF(AE32,"mmm d dddd hh:mm","hh:mm"))&REPT(" ",MAX(3*(5-LEN(AF32)),1))&AF32) -> 06:36 Δ12m | AH32: 6.021325904 | AI32: 4.681605246 | AJ32: 795 | AK32: 73.43617708 | AL32: 130.5532037 | AM32: 118.8850111 | AN32: 0
A33: 1 | B33: 14000 | C33: 2013-10-06T17:40:42 | D33: 0.02067 | E33: 0 | F33: 248 | H33: smallest | I33: =I32*(I29-1)/(I28*I29-1) -> 0.0003947812512 | K33: 31 | L33: 2013-10-07T04:42:58.660 | M33: 0.00822530536 | N33: Table | O33: Time | P33: Time | Q33: Duration | R33: =1 | S33: >=41554.1965122731 | T33: <41554.2047375785 | U33: >=10 | V33: 29 | W33: 13 | X33: 13 | Y33: 236000 | Z33: 3.59 | AA33: 2.05571 | AB33: 2871 | AD33: 2013-10-07T06:48:53.994 | AE33: =IF($K33="_","_",IF(ISNUMBER(AN33),IF(OR(INT(AD33)<>MAX(AE$1:AE32),COUNT(AN$1:AN33)=COUNT(AN:AN)),INT(AD33)))) -> FALSE | AF33: Δ12m | AG33: =IF($K33="_","_",IF(COUNT(AN$1:AN33)=1,TEXT($I$30+$I$9/24,"┌yy-mm-dd hh:mm:ss┐ "),IF(COUNT(AN$1:AN33)=COUNT(AN:AN),TEXT($I$31+$I$9/24,"└yy-mm-dd hh:mm:ss┘ "),""))&TEXT(AD33,IF(AE33,"mmm d dddd hh:mm","hh:mm"))&REPT(" ",MAX(3*(5-LEN(AF33)),1))&AF33) -> 06:48 Δ12m | AH33: 10.41354449 | AI33: 7.772203852 | AJ33: 907.6923077 | AK33: 109.7561414 | AL33: 135.0844817 | AM33: 242.3922168
A34: 2 | B34: 0 | C34: 2013-10-06T17:40:46 | H34: largest | I34: =I33*I28 -> 0.02368687507 | K34: 32 | L34: 2013-10-07T04:54:49.327 | M34: 0.007949395466 | N34: =1 | O34: >=41554.2047375785 | P34: <41554.212686974 | Q34: >=10 | R34: Table | S34: Time | T34: Time | U34: Duration | V34: 27 | W34: 14 | X34: 14 | Y34: 192000 | Z34: 4.592 | AA34: 2.44224 | AB34: 3958 | AD34: 2013-10-07T07:00:32.741 | AE34: =IF($K34="_","_",IF(ISNUMBER(AN34),IF(OR(INT(AD34)<>MAX(AE$1:AE33),COUNT(AN$1:AN34)=COUNT(AN:AN)),INT(AD34)))) -> FALSE | AF34: Δ11m | AG34: =IF($K34="_","_",IF(COUNT(AN$1:AN34)=1,TEXT($I$30+$I$9/24,"┌yy-mm-dd hh:mm:ss┐ "),IF(COUNT(AN$1:AN34)=COUNT(AN:AN),TEXT($I$31+$I$9/24,"└yy-mm-dd hh:mm:ss┘ "),""))&TEXT(AD34,IF(AE34,"mmm d dddd hh:mm","hh:mm"))&REPT(" ",MAX(3*(5-LEN(AF34)),1))&AF34) -> 07:00 Δ11m | AH34: 12.80097341 | AI34: 11.26794279 | AJ34: 685.7142857 | AK34: 122.3014035 | AL34: 113.5655889 | AM34: 345.7635392 | AN34: 0
A35: 2 | B35: 0 | C35: 2013-10-06T17:40:46 | H35: chart_range | I35: =I24&"!"&ADDRESS(ROW(AG1:AN1),COLUMN(AG1:AN1))&":"&ADDRESS(ROW(AG1:AN1)+MAX(I27,10)+1,COLUMN(AG1:AN1)+COLUMNS(AG1:AN1)-1) -> 'data sheet'!$AG$1:$AN$122 | K35: 33 | L35: 2013-10-07T05:06:16.155 | M35: 0.007682740702 | N35: Table | O35: Time | P35: Time | Q35: Duration | R35: =1 | S35: >=41554.212686974 | T35: <41554.2203697147 | U35: >=10 | V35: 41 | W35: 24 | X35: 19 | Y35: 358000 | Z35: 0.92973 | AA35: 0.77698 | AB35: 3135 | AD35: 2013-10-07T07:11:48.049 | AE35: =IF($K35="_","_",IF(ISNUMBER(AN35),IF(OR(INT(AD35)<>MAX(AE$1:AE34),COUNT(AN$1:AN35)=COUNT(AN:AN)),INT(AD35)))) -> FALSE | AF35: Δ11m | AG35: =IF($K35="_","_",IF(COUNT(AN$1:AN35)=1,TEXT($I$30+$I$9/24,"┌yy-mm-dd hh:mm:ss┐ "),IF(COUNT(AN$1:AN35)=COUNT(AN:AN),TEXT($I$31+$I$9/24,"└yy-mm-dd hh:mm:ss┘ "),""))&TEXT(AD35,IF(AE35,"mmm d dddd hh:mm","hh:mm"))&REPT(" ",MAX(3*(5-LEN(AF35)),1))&AF35) -> 07:11 Δ11m | AH35: 4.213882509 | AI35: 0.8284261542 | AJ35: 745.8333333 | AK35: 171.741374 | AL35: 198.8584331 | AM35: 283.3732672
A36: 2 | B36: 0 | C36: 2013-10-06T17:40:46 | H36: max labels | I36: 60 | K36: 34 | L36: 2013-10-07T05:17:19.943 | M36: 0.007425030613 | N36: =1 | O36: >=41554.2203697147 | P36: <41554.2277947453 | Q36: >=10 | R36: Table | S36: Time | T36: Time | U36: Duration | V36: 41 | W36: 26 | X36: 22 | Y36: 375000 | Z36: 4.78617 | AA36: 3.541 | AB36: 3657 | AD36: 2013-10-07T07:22:40.705 | AE36: =IF($K36="_","_",IF(ISNUMBER(AN36),IF(OR(INT(AD36)<>MAX(AE$1:AE35),COUNT(AN$1:AN36)=COUNT(AN:AN)),INT(AD36)))) -> FALSE | AF36: Δ11m | AG36: =IF($K36="_","_",IF(COUNT(AN$1:AN36)=1,TEXT($I$30+$I$9/24,"┌yy-mm-dd hh:mm:ss┐ "),IF(COUNT(AN$1:AN36)=COUNT(AN:AN),TEXT($I$31+$I$9/24,"└yy-mm-dd hh:mm:ss┘ "),""))&TEXT(AD36,IF(AE36,"mmm d dddd hh:mm","hh:mm"))&REPT(" ",MAX(3*(5-LEN(AF36)),1))&AF36) -> 07:22 Δ11m | AH36: 19.87084961 | AI36: 6.987457161 | AJ36: 721.1538462 | AK36: 205.7604685 | AL36: 177.7022228 | AM36: 342.0300152 | AN36: 0
A37: 2 | B37: 0 | C37: 2013-10-06T17:40:47 | H37: label every | I37: =CEILING($I$27,$I$36)/$I$36 -> 2 | K37: 35 | L37: 2013-10-07T05:28:01.466 | M37: 0.00717596516 | N37: Table | O37: Time | P37: Time | Q37: Duration | R37: =1 | S37: >=41554.2277947453 | T37: <41554.2349707104 | U37: >=10 | V37: 57 | W37: 31 | X37: 30 | Y37: 549000 | Z37: 13.64476 | AA37: 8.93774 | AB37: 9692 | AD37: 2013-10-07T07:33:11.468 | AE37: =IF($K37="_","_",IF(ISNUMBER(AN37),IF(OR(INT(AD37)<>MAX(AE$1:AE36),COUNT(AN$1:AN37)=COUNT(AN:AN)),INT(AD37)))) -> FALSE | AF37: Δ10m | AG37: =IF($K37="_","_",IF(COUNT(AN$1:AN37)=1,TEXT($I$30+$I$9/24,"┌yy-mm-dd hh:mm:ss┐ "),IF(COUNT(AN$1:AN37)=COUNT(AN:AN),TEXT($I$31+$I$9/24,"└yy-mm-dd hh:mm:ss┘ "),""))&TEXT(AD37,IF(AE37,"mmm d dddd hh:mm","hh:mm"))&REPT(" ",MAX(3*(5-LEN(AF37)),1))&AF37) -> 07:33 Δ10m | AH37: 51.8962711 | AI37: 27.33093444 | AJ37: 885.483871 | AK37: 290.3209933 | AL37: 261.288894 | AM37: 937.9303558
A38: 1 | B38: 26000 | C38: 2013-10-06T17:40:47 | D38: 0.022 | E38: 0.022 | F38: 12 | K38: 36 | L38: 2013-10-07T05:38:21.469 | M38: 0.006935254366 | N38: =1 | O38: >=41554.2349707104 | P38: <41554.2419059648 | Q38: >=10 | R38: Table | S38: Time | T38: Time | U38: Duration | V38: 39 | W38: 29 | X38: 24 | Y38: 443000 | Z38: 5.4041 | AA38: 3.2438 | AB38: 4126 | AD38: 2013-10-07T07:43:21.072 | AE38: =IF($K38="_","_",IF(ISNUMBER(AN38),IF(OR(INT(AD38)<>MAX(AE$1:AE37),COUNT(AN$1:AN38)=COUNT(AN:AN)),INT(AD38)))) -> FALSE | AF38: Δ10m | AG38: =IF($K38="_","_",IF(COUNT(AN$1:AN38)=1,TEXT($I$30+$I$9/24,"┌yy-mm-dd hh:mm:ss┐ "),IF(COUNT(AN$1:AN38)=COUNT(AN:AN),TEXT($I$31+$I$9/24,"└yy-mm-dd hh:mm:ss┘ "),""))&TEXT(AD38,IF(AE38,"mmm d dddd hh:mm","hh:mm"))&REPT(" ",MAX(3*(5-LEN(AF38)),1))&AF38) -> 07:43 Δ10m | AH38: 19.48859064 | AI38: 12.978976 | AJ38: 763.7931034 | AK38: 240.31803 | AL38: 150.1987687 | AM38: 413.1467466 | AN38: 0
A39: 1 | B39: 28000 | C39: 2013-10-06T17:40:47 | D39: 0 | E39: 0.01547 | F39: 320 | H39: spoken | I39: 10 | K39: 37 | L39: 2013-10-07T05:48:20.675 | M39: 0.006702617982 | N39: Table | O39: Time | P39: Time | Q39: Duration | R39: =1 | S39: >=41554.2419059648 | T39: <41554.2486085828 | U39: >=10 | V39: 42 | W39: 30 | X39: 26 | Y39: 430000 | Z39: 16.55793 | AA39: 12.20399 | AB39: 9137 | AD39: 2013-10-07T07:53:10.228 | AE39: =IF($K39="_","_",IF(ISNUMBER(AN39),IF(OR(INT(AD39)<>MAX(AE$1:AE38),COUNT(AN$1:AN39)=COUNT(AN:AN)),INT(AD39)))) -> FALSE | AF39: Δ10m | AG39: =IF($K39="_","_",IF(COUNT(AN$1:AN39)=1,TEXT($I$30+$I$9/24,"┌yy-mm-dd hh:mm:ss┐ "),IF(COUNT(AN$1:AN39)=COUNT(AN:AN),TEXT($I$31+$I$9/24,"└yy-mm-dd hh:mm:ss┘ "),""))&TEXT(AD39,IF(AE39,"mmm d dddd hh:mm","hh:mm"))&REPT(" ",MAX(3*(5-LEN(AF39)),1))&AF39) -> 07:53 Δ10m | AH39: 75.86581612 | AI39: 27.06616536 | AJ39: 716.6666667 | AK39: 269.3806451 | AL39: 165.7727047 | AM39: 946.6657515
A40: 1 | B40: 9000 | C40: 2013-10-06T17:40:48 | D40: 0.03858 | E40: 0 | F40: 463 | K40: 38 | L40: 2013-10-07T05:57:59.782 | M40: 0.00647778516 | N40: =1 | O40: >=41554.2486085828 | P40: <41554.2550863679 | Q40: >=10 | R40: Table | S40: Time | T40: Time | U40: Duration | V40: 55 | W40: 37 | X40: 32 | Y40: 532000 | Z40: 4.57711 | AA40: 2.93653 | AB40: 4377 | AD40: 2013-10-07T08:02:39.622 | AE40: =IF($K40="_","_",IF(ISNUMBER(AN40),IF(OR(INT(AD40)<>MAX(AE$1:AE39),COUNT(AN$1:AN40)=COUNT(AN:AN)),INT(AD40)))) -> FALSE | AF40: Δ9m | AG40: =IF($K40="_","_",IF(COUNT(AN$1:AN40)=1,TEXT($I$30+$I$9/24,"┌yy-mm-dd hh:mm:ss┐ "),IF(COUNT(AN$1:AN40)=COUNT(AN:AN),TEXT($I$31+$I$9/24,"└yy-mm-dd hh:mm:ss┘ "),""))&TEXT(AD40,IF(AE40,"mmm d dddd hh:mm","hh:mm"))&REPT(" ",MAX(3*(5-LEN(AF40)),1))&AF40) -> 08:02 Δ9m | AH40: 18.88846475 | AI40: 10.55260375 | AJ40: 718.9189189 | AK40: 343.0527823 | AL40: 246.5691873 | AM40: 469.2318838 | AN40: 0
A41: 2 | B41: 0 | C41: 2013-10-06T17:40:48 | H41: calls count | I41: =COUNT(C:C) -> 10049 | K41: 39 | L41: 2013-10-07T06:07:19.462 | M41: 0.006260494137 | N41: Table | O41: Time | P41: Time | Q41: Duration | R41: =1 | S41: >=41554.2550863679 | T41: <41554.2613468621 | U41: >=10 | V41: 76 | W41: 50 | X41: 44 | Y41: 576000 | Z41: 12.52983 | AA41: 6.95479 | AB41: 7374 | AD41: 2013-10-07T08:11:49.916 | AE41: =IF($K41="_","_",IF(ISNUMBER(AN41),IF(OR(INT(AD41)<>MAX(AE$1:AE40),COUNT(AN$1:AN41)=COUNT(AN:AN)),INT(AD41)))) -> FALSE | AF41: Δ9m | AG41: =IF($K41="_","_",IF(COUNT(AN$1:AN41)=1,TEXT($I$30+$I$9/24,"┌yy-mm-dd hh:mm:ss┐ "),IF(COUNT(AN$1:AN41)=COUNT(AN:AN),TEXT($I$31+$I$9/24,"└yy-mm-dd hh:mm:ss┘ "),""))&TEXT(AD41,IF(AE41,"mmm d dddd hh:mm","hh:mm"))&REPT(" ",MAX(3*(5-LEN(AF41)),1))&AF41) -> 08:11 Δ9m | AH41: 46.28754701 | AI41: 37.10463236 | AJ41: 576 | AK41: 488.0693902 | AL41: 354.9595565 | AM41: 817.959928
A42: 2 | B42: 0 | C42: 2013-10-06T17:40:53 | H42: calls answered | I42: =COUNTIF(A:A,"=1") -> 5423 | K42: 40 | L42: 2013-10-07T06:16:20.369 | M42: 0.006050491931 | N42: =1 | O42: >=41554.2613468621 | P42: <41554.267397354 | Q42: >=10 | R42: Table | S42: Time | T42: Time | U42: Duration | V42: 79 | W42: 59 | X42: 52 | Y42: 886000 | Z42: 13.79901 | AA42: 6.27142 | AB42: 8719 | AD42: 2013-10-07T08:20:41.750 | AE42: =IF($K42="_","_",IF(ISNUMBER(AN42),IF(OR(INT(AD42)<>MAX(AE$1:AE41),COUNT(AN$1:AN42)=COUNT(AN:AN)),INT(AD42)))) -> FALSE | AF42: Δ9m | AG42: =IF($K42="_","_",IF(COUNT(AN$1:AN42)=1,TEXT($I$30+$I$9/24,"┌yy-mm-dd hh:mm:ss┐ "),IF(COUNT(AN$1:AN42)=COUNT(AN:AN),TEXT($I$31+$I$9/24,"└yy-mm-dd hh:mm:ss┘ "),""))&TEXT(AD42,IF(AE42,"mmm d dddd hh:mm","hh:mm"))&REPT(" ",MAX(3*(5-LEN(AF42)),1))&AF42) -> 08:20 Δ9m | AH42: 43.18808614 | AI42: 51.83869129 | AJ42: 750.8474576 | AK42: 596.8293409 | AL42: 309.8921578 | AM42: 1000.72212 | AN42: 0
A43: 2 | B43: 0 | C43: 2013-10-06T17:40:54 | H43: calls failed | I43: =COUNTIF(A:A,"=2") -> 4626 | K43: 41 | L43: 2013-10-07T06:25:03.131 | M43: 0.005847534045 | N43: Table | O43: Time | P43: Time | Q43: Duration | R43: =1 | S43: >=41554.267397354 | T43: <41554.273244888 | U43: >=10 | V43: 83 | W43: 60 | X43: 60 | Y43: 819000 | Z43: 11.31208 | AA43: 8.49861 | AB43: 17086 | AD43: 2013-10-07T08:29:15.745 | AE43: =IF($K43="_","_",IF(ISNUMBER(AN43),IF(OR(INT(AD43)<>MAX(AE$1:AE42),COUNT(AN$1:AN43)=COUNT(AN:AN)),INT(AD43)))) -> FALSE | AF43: Δ8m | AG43: =IF($K43="_","_",IF(COUNT(AN$1:AN43)=1,TEXT($I$30+$I$9/24,"┌yy-mm-dd hh:mm:ss┐ "),IF(COUNT(AN$1:AN43)=COUNT(AN:AN),TEXT($I$31+$I$9/24,"└yy-mm-dd hh:mm:ss┘ "),""))&TEXT(AD43,IF(AE43,"mmm d dddd hh:mm","hh:mm"))&REPT(" ",MAX(3*(5-LEN(AF43)),1))&AF43) -> 08:29 Δ8m | AH43: 60.55693687 | AI43: 20.04741072 | AJ43: 682.5 | AK43: 712.5510745 | AL43: 273.1445786 | AM43: 2029.107943
A44: 2 | B44: 0 | C44: 2013-10-06T17:40:54 | H44: calls spoken | I44: =COUNTIF(F:F,">="&I$39) -> 4723 | K44: 42 | L44: 2013-10-07T06:33:28.358 | M44: 0.005651384184 | N44: =1 | O44: >=41554.273244888 | P44: <41554.2788962722 | Q44: >=10 | R44: Table | S44: Time | T44: Time | U44: Duration | V44: 79 | W44: 50 | X44: 48 | Y44: 749000 | Z44: 3.26378 | AA44: 2.89794 | AB44: 10118 | AD44: 2013-10-07T08:37:32.498 | AE44: =IF($K44="_","_",IF(ISNUMBER(AN44),IF(OR(INT(AD44)<>MAX(AE$1:AE43),COUNT(AN$1:AN44)=COUNT(AN:AN)),INT(AD44)))) -> FALSE | AF44: Δ8m | AG44: =IF($K44="_","_",IF(COUNT(AN$1:AN44)=1,TEXT($I$30+$I$9/24,"┌yy-mm-dd hh:mm:ss┐ "),IF(COUNT(AN$1:AN44)=COUNT(AN:AN),TEXT($I$31+$I$9/24,"└yy-mm-dd hh:mm:ss┘ "),""))&TEXT(AD44,IF(AE44,"mmm d dddd hh:mm","hh:mm"))&REPT(" ",MAX(3*(5-LEN(AF44)),1))&AF44) -> 08:37 Δ8m | AH44: 21.36600452 | AI44: 2.697274302 | AJ44: 749 | AK44: 589.826001 | AL44: 380.9292923 | AM44: 1243.304058 | AN44: 0
A45: 2 | B45: 0 | C45: 2013-10-06T17:40:54 | H45: calls short | I45: =COUNTIF(F:F,"<"&$I$39) -> 700 | K45: 43 | L45: 2013-10-07T06:41:36.638 | M45: 0.005461813981 | N45: Table | O45: Time | P45: Time | Q45: Duration | R45: =1 | S45: >=41554.2788962722 | T45: <41554.2843580862 | U45: >=10 | V45: 96 | W45: 45 | X45: 44 | Y45: 617000 | Z45: 5.0253 | AA45: 4.17313 | AB45: 10753 | AD45: 2013-10-07T08:45:32.588 | AE45: =IF($K45="_","_",IF(ISNUMBER(AN45),IF(OR(INT(AD45)<>MAX(AE$1:AE44),COUNT(AN$1:AN45)=COUNT(AN:AN)),INT(AD45)))) -> FALSE | AF45: Δ8m | AG45: =IF($K45="_","_",IF(COUNT(AN$1:AN45)=1,TEXT($I$30+$I$9/24,"┌yy-mm-dd hh:mm:ss┐ "),IF(COUNT(AN$1:AN45)=COUNT(AN:AN),TEXT($I$31+$I$9/24,"└yy-mm-dd hh:mm:ss┘ "),""))&TEXT(AD45,IF(AE45,"mmm d dddd hh:mm","hh:mm"))&REPT(" ",MAX(3*(5-LEN(AF45)),1))&AF45) -> 08:45 Δ8m | AH45: 31.83565337 | AI45: 6.500968993 | AJ45: 685.5555556 | AK45: 559.4396964 | AL45: 661.1560049 | AM45: 1367.194331
A46: 2 | B46: 0 | C46: 2013-10-06T17:40:59 | H46: calls PDD | I46: =SUMIF(A:A,"=1",B:B) -> 87791000 | K46: 44 | L46: 2013-10-07T06:49:28.539 | M46: 0.005278602726 | N46: =1 | O46: >=41554.2843580862 | P46: <41554.2896366889 | Q46: >=10 | R46: Table | S46: Time | T46: Time | U46: Duration | V46: 100 | W46: 60 | X46: 53 | Y46: 906000 | Z46: 7.91684 | AA46: 6.4633 | AB46: 14125 | AD46: 2013-10-07T08:53:16.574 | AE46: =IF($K46="_","_",IF(ISNUMBER(AN46),IF(OR(INT(AD46)<>MAX(AE$1:AE45),COUNT(AN$1:AN46)=COUNT(AN:AN)),INT(AD46)))) -> FALSE | AF46: Δ8m | AG46: =IF($K46="_","_",IF(COUNT(AN$1:AN46)=1,TEXT($I$30+$I$9/24,"┌yy-mm-dd hh:mm:ss┐ "),IF(COUNT(AN$1:AN46)=COUNT(AN:AN),TEXT($I$31+$I$9/24,"└yy-mm-dd hh:mm:ss┘ "),""))&TEXT(AD46,IF(AE46,"mmm d dddd hh:mm","hh:mm"))&REPT(" ",MAX(3*(5-LEN(AF46)),1))&AF46) -> 08:53 Δ8m | AH46: 51.0180782 | AI46: 11.47352241 | AJ46: 755 | AK46: 697.2594352 | AL46: 618.3244048 | AM46: 1858.262174 | AN46: 0
A47: 2 | B47: 0 | C47: 2013-10-06T17:41:00 | H47: calls revenue | I47: =SUM(D:D) -> 1119.57157 | K47: 45 | L47: 2013-10-07T06:57:04.610 | M47: 0.005101537115 | N47: Table | O47: Time | P47: Time | Q47: Duration | R47: =1 | S47: >=41554.2896366889 | T47: <41554.2947382261 | U47: >=10 | V47: 107 | W47: 71 | X47: 69 | Y47: 1065000 | Z47: 5.42508 | AA47: 3.84996 | AB47: 19174 | AD47: 2013-10-07T09:00:44.996 | AE47: =IF($K47="_","_",IF(ISNUMBER(AN47),IF(OR(INT(AD47)<>MAX(AE$1:AE46),COUNT(AN$1:AN47)=COUNT(AN:AN)),INT(AD47)))) -> FALSE | AF47: Δ7m | AG47: =IF($K47="_","_",IF(COUNT(AN$1:AN47)=1,TEXT($I$30+$I$9/24,"┌yy-mm-dd hh:mm:ss┐ "),IF(COUNT(AN$1:AN47)=COUNT(AN:AN),TEXT($I$31+$I$9/24,"└yy-mm-dd hh:mm:ss┘ "),""))&TEXT(AD47,IF(AE47,"mmm d dddd hh:mm","hh:mm"))&REPT(" ",MAX(3*(5-LEN(AF47)),1))&AF47) -> 09:00 Δ7m | AH47: 31.44444437 | AI47: 12.86475008 | AJ47: 750 | AK47: 939.2593954 | AL47: 517.2732902 | AM47: 2610.052123
A48: 2 | B48: 0 | C48: 2013-10-06T17:41:00 | H48: calls cost | I48: =SUM(E:E) -> 797.72142 | K48: 46 | L48: 2013-10-07T07:04:25.383 | M48: 0.004930410999 | N48: =1 | O48: >=41554.2947382261 | P48: <41554.2996686371 | Q48: >=10 | R48: Table | S48: Time | T48: Time | U48: Duration | V48: 131 | W48: 80 | X48: 70 | Y48: 1153000 | Z48: 8.29068 | AA48: 6.53193 | AB48: 26823 | AD48: 2013-10-07T09:07:58.376 | AE48: =IF($K48="_","_",IF(ISNUMBER(AN48),IF(OR(INT(AD48)<>MAX(AE$1:AE47),COUNT(AN$1:AN48)=COUNT(AN:AN)),INT(AD48)))) -> FALSE | AF48: Δ7m | AG48: =IF($K48="_","_",IF(COUNT(AN$1:AN48)=1,TEXT($I$30+$I$9/24,"┌yy-mm-dd hh:mm:ss┐ "),IF(COUNT(AN$1:AN48)=COUNT(AN:AN),TEXT($I$31+$I$9/24,"└yy-mm-dd hh:mm:ss┘ "),""))&TEXT(AD48,IF(AE48,"mmm d dddd hh:mm","hh:mm"))&REPT(" ",MAX(3*(5-LEN(AF48)),1))&AF48) -> 09:07 Δ7m | AH48: 55.20102687 | AI48: 14.86311182 | AJ48: 720.625 | AK48: 985.9443994 | AL48: 859.1801195 | AM48: 3777.998089 | AN48: 0
A49: 2 | B49: 0 | C49: 2013-10-06T17:41:00 | H49: calls duration | I49: =SUM(F:F) -> 2345193 | K49: 47 | L49: 2013-10-07T07:11:31.370 | M49: 0.004765025142 | N49: Table | O49: Time | P49: Time | Q49: Duration | R49: =1 | S49: >=41554.2996686371 | T49: <41554.3044336622 | U49: >=10 | V49: 157 | W49: 95 | X49: 78 | Y49: 1471000 | Z49: 5.6331 | AA49: 6.96528 | AB49: 19787 | AD49: 2013-10-07T09:14:57.219 | AE49: =IF($K49="_","_",IF(ISNUMBER(AN49),IF(OR(INT(AD49)<>MAX(AE$1:AE48),COUNT(AN$1:AN49)=COUNT(AN:AN)),INT(AD49)))) -> FALSE | AF49: Δ7m | AG49: =IF($K49="_","_",IF(COUNT(AN$1:AN49)=1,TEXT($I$30+$I$9/24,"┌yy-mm-dd hh:mm:ss┐ "),IF(COUNT(AN$1:AN49)=COUNT(AN:AN),TEXT($I$31+$I$9/24,"└yy-mm-dd hh:mm:ss┘ "),""))&TEXT(AD49,IF(AE49,"mmm d dddd hh:mm","hh:mm"))&REPT(" ",MAX(3*(5-LEN(AF49)),1))&AF49) -> 09:14 Δ7m | AH49: 60.90628934 | AI49: -11.64894168 | AJ49: 774.2105263 | AK49: 1136.755107 | AL49: 1151.328891 | AM49: 2883.714527
A50: 1 | B50: 7000 | C50: 2013-10-06T17:41:01 | D50: 0 | E50: 0.00608 | F50: 32 | K50: 48 | L50: 2013-10-07T07:18:23.068 | M50: 0.004605186993 | N50: =1 | O50: >=41554.3044336622 | P50: <41554.3090388492 | Q50: >=10 | R50: Table | S50: Time | T50: Time | U50: Duration | V50: 166 | W50: 83 | X50: 71 | Y50: 1252000 | Z50: 3.68476 | AA50: 4.83825 | AB50: 16215 | AD50: 2013-10-07T09:21:42.012 | AE50: =IF($K50="_","_",IF(ISNUMBER(AN50),IF(OR(INT(AD50)<>MAX(AE$1:AE49),COUNT(AN$1:AN50)=COUNT(AN:AN)),INT(AD50)))) -> FALSE | AF50: Δ7m | AG50: =IF($K50="_","_",IF(COUNT(AN$1:AN50)=1,TEXT($I$30+$I$9/24,"┌yy-mm-dd hh:mm:ss┐ "),IF(COUNT(AN$1:AN50)=COUNT(AN:AN),TEXT($I$31+$I$9/24,"└yy-mm-dd hh:mm:ss┘ "),""))&TEXT(AD50,IF(AE50,"mmm d dddd hh:mm","hh:mm"))&REPT(" ",MAX(3*(5-LEN(AF50)),1))&AF50) -> 09:21 Δ7m | AH50: 43.77536684 | AI50: -10.4365107 | AJ50: 754.2168675 | AK50: 1070.652628 | AL50: 1432.563375 | AM50: 2445.159487 | AN50: 0
A51: 2 | B51: 0 | C51: 2013-10-06T17:41:03 | H51: ok count | I51: =I41=SUM(V:V) -> TRUE | K51: 49 | L51: 2013-10-07T07:25:00.957 | M51: 0.00445071046 | N51: Table | O51: Time | P51: Time | Q51: Duration | R51: =1 | S51: >=41554.3090388492 | T51: <41554.3134895597 | U51: >=10 | V51: 126 | W51: 92 | X51: 86 | Y51: 1446000 | Z51: 11.35436 | AA51: 7.91278 | AB51: 19589 | AD51: 2013-10-07T09:28:13.227 | AE51: =IF($K51="_","_",IF(ISNUMBER(AN51),IF(OR(INT(AD51)<>MAX(AE$1:AE50),COUNT(AN$1:AN51)=COUNT(AN:AN)),INT(AD51)))) -> FALSE | AF51: Δ6m | AG51: =IF($K51="_","_",IF(COUNT(AN$1:AN51)=1,TEXT($I$30+$I$9/24,"┌yy-mm-dd hh:mm:ss┐ "),IF(COUNT(AN$1:AN51)=COUNT(AN:AN),TEXT($I$31+$I$9/24,"└yy-mm-dd hh:mm:ss┘ "),""))&TEXT(AD51,IF(AE51,"mmm d dddd hh:mm","hh:mm"))&REPT(" ",MAX(3*(5-LEN(AF51)),1))&AF51) -> 09:28 Δ6m | AH51: 74.07787355 | AI51: 32.21938788 | AJ51: 785.8695652 | AK51: 1341.858176 | AL51: 624.1200821 | AM51: 3056.472072
A52: 2 | B52: 0 | C52: 2013-10-06T17:41:04 | H52: ok answered | I52: =I42=SUM(W:W) -> TRUE | K52: 50 | L52: 2013-10-07T07:31:25.498 | M52: 0.004301415693 | N52: =1 | O52: >=41554.3134895597 | P52: <41554.3177909754 | Q52: >=10 | R52: Table | S52: Time | T52: Time | U52: Duration | V52: 115 | W52: 80 | X52: 71 | Y52: 1198000 | Z52: 16.59363 | AA52: 5.81887 | AB52: 20303 | AD52: 2013-10-07T09:34:31.319 | AE52: =IF($K52="_","_",IF(ISNUMBER(AN52),IF(OR(INT(AD52)<>MAX(AE$1:AE51),COUNT(AN$1:AN52)=COUNT(AN:AN)),INT(AD52)))) -> FALSE | AF52: Δ6m | AG52: =IF($K52="_","_",IF(COUNT(AN$1:AN52)=1,TEXT($I$30+$I$9/24,"┌yy-mm-dd hh:mm:ss┐ "),IF(COUNT(AN$1:AN52)=COUNT(AN:AN),TEXT($I$31+$I$9/24,"└yy-mm-dd hh:mm:ss┘ "),""))&TEXT(AD52,IF(AE52,"mmm d dddd hh:mm","hh:mm"))&REPT(" ",MAX(3*(5-LEN(AF52)),1))&AF52) -> 09:34 Δ6m | AH52: 56.36584185 | AI52: 104.3722266 | AJ52: 748.75 | AK52: 1146.263442 | AL52: 710.3604427 | AM52: 3277.829106 | AN52: 0
A53: 2 | B53: 0 | C53: 2013-10-06T17:41:04 | H53: ok spoken | I53: =I44=SUM(X:X) -> TRUE | K53: 51 | L53: 2013-10-07T07:37:37.140 | M53: 0.004157128874 | N53: Table | O53: Time | P53: Time | Q53: Duration | R53: =1 | S53: >=41554.3177909754 | T53: <41554.3219481042 | U53: >=10 | V53: 120 | W53: 71 | X53: 58 | Y53: 1080000 | Z53: 5.05072 | AA53: 4.55268 | AB53: 16614 | AD53: 2013-10-07T09:40:36.728 | AE53: =IF($K53="_","_",IF(ISNUMBER(AN53),IF(OR(INT(AD53)<>MAX(AE$1:AE52),COUNT(AN$1:AN53)=COUNT(AN:AN)),INT(AD53)))) -> FALSE | AF53: Δ6m | AG53: =IF($K53="_","_",IF(COUNT(AN$1:AN53)=1,TEXT($I$30+$I$9/24,"┌yy-mm-dd hh:mm:ss┐ "),IF(COUNT(AN$1:AN53)=COUNT(AN:AN),TEXT($I$31+$I$9/24,"└yy-mm-dd hh:mm:ss┘ "),""))&TEXT(AD53,IF(AE53,"mmm d dddd hh:mm","hh:mm"))&REPT(" ",MAX(3*(5-LEN(AF53)),1))&AF53) -> 09:40 Δ6m | AH53: 45.63125315 | AI53: 4.991826642 | AJ53: 760.5633803 | AK53: 968.8845115 | AL53: 1035.704133 | AM53: 2775.352978
A54: 2 | B54: 0 | C54: 2013-10-06T17:41:04 | H54: ok PDD | I54: =I46=SUM(Y:Y) -> TRUE | K54: 52 | L54: 2013-10-07T07:43:36.316 | M54: 0.004017682016 | N54: =1 | O54: >=41554.3219481042 | P54: <41554.3259657862 | Q54: >=10 | R54: Table | S54: Time | T54: Time | U54: Duration | V54: 134 | W54: 83 | X54: 72 | Y54: 1309000 | Z54: 7.55133 | AA54: 7.88119 | AB54: 20766 | AD54: 2013-10-07T09:46:29.880 | AE54: =IF($K54="_","_",IF(ISNUMBER(AN54),IF(OR(INT(AD54)<>MAX(AE$1:AE53),COUNT(AN$1:AN54)=COUNT(AN:AN)),INT(AD54)))) -> FALSE | AF54: Δ6m | AG54: =IF($K54="_","_",IF(COUNT(AN$1:AN54)=1,TEXT($I$30+$I$9/24,"┌yy-mm-dd hh:mm:ss┐ "),IF(COUNT(AN$1:AN54)=COUNT(AN:AN),TEXT($I$31+$I$9/24,"└yy-mm-dd hh:mm:ss┘ "),""))&TEXT(AD54,IF(AE54,"mmm d dddd hh:mm","hh:mm"))&REPT(" ",MAX(3*(5-LEN(AF54)),1))&AF54) -> 09:46 Δ6m | AH54: 81.73442183 | AI54: -3.420919479 | AJ54: 788.5542169 | AK54: 1244.498689 | AL54: 1071.651649 | AM54: 3589.341634 | AN54: 0
A55: 1 | B55: 14000 | C55: 2013-10-06T17:41:04 | D55: 0.34 | E55: 0.31915 | F55: 136 | H55: ok Revenue | I55: =LOG(ABS(I47-SUM(Z:Z)),10) -> -10.90289713 | K55: 53 | L55: 2013-10-07T07:49:23.444 | M55: 0.003882912768 | N55: Table | O55: Time | P55: Time | Q55: Duration | R55: =1 | S55: >=41554.3259657862 | T55: <41554.329848699 | U55: >=10 | V55: 124 | W55: 80 | X55: 74 | Y55: 1233000 | Z55: 13.14365 | AA55: 8.47615 | AB55: 22769 | AD55: 2013-10-07T09:52:11.186 | AE55: =IF($K55="_","_",IF(ISNUMBER(AN55),IF(OR(INT(AD55)<>MAX(AE$1:AE54),COUNT(AN$1:AN55)=COUNT(AN:AN)),INT(AD55)))) -> FALSE | AF55: Δ6m | AG55: =IF($K55="_","_",IF(COUNT(AN$1:AN55)=1,TEXT($I$30+$I$9/24,"┌yy-mm-dd hh:mm:ss┐ "),IF(COUNT(AN$1:AN55)=COUNT(AN:AN),TEXT($I$31+$I$9/24,"└yy-mm-dd hh:mm:ss┘ "),""))&TEXT(AD55,IF(AE55,"mmm d dddd hh:mm","hh:mm"))&REPT(" ",MAX(3*(5-LEN(AF55)),1))&AF55) -> 09:52 Δ6m | AH55: 90.95566596 | AI55: 50.08589641 | AJ55: 770.625 | AK55: 1323.462358 | AL55: 894.2313232 | AM55: 4072.1506
A56: 2 | B56: 0 | C56: 2013-10-06T17:41:04 | H56: ok Cost | I56: =LOG(ABS(I48-SUM(AA:AA)),10) -> -12.09919177 | K56: 54 | L56: 2013-10-07T07:54:58.928 | M56: 0.003752664223 | N56: =1 | O56: >=41554.329848699 | P56: <41554.3336013632 | Q56: >=10 | R56: Table | S56: Time | T56: Time | U56: Duration | V56: 136 | W56: 76 | X56: 64 | Y56: 1317000 | Z56: 8.1476 | AA56: 4.69134 | AB56: 18277 | AD56: 2013-10-07T09:57:41.043 | AE56: =IF($K56="_","_",IF(ISNUMBER(AN56),IF(OR(INT(AD56)<>MAX(AE$1:AE55),COUNT(AN$1:AN56)=COUNT(AN:AN)),INT(AD56)))) -> FALSE | AF56: Δ5m | AG56: =IF($K56="_","_",IF(COUNT(AN$1:AN56)=1,TEXT($I$30+$I$9/24,"┌yy-mm-dd hh:mm:ss┐ "),IF(COUNT(AN$1:AN56)=COUNT(AN:AN),TEXT($I$31+$I$9/24,"└yy-mm-dd hh:mm:ss┘ "),""))&TEXT(AD56,IF(AE56,"mmm d dddd hh:mm","hh:mm"))&REPT(" ",MAX(3*(5-LEN(AF56)),1))&AF56) -> 09:57 Δ5m | AH56: 52.08899288 | AI56: 38.37562456 | AJ56: 866.4473684 | AK56: 1184.343757 | AL56: 1332.386726 | AM56: 3382.226694 | AN56: 0
A57: 2 | B57: 0 | C57: 2013-10-06T17:41:04 | H57: ok Duration | I57: =I49=SUM(AB:AB) -> TRUE | K57: 55 | L57: 2013-10-07T08:00:23.158 | M57: 0.00362678474 | N57: Table | O57: Time | P57: Time | Q57: Duration | R57: =1 | S57: >=41554.3336013632 | T57: <41554.337228148 | U57: >=10 | V57: 135 | W57: 68 | X57: 56 | Y57: 1095000 | Z57: 5.95225 | AA57: 7.54813 | AB57: 12746 | AD57: 2013-10-07T10:02:59.835 | AE57: =IF($K57="_","_",IF(ISNUMBER(AN57),IF(OR(INT(AD57)<>MAX(AE$1:AE56),COUNT(AN$1:AN57)=COUNT(AN:AN)),INT(AD57)))) -> FALSE | AF57: Δ5m | AG57: =IF($K57="_","_",IF(COUNT(AN$1:AN57)=1,TEXT($I$30+$I$9/24,"┌yy-mm-dd hh:mm:ss┐ "),IF(COUNT(AN$1:AN57)=COUNT(AN:AN),TEXT($I$31+$I$9/24,"└yy-mm-dd hh:mm:ss┘ "),""))&TEXT(AD57,IF(AE57,"mmm d dddd hh:mm","hh:mm"))&REPT(" ",MAX(3*(5-LEN(AF57)),1))&AF57) -> 10:03 Δ5m | AH57: 86.7174203 | AI57: -18.33442147 | AJ57: 805.1470588 | AK57: 1072.269012 | AL57: 1512.665213 | AM57: 2440.560861
A58: 1 | B58: 17000 | C58: 2013-10-06T17:41:05 | D58: 0 | E58: 0.37844 | F58: 4634 | K58: 56 | L58: 2013-10-07T08:05:36.512 | M58: 0.003505127762 | N58: =1 | O58: >=41554.337228148 | P58: <41554.3407332757 | Q58: >=10 | R58: Table | S58: Time | T58: Time | U58: Duration | V58: 118 | W58: 65 | X58: 56 | Y58: 992000 | Z58: 25.34926 | AA58: 19.59638 | AB58: 24041 | AD58: 2013-10-07T10:08:07.934 | AE58: =IF($K58="_","_",IF(ISNUMBER(AN58),IF(OR(INT(AD58)<>MAX(AE$1:AE57),COUNT(AN$1:AN58)=COUNT(AN:AN)),INT(AD58)))) -> FALSE | AF58: Δ5m | AG58: =IF($K58="_","_",IF(COUNT(AN$1:AN58)=1,TEXT($I$30+$I$9/24,"┌yy-mm-dd hh:mm:ss┐ "),IF(COUNT(AN$1:AN58)=COUNT(AN:AN),TEXT($I$31+$I$9/24,"└yy-mm-dd hh:mm:ss┘ "),""))&TEXT(AD58,IF(AE58,"mmm d dddd hh:mm","hh:mm"))&REPT(" ",MAX(3*(5-LEN(AF58)),1))&AF58) -> 10:08 Δ5m | AH58: 232.9489504 | AI58: 68.38647535 | AJ58: 763.0769231 | AK58: 1109.485631 | AL58: 1228.359092 | AM58: 4763.06144 | AN58: 0
A59: 1 | B59: 26000 | C59: 2013-10-06T17:41:08 | D59: 0.05867 | E59: 0.04763 | F59: 32 | H59: PDD factor | I59: 50 | K59: 57 | L59: 2013-10-07T08:10:39.355 | M59: 0.00338755165 | N59: Table | O59: Time | P59: Time | Q59: Duration | R59: =1 | S59: >=41554.3407332757 | T59: <41554.3441208274 | U59: >=10 | V59: 129 | W59: 64 | X59: 52 | Y59: 1011000 | Z59: 9.40918 | AA59: 7.43607 | AB59: 14630 | AD59: 2013-10-07T10:13:05.697 | AE59: =IF($K59="_","_",IF(ISNUMBER(AN59),IF(OR(INT(AD59)<>MAX(AE$1:AE58),COUNT(AN$1:AN59)=COUNT(AN:AN)),INT(AD59)))) -> FALSE | AF59: Δ5m | AG59: =IF($K59="_","_",IF(COUNT(AN$1:AN59)=1,TEXT($I$30+$I$9/24,"┌yy-mm-dd hh:mm:ss┐ "),IF(COUNT(AN$1:AN59)=COUNT(AN:AN),TEXT($I$31+$I$9/24,"└yy-mm-dd hh:mm:ss┘ "),""))&TEXT(AD59,IF(AE59,"mmm d dddd hh:mm","hh:mm"))&REPT(" ",MAX(3*(5-LEN(AF59)),1))&AF59) -> 10:13 Δ5m | AH59: 91.46318109 | AI59: 24.26912566 | AJ59: 789.84375 | AK59: 1065.994407 | AL59: 1578.491718 | AM59: 2999.134263
A60: 1 | B60: 10000 | C60: 2013-10-06T17:41:14 | D60: 0 | E60: 0.05503 | F60: 623 | H60: call factor | I60: 100 | K60: 58 | L60: 2013-10-07T08:15:32.039 | M60: 0.003273919514 | N60: =1 | O60: >=41554.3441208274 | P60: <41554.3473947469 | Q60: >=10 | R60: Table | S60: Time | T60: Time | U60: Duration | V60: 116 | W60: 81 | X60: 66 | Y60: 1358000 | Z60: 13.94525 | AA60: 4.03104 | AB60: 20479 | AD60: 2013-10-07T10:17:53.473 | AE60: =IF($K60="_","_",IF(ISNUMBER(AN60),IF(OR(INT(AD60)<>MAX(AE$1:AE59),COUNT(AN$1:AN60)=COUNT(AN:AN)),INT(AD60)))) -> FALSE | AF60: Δ5m | AG60: =IF($K60="_","_",IF(COUNT(AN$1:AN60)=1,TEXT($I$30+$I$9/24,"┌yy-mm-dd hh:mm:ss┐ "),IF(COUNT(AN$1:AN60)=COUNT(AN:AN),TEXT($I$31+$I$9/24,"└yy-mm-dd hh:mm:ss┘ "),""))&TEXT(AD60,IF(AE60,"mmm d dddd hh:mm","hh:mm"))&REPT(" ",MAX(3*(5-LEN(AF60)),1))&AF60) -> 10:17 Δ5m | AH60: 51.30242185 | AI60: 126.1766154 | AJ60: 838.2716049 | AK60: 1399.952966 | AL60: 1060.570429 | AM60: 4343.884362 | AN60: 0
A61: 1 | B61: 19000 | C61: 2013-10-06T17:41:24 | D61: 0 | E61: 0.12471 | F61: 1825 | K61: 59 | L61: 2013-10-07T08:20:14.906 | M61: 0.003164099058 | N61: Table | O61: Time | P61: Time | Q61: Duration | R61: =1 | S61: >=41554.3473947469 | T61: <41554.350558846 | U61: >=10 | V61: 128 | W61: 74 | X61: 62 | Y61: 1519000 | Z61: 5.6111 | AA61: 4.96037 | AB61: 15703 | AD61: 2013-10-07T10:22:31.595 | AE61: =IF($K61="_","_",IF(ISNUMBER(AN61),IF(OR(INT(AD61)<>MAX(AE$1:AE60),COUNT(AN$1:AN61)=COUNT(AN:AN)),INT(AD61)))) -> FALSE | AF61: Δ5m | AG61: =IF($K61="_","_",IF(COUNT(AN$1:AN61)=1,TEXT($I$30+$I$9/24,"┌yy-mm-dd hh:mm:ss┐ "),IF(COUNT(AN$1:AN61)=COUNT(AN:AN),TEXT($I$31+$I$9/24,"└yy-mm-dd hh:mm:ss┘ "),""))&TEXT(AD61,IF(AE61,"mmm d dddd hh:mm","hh:mm"))&REPT(" ",MAX(3*(5-LEN(AF61)),1))&AF61) -> 10:22 Δ5m | AH61: 65.32099013 | AI61: 8.569184941 | AJ61: 1026.351351 | AK61: 1360.752453 | AL61: 1448.542934 | AM61: 3446.434802
A62: 1 | B62: 12000 | C62: 2013-10-06T17:41:27 | D62: 0 | E62: 0.06519 | F62: 477 | H62: ok Cost | I62: =LOG(ABS(I48-SUMPRODUCT(AH:AH,M:M)*24),10) -> -12.24531981 | K62: 60 | L62: 2013-10-07T08:24:48.284 | M62: 0.003057962423 | N62: =1 | O62: >=41554.350558846 | P62: <41554.3536168084 | Q62: >=10 | R62: Table | S62: Time | T62: Time | U62: Duration | V62: 115 | W62: 62 | X62: 52 | Y62: 1150000 | Z62: 2.25642 | AA62: 1.78018 | AB62: 16572 | AD62: 2013-10-07T10:27:00.388 | AE62: =IF($K62="_","_",IF(ISNUMBER(AN62),IF(OR(INT(AD62)<>MAX(AE$1:AE61),COUNT(AN$1:AN62)=COUNT(AN:AN)),INT(AD62)))) -> FALSE | AF62: Δ4m | AG62: =IF($K62="_","_",IF(COUNT(AN$1:AN62)=1,TEXT($I$30+$I$9/24,"┌yy-mm-dd hh:mm:ss┐ "),IF(COUNT(AN$1:AN62)=COUNT(AN:AN),TEXT($I$31+$I$9/24,"└yy-mm-dd hh:mm:ss┘ "),""))&TEXT(AD62,IF(AE62,"mmm d dddd hh:mm","hh:mm"))&REPT(" ",MAX(3*(5-LEN(AF62)),1))&AF62) -> 10:27 Δ4m | AH62: 24.25607526 | AI62: 6.489070365 | AJ62: 927.4193548 | AK62: 1180.887994 | AL62: 1430.691224 | AM62: 3763.399199 | AN62: 0
A63: 1 | B63: 21000 | C63: 2013-10-06T17:41:28 | D63: 0 | E63: 0.02557 | F63: 529 | H63: ok Margin | I63: =LOG(ABS(I47-I48-SUMPRODUCT(AI:AI,M:M)*24),10) -> -10.85086813 | K63: 61 | L63: 2013-10-07T08:29:12.492 | M63: 0.002955386038 | N63: Table | O63: Time | P63: Time | Q63: Duration | R63: =1 | S63: >=41554.3536168084 | T63: <41554.3565721944 | U63: >=10 | V63: 105 | W63: 42 | X63: 31 | Y63: 566000 | Z63: 1.81633 | AA63: 6.86402 | AB63: 6248 | AD63: 2013-10-07T10:31:20.165 | AE63: =IF($K63="_","_",IF(ISNUMBER(AN63),IF(OR(INT(AD63)<>MAX(AE$1:AE62),COUNT(AN$1:AN63)=COUNT(AN:AN)),INT(AD63)))) -> FALSE | AF63: Δ4m | AG63: =IF($K63="_","_",IF(COUNT(AN$1:AN63)=1,TEXT($I$30+$I$9/24,"┌yy-mm-dd hh:mm:ss┐ "),IF(COUNT(AN$1:AN63)=COUNT(AN:AN),TEXT($I$31+$I$9/24,"└yy-mm-dd hh:mm:ss┘ "),""))&TEXT(AD63,IF(AE63,"mmm d dddd hh:mm","hh:mm"))&REPT(" ",MAX(3*(5-LEN(AF63)),1))&AF63) -> 10:31 Δ4m | AH63: 96.77274971 | AI63: -71.16512495 | AJ63: 673.8095238 | AK63: 728.4252379 | AL63: 1738.821536 | AM63: 1468.129318
A64: 1 | B64: 7000 | C64: 2013-10-06T17:41:34 | D64: 0.00075 | E64: 0 | F64: 9 | H64: ok PDD | I64: =I46=SUMPRODUCT(AJ:AJ,W:W)*1000/$I$59 ->  | K64: 62 | L64: 2013-10-07T08:33:27.838 | M64: 0.002856250478 | N64: =1 | O64: >=41554.3565721944 | P64: <41554.3594284449 | Q64: >=10 | R64: Table | S64: Time | T64: Time | U64: Duration | V64: 108 | W64: 58 | X64: 52 | Y64: 876000 | Z64: 5.85118 | AA64: 3.02974 | AB64: 23264 | AD64: 2013-10-07T10:35:31.228 | AE64: =IF($K64="_","_",IF(ISNUMBER(AN64),IF(OR(INT(AD64)<>MAX(AE$1:AE63),COUNT(AN$1:AN64)=COUNT(AN:AN)),INT(AD64)))) -> FALSE | AF64: Δ4m | AG64: =IF($K64="_","_",IF(COUNT(AN$1:AN64)=1,TEXT($I$30+$I$9/24,"┌yy-mm-dd hh:mm:ss┐ "),IF(COUNT(AN$1:AN64)=COUNT(AN:AN),TEXT($I$31+$I$9/24,"└yy-mm-dd hh:mm:ss┘ "),""))&TEXT(AD64,IF(AE64,"mmm d dddd hh:mm","hh:mm"))&REPT(" ",MAX(3*(5-LEN(AF64)),1))&AF64) -> 10:35 Δ4m | AH64: 44.19751265 | AI64: 41.15885525 | AJ64: 755.1724138 | AK64: 1264.283766 | AL64: 1361.536363 | AM64: 5656.211063 | AN64: 0
A65: 2 | B65: 0 | C65: 2013-10-06T17:41:35 | H65: ok spoken | I65: =I44=SUMPRODUCT(M:M,AK:AK)*24*60/$I$60 -> TRUE | K65: 63 | L65: 2013-10-07T08:37:34.618 | M65: 0.002760440325 | N65: Table | O65: Time | P65: Time | Q65: Duration | R65: =1 | S65: >=41554.3594284449 | T65: <41554.3621888852 | U65: >=10 | V65: 90 | W65: 45 | X65: 38 | Y65: 614000 | Z65: 10.73374 | AA65: 7.27457 | AB65: 19177 | AD65: 2013-10-07T10:39:33.869 | AE65: =IF($K65="_","_",IF(ISNUMBER(AN65),IF(OR(INT(AD65)<>MAX(AE$1:AE64),COUNT(AN$1:AN65)=COUNT(AN:AN)),INT(AD65)))) -> FALSE | AF65: Δ4m | AG65: =IF($K65="_","_",IF(COUNT(AN$1:AN65)=1,TEXT($I$30+$I$9/24,"┌yy-mm-dd hh:mm:ss┐ "),IF(COUNT(AN$1:AN65)=COUNT(AN:AN),TEXT($I$31+$I$9/24,"└yy-mm-dd hh:mm:ss┘ "),""))&TEXT(AD65,IF(AE65,"mmm d dddd hh:mm","hh:mm"))&REPT(" ",MAX(3*(5-LEN(AF65)),1))&AF65) -> 10:39 Δ4m | AH65: 109.8038891 | AI65: 52.21343929 | AJ65: 682.2222222 | AK65: 955.9666495 | AL65: 1308.164889 | AM65: 4824.361168
A66: 1 | B66: 15000 | C66: 2013-10-06T17:41:38 | E66: 0 | F66: 189 | H66: ok failed | I66: =(I43+I45)=SUMPRODUCT(M:M,AL:AL)*24*60/$I$60 -> TRUE | K66: 64 | L66: 2013-10-07T08:41:33.120 | M66: 0.002667844031 | N66: =1 | O66: >=41554.3621888852 | P66: =IF($K66="_","_",IF(MOD(ROW()-1,2)=1,IF($K66<$I$27,"<"&($L66+$M66),">=0"),P$1)) -> <41554.3648567293 | Q66: =IF($K66="_","_",IF(MOD(ROW()-1,2)=1,">="&$I$39,Q$1)) -> >=10 | R66: Table | S66: Time | T66: =IF($K66="_","_",IF(MOD(ROW()-1,2)=0,IF($K66<$I$27,"<"&($L66+$M66),">=0"),T$1)) -> Time | U66: =IF($K66="_","_",IF(MOD(ROW()-1,2)=0,">="&$I$39,U$1)) -> Duration | V66: =IF($K66="_","_",DCOUNT($A:$F,"Time",IF(MOD(ROW()-1,2)=1,$O65:$P66,$S65:$T66))) -> 111 | W66: =IF($K66="_","_",DCOUNT($A:$F,"Time",IF(MOD(ROW()-1,2)=1,$N65:$P66,$R65:$T66))) -> 69 | X66: =IF($K66="_","_",DCOUNT($A:$F,"Time",IF(MOD(ROW()-1,2)=1,$N65:$Q66,$R65:$U66))) -> 61 | Y66: =IF($K66="_","_",DSUM($A:$F,Y$1,IF(MOD(ROW()-1,2)=1,$N65:$P66,$R65:$T66))) -> 896000 | Z66: =IF($K66="_","_",DSUM($A:$F,Z$1,IF(MOD(ROW()-1,2)=1,$N65:$P66,$R65:$T66))) -> 14.92926 | AA66: =IF($K66="_","_",DSUM($A:$F,AA$1,IF(MOD(ROW()-1,2)=1,$N65:$P66,$R65:$T66))) -> 8.86655 | AB66: =IF($K66="_","_",DSUM($A:$F,AB$1,IF(MOD(ROW()-1,2)=1,$N65:$P66,$R65:$T66))) -> 23473 | AD66: =IF($K66="_","_",L66+M66/2+$I$9/24) -> 2013-10-07T10:43:28.371 | AE66: =IF($K66="_","_",IF(ISNUMBER(AN66),IF(OR(INT(AD66)<>MAX(AE$1:AE65),COUNT(AN$1:AN66)=COUNT(AN:AN)),INT(AD66)))) -> FALSE | AF66: Δ4m | AG66: =IF($K66="_","_",IF(COUNT(AN$1:AN66)=1,TEXT($I$30+$I$9/24,"┌yy-mm-dd hh:mm:ss┐ "),IF(COUNT(AN$1:AN66)=COUNT(AN:AN),TEXT($I$31+$I$9/24,"└yy-mm-dd hh:mm:ss┘ "),""))&TEXT(AD66,IF(AE66,"mmm d dddd hh:mm","hh:mm"))&REPT(" ",MAX(3*(5-LEN(AF66)),1))&AF66) -> 10:43 Δ4m | AH66: 138.4787038 | AI66: 94.68803789 | AJ66: =IF($K66="_","_",IF(W66=0,NA(),Y66/W66/1000*$I$59)) -> 649.2753623 | AK66: =IF($K66="_","_",X66/($M66*24*60)*$I$60) -> 1587.840617 | AL66: =IF($K66="_","_",(V66-X66)/($M66*24*60)*$I$60) -> 1301.508702 | AM66: 6110.062753 | AN66: =IF($K66="_","_",IF(MOD(ROW()-2,$I$37)=0,0,NA())) -> 0
A67: 2 | B67: 0 | C67: 2013-10-06T17:41:39 | H67: ok duration | I67: =I49=SUMPRODUCT(AM:AM,M:M)*24*60 -> TRUE | K67: =IF(ISNUMBER(K66),IF(K66<$I$27,K66+1,"_"),"_") -> 65 | L67: 2013-10-07T08:45:23.621 | M67: =IF(K67="_","_",M66/$I$29) -> 0.002578353789 | N67: =IF($K67="_","_",IF(MOD(ROW()-1,2)=1,"=1",N$1)) -> Table | O67: =IF($K67="_","_",IF(MOD(ROW()-1,2)=1,">="&$L67,O$1)) -> Time | P67: Time | Q67: Duration | R67: =IF($K67="_","_",IF(MOD(ROW()-1,2)=0,"=1",R$1)) -> =1 | S67: =IF($K67="_","_",IF(MOD(ROW()-1,2)=0,">="&$L67,S$1)) -> >=41554.3648567293 | T67: <41554.367435083 | U67: >=10 | V67: 94 | W67: 54 | X67: 50 | Y67: 733000 | Z67: 4.81534 | AA67: 5.44404 | AB67: 16105 | AD67: 2013-10-07T10:47:15.006 | AE67: =IF($K67="_","_",IF(ISNUMBER(AN67),IF(OR(INT(AD67)<>MAX(AE$1:AE66),COUNT(AN$1:AN67)=COUNT(AN:AN)),INT(AD67)))) -> FALSE | AF67: =IF($K67="_","_","Δ"&IF(M67>1,TEXT(M67,"0\d"),IF(M67>1/24,TEXT(M67*24,"0\h"),IF(M67>1/(24*60),TEXT(M67*24*60,"0\m"),TEXT(M67*24*60*60,"0\s"))))) -> Δ4m | AG67: =IF($K67="_","_",IF(COUNT(AN$1:AN67)=1,TEXT($I$30+$I$9/24,"┌yy-mm-dd hh:mm:ss┐ "),IF(COUNT(AN$1:AN67)=COUNT(AN:AN),TEXT($I$31+$I$9/24,"└yy-mm-dd hh:mm:ss┘ "),""))&TEXT(AD67,IF(AE67,"mmm d dddd hh:mm","hh:mm"))&REPT(" ",MAX(3*(5-LEN(AF67)),1))&AF67) -> 10:47 Δ4m | AH67: =IF($K67="_","_",AA67/($M67*24)) -> 87.97667758 | AI67: =IF($K67="_","_",(Z67-AA67)/($M67*24)) -> -10.15990647 | AJ67: 678.7037037 | AK67: 1346.681839 | AL67: 1185.080018 | AM67: =IF($K67="_","_",(AB67/60)/($M67*24)) -> 4337.662203
A68: 1 | B68: 14000 | C68: 2013-10-06T17:41:44 | D68: 0 | E68: 0.05836 | F68: 427 | K68: 66 | L68: =IF(K68="_","_",L67+M67) -> 2013-10-07T08:49:06.391 | M68: 0.002491865411 | N68: =1 | O68: >=41554.367435083 | P68: <41554.3699269484 | Q68: >=10 | R68: Table | S68: Time | T68: Time | U68: Duration | V68: 94 | W68: 51 | X68: 43 | Y68: 765000 | Z68: 6.87517 | AA68: 5.44538 | AB68: 14106 | AD68: 2013-10-07T10:50:54.040 | AE68: =IF($K68="_","_",IF(ISNUMBER(AN68),IF(OR(INT(AD68)<>MAX(AE$1:AE67),COUNT(AN$1:AN68)=COUNT(AN:AN)),INT(AD68)))) -> FALSE | AF68: Δ4m | AG68: =IF($K68="_","_",IF(COUNT(AN$1:AN68)=1,TEXT($I$30+$I$9/24,"┌yy-mm-dd hh:mm:ss┐ "),IF(COUNT(AN$1:AN68)=COUNT(AN:AN),TEXT($I$31+$I$9/24,"└yy-mm-dd hh:mm:ss┘ "),""))&TEXT(AD68,IF(AE68,"mmm d dddd hh:mm","hh:mm"))&REPT(" ",MAX(3*(5-LEN(AF68)),1))&AF68) -> 10:50 Δ4m | AH68: 91.05260353 | AI68: 23.90762481 | AJ68: 750 | AK68: 1198.343658 | AL68: 1421.291315 | AM68: 3931.124566 | AN68: 0
A69: 1 | B69: 55000 | C69: 2013-10-06T17:41:46 | D69: 0 | E69: 0.00205 | F69: 15 | H69: chunk_calculate | I69: =I24&"!"&ADDRESS(ROW(I70:I93),COLUMN(I70:I93))&":"&ADDRESS(ROW(I70:I93)+ROWS(I70:I93)-1,COLUMN(I70:I93)) -> 'data sheet'!$I$70:$I$93 | K69: 67 | L69: 2013-10-07T08:52:41.688 | M69: 0.002408278202 | N69: Table | O69: Time | P69: Time | Q69: Duration | R69: =1 | S69: >=41554.3699269484 | T69: <41554.3723352267 | U69: >=10 | V69: 85 | W69: 46 | X69: 39 | Y69: 684000 | Z69: 7.2607 | AA69: 6.44436 | AB69: 14292 | AD69: 2013-10-07T10:54:25.726 | AE69: =IF($K69="_","_",IF(ISNUMBER(AN69),IF(OR(INT(AD69)<>MAX(AE$1:AE68),COUNT(AN$1:AN69)=COUNT(AN:AN)),INT(AD69)))) -> FALSE | AF69: Δ3m | AG69: =IF($K69="_","_",IF(COUNT(AN$1:AN69)=1,TEXT($I$30+$I$9/24,"┌yy-mm-dd hh:mm:ss┐ "),IF(COUNT(AN$1:AN69)=COUNT(AN:AN),TEXT($I$31+$I$9/24,"└yy-mm-dd hh:mm:ss┘ "),""))&TEXT(AD69,IF(AE69,"mmm d dddd hh:mm","hh:mm"))&REPT(" ",MAX(3*(5-LEN(AF69)),1))&AF69) -> 10:54 Δ3m | AH69: =IF($K69="_","_",AA69/($M69*24)) -> 111.49667 | AI69: =IF($K69="_","_",(Z69-AA69)/($M69*24)) -> 14.12385273 | AJ69: 743.4782609 | AK69: 1124.593218 | AL69: 1326.443283 | AM69: =IF($K69="_","_",(AB69/60)/($M69*24)) -> 4121.201609
A70: 1 | B70: 14000 | C70: 2013-10-06T17:41:47 | D70: 0.1 | E70: 0.0551 | F70: 290 | H70: chunk_last | I70: 2013-10-06T21:00:00 | K70: 68 | L70: =IF(K70="_","_",L69+M69) -> 2013-10-07T08:56:09.764 | M70: 0.002327494844 | N70: =1 | O70: >=41554.3723352267 | P70: <41554.3746627215 | Q70: >=10 | R70: Table | S70: Time | T70: Time | U70: Duration | V70: 94 | W70: 47 | X70: 40 | Y70: 796000 | Z70: 18.54094 | AA70: 7.87489 | AB70: 18923 | AD70: 2013-10-07T10:57:50.311 | AE70: =IF($K70="_","_",IF(ISNUMBER(AN70),IF(OR(INT(AD70)<>MAX(AE$1:AE69),COUNT(AN$1:AN70)=COUNT(AN:AN)),INT(AD70)))) -> FALSE | AF70: Δ3m | AG70: =IF($K70="_","_",IF(COUNT(AN$1:AN70)=1,TEXT($I$30+$I$9/24,"┌yy-mm-dd hh:mm:ss┐ "),IF(COUNT(AN$1:AN70)=COUNT(AN:AN),TEXT($I$31+$I$9/24,"└yy-mm-dd hh:mm:ss┘ "),""))&TEXT(AD70,IF(AE70,"mmm d dddd hh:mm","hh:mm"))&REPT(" ",MAX(3*(5-LEN(AF70)),1))&AF70) -> 10:57 Δ3m | AH70: 140.9757867 | AI70: 190.9429579 | AJ70: 846.8085106 | AK70: 1193.462484 | AL70: 1611.174353 | AM70: 5645.972645 | AN70: 0
A71: 1 | B71: 9000 | C71: 2013-10-06T17:41:48 | D71: 0.10383 | E71: 0 | F71: 1246 | H71: chunk min | I71: 6 | K71: 69 | L71: 2013-10-07T08:59:30.859 | M71: 0.002249421286 | N71: Table | O71: Time | P71: Time | Q71: Duration | R71: =1 | S71: >=41554.3746627215 | T71: <41554.3769121428 | U71: >=10 | V71: 59 | W71: 34 | X71: 29 | Y71: 448000 | Z71: 4.12276 | AA71: 3.87408 | AB71: 6101 | AD71: 2013-10-07T11:01:08.034 | AE71: =IF($K71="_","_",IF(ISNUMBER(AN71),IF(OR(INT(AD71)<>MAX(AE$1:AE70),COUNT(AN$1:AN71)=COUNT(AN:AN)),INT(AD71)))) -> FALSE | AF71: Δ3m | AG71: =IF($K71="_","_",IF(COUNT(AN$1:AN71)=1,TEXT($I$30+$I$9/24,"┌yy-mm-dd hh:mm:ss┐ "),IF(COUNT(AN$1:AN71)=COUNT(AN:AN),TEXT($I$31+$I$9/24,"└yy-mm-dd hh:mm:ss┘ "),""))&TEXT(AD71,IF(AE71,"mmm d dddd hh:mm","hh:mm"))&REPT(" ",MAX(3*(5-LEN(AF71)),1))&AF71) -> 11:01 Δ3m | AH71: 71.76067951 | AI71: 4.606369972 | AJ71: 658.8235294 | AK71: 895.292003 | AL71: 926.164141 | AM71: 1883.509141
A72: 2 | B72: 0 | C72: 2013-10-06T17:41:56 | H72: chunk max | I72: 36 | K72: 70 | L72: 2013-10-07T09:02:45.209 | M72: 0.00217396663 | N72: =1 | O72: >=41554.3769121428 | P72: <41554.3790861094 | Q72: >=10 | R72: Table | S72: Time | T72: Time | U72: Duration | V72: 81 | W72: 51 | X72: 43 | Y72: 812000 | Z72: 2.81958 | AA72: 2.30606 | AB72: 13550 | AD72: 2013-10-07T11:04:19.124 | AE72: =IF($K72="_","_",IF(ISNUMBER(AN72),IF(OR(INT(AD72)<>MAX(AE$1:AE71),COUNT(AN$1:AN72)=COUNT(AN:AN)),INT(AD72)))) -> FALSE | AF72: Δ3m | AG72: =IF($K72="_","_",IF(COUNT(AN$1:AN72)=1,TEXT($I$30+$I$9/24,"┌yy-mm-dd hh:mm:ss┐ "),IF(COUNT(AN$1:AN72)=COUNT(AN:AN),TEXT($I$31+$I$9/24,"└yy-mm-dd hh:mm:ss┘ "),""))&TEXT(AD72,IF(AE72,"mmm d dddd hh:mm","hh:mm"))&REPT(" ",MAX(3*(5-LEN(AF72)),1))&AF72) -> 11:04 Δ3m | AH72: 44.19839385 | AI72: 9.842224058 | AJ72: 796.0784314 | AK72: 1373.577253 | AL72: 1213.858967 | AM72: 4328.365529 | AN72: 0
A73: 2 | B73: 0 | C73: 2013-10-06T17:41:56 | H73: chunk gap | I73: 12 | K73: 71 | L73: 2013-10-07T09:05:53.040 | M73: 0.002101043027 | N73: Table | O73: Time | P73: Time | Q73: Duration | R73: =1 | S73: >=41554.3790861094 | T73: <41554.3811871525 | U73: >=10 | V73: 92 | W73: 49 | X73: 39 | Y73: 679000 | Z73: 8.64008 | AA73: 7.42901 | AB73: 8516 | AD73: 2013-10-07T11:07:23.805 | AE73: =IF($K73="_","_",IF(ISNUMBER(AN73),IF(OR(INT(AD73)<>MAX(AE$1:AE72),COUNT(AN$1:AN73)=COUNT(AN:AN)),INT(AD73)))) -> FALSE | AF73: Δ3m | AG73: =IF($K73="_","_",IF(COUNT(AN$1:AN73)=1,TEXT($I$30+$I$9/24,"┌yy-mm-dd hh:mm:ss┐ "),IF(COUNT(AN$1:AN73)=COUNT(AN:AN),TEXT($I$31+$I$9/24,"└yy-mm-dd hh:mm:ss┘ "),""))&TEXT(AD73,IF(AE73,"mmm d dddd hh:mm","hh:mm"))&REPT(" ",MAX(3*(5-LEN(AF73)),1))&AF73) -> 11:07 Δ3m | AH73: 147.3278173 | AI73: 24.0172378 | AJ73: 692.8571429 | AK73: 1289.042299 | AL73: 1751.775432 | AM73: 2814.739542
A74: 2 | B74: 0 | C74: 2013-10-06T17:41:56 | H74: chunk start | I74: =CEILING(MAX(MIN(C:C),chunk_last),1/24) -> 2013-10-06T21:00:00 | K74: 72 | L74: 2013-10-07T09:08:54.570 | M74: 0.002030565576 | N74: =1 | O74: >=41554.3811871525 | P74: <41554.383217718 | Q74: >=10 | R74: Table | S74: Time | T74: Time | U74: Duration | V74: 82 | W74: 44 | X74: 42 | Y74: 637000 | Z74: 2.84989 | AA74: 3.60186 | AB74: 11961 | AD74: 2013-10-07T11:10:22.290 | AE74: =IF($K74="_","_",IF(ISNUMBER(AN74),IF(OR(INT(AD74)<>MAX(AE$1:AE73),COUNT(AN$1:AN74)=COUNT(AN:AN)),INT(AD74)))) -> FALSE | AF74: Δ3m | AG74: =IF($K74="_","_",IF(COUNT(AN$1:AN74)=1,TEXT($I$30+$I$9/24,"┌yy-mm-dd hh:mm:ss┐ "),IF(COUNT(AN$1:AN74)=COUNT(AN:AN),TEXT($I$31+$I$9/24,"└yy-mm-dd hh:mm:ss┘ "),""))&TEXT(AD74,IF(AE74,"mmm d dddd hh:mm","hh:mm"))&REPT(" ",MAX(3*(5-LEN(AF74)),1))&AF74) -> 11:10 Δ3m | AH74: 73.9092112 | AI74: -15.43022481 | AJ74: 723.8636364 | AK74: 1436.381421 | AL74: 1367.982306 | AM74: 4090.609089 | AN74: 0
A75: 2 | B75: 0 | C75: 2013-10-06T17:41:56 | H75: chunk_stop | I75: =I74+MIN(-I74+FLOOR(MAX(C:C),1/24)-I73/24,I72/24) -> 2013-10-06T22:00:00 | K75: 73 | L75: 2013-10-07T09:11:50.011 | M75: 0.001962452222 | N75: Table | O75: Time | P75: Time | Q75: Duration | R75: =1 | S75: >=41554.383217718 | T75: <41554.3851801703 | U75: >=10 | V75: 85 | W75: 41 | X75: 38 | Y75: 578000 | Z75: 3.415 | AA75: 3.86197 | AB75: 4091 | AD75: 2013-10-07T11:13:14.789 | AE75: =IF($K75="_","_",IF(ISNUMBER(AN75),IF(OR(INT(AD75)<>MAX(AE$1:AE74),COUNT(AN$1:AN75)=COUNT(AN:AN)),INT(AD75)))) -> FALSE | AF75: Δ3m | AG75: =IF($K75="_","_",IF(COUNT(AN$1:AN75)=1,TEXT($I$30+$I$9/24,"┌yy-mm-dd hh:mm:ss┐ "),IF(COUNT(AN$1:AN75)=COUNT(AN:AN),TEXT($I$31+$I$9/24,"└yy-mm-dd hh:mm:ss┘ "),""))&TEXT(AD75,IF(AE75,"mmm d dddd hh:mm","hh:mm"))&REPT(" ",MAX(3*(5-LEN(AF75)),1))&AF75) -> 11:13 Δ3m | AH75: 81.99711303 | AI75: -9.490039956 | AJ75: 704.8780488 | AK75: 1344.689496 | AL75: 1663.168587 | AM75: 1447.664402
A76: 2 | B76: 0 | C76: 2013-10-06T17:41:56 | H76: chunk begin | I76: =COUNTIF(C:C,"<"&I74)+1+1 -> 3705 | K76: 74 | L76: 2013-10-07T09:14:39.567 | M76: 0.001896623665 | N76: =1 | O76: >=41554.3851801703 | P76: <41554.3870767939 | Q76: >=10 | R76: Table | S76: Time | T76: Time | U76: Duration | V76: 77 | W76: 39 | X76: 36 | Y76: 536000 | Z76: 1.56684 | AA76: 2.31984 | AB76: 13544 | AD76: 2013-10-07T11:16:01.501 | AE76: =IF($K76="_","_",IF(ISNUMBER(AN76),IF(OR(INT(AD76)<>MAX(AE$1:AE75),COUNT(AN$1:AN76)=COUNT(AN:AN)),INT(AD76)))) -> FALSE | AF76: Δ3m | AG76: =IF($K76="_","_",IF(COUNT(AN$1:AN76)=1,TEXT($I$30+$I$9/24,"┌yy-mm-dd hh:mm:ss┐ "),IF(COUNT(AN$1:AN76)=COUNT(AN:AN),TEXT($I$31+$I$9/24,"└yy-mm-dd hh:mm:ss┘ "),""))&TEXT(AD76,IF(AE76,"mmm d dddd hh:mm","hh:mm"))&REPT(" ",MAX(3*(5-LEN(AF76)),1))&AF76) -> 11:16 Δ3m | AH76: 50.96424862 | AI76: -16.54255432 | AJ76: 687.1794872 | AK76: 1318.131818 | AL76: 1501.205682 | AM76: 4959.104818 | AN76: 0
A77: 2 | B77: 0 | C77: 2013-10-06T17:42:01 | H77: chunk end | I77: =COUNTIF(C:C,"<"&chunk_stop)+1 -> 3942 | K77: 75 | L77: 2013-10-07T09:17:23.435 | M77: 0.001833003263 | N77: Table | O77: Time | P77: Time | Q77: Duration | R77: =1 | S77: >=41554.3870767939 | T77: <41554.3889097971 | U77: >=10 | V77: 77 | W77: 39 | X77: 35 | Y77: 571000 | Z77: 1.2405 | AA77: 4.45952 | AB77: 13031 | AD77: 2013-10-07T11:18:42.621 | AE77: =IF($K77="_","_",IF(ISNUMBER(AN77),IF(OR(INT(AD77)<>MAX(AE$1:AE76),COUNT(AN$1:AN77)=COUNT(AN:AN)),INT(AD77)))) -> FALSE | AF77: Δ3m | AG77: =IF($K77="_","_",IF(COUNT(AN$1:AN77)=1,TEXT($I$30+$I$9/24,"┌yy-mm-dd hh:mm:ss┐ "),IF(COUNT(AN$1:AN77)=COUNT(AN:AN),TEXT($I$31+$I$9/24,"└yy-mm-dd hh:mm:ss┘ "),""))&TEXT(AD77,IF(AE77,"mmm d dddd hh:mm","hh:mm"))&REPT(" ",MAX(3*(5-LEN(AF77)),1))&AF77) -> 11:18 Δ3m | AH77: 101.3709779 | AI77: -73.17271936 | AJ77: 732.0512821 | AK77: 1325.996306 | AL77: 1591.195567 | AM77: 4936.873675
A78: 2 | B78: 0 | C78: 2013-10-06T17:42:09 | H78: chunk area | I78: =IF(I77>=I76,"C"&I76&":C"&I77) -> C3705:C3942 | K78: 76 | L78: 2013-10-07T09:20:01.806 | M78: 0.001771516946 | N78: =1 | O78: >=41554.3889097971 | P78: <41554.3906813141 | Q78: >=10 | R78: Table | S78: Time | T78: Time | U78: Duration | V78: 68 | W78: 38 | X78: 35 | Y78: 539000 | Z78: 1.54884 | AA78: 1.96416 | AB78: 7349 | AD78: 2013-10-07T11:21:18.336 | AE78: =IF($K78="_","_",IF(ISNUMBER(AN78),IF(OR(INT(AD78)<>MAX(AE$1:AE77),COUNT(AN$1:AN78)=COUNT(AN:AN)),INT(AD78)))) -> FALSE | AF78: Δ3m | AG78: =IF($K78="_","_",IF(COUNT(AN$1:AN78)=1,TEXT($I$30+$I$9/24,"┌yy-mm-dd hh:mm:ss┐ "),IF(COUNT(AN$1:AN78)=COUNT(AN:AN),TEXT($I$31+$I$9/24,"└yy-mm-dd hh:mm:ss┘ "),""))&TEXT(AD78,IF(AE78,"mmm d dddd hh:mm","hh:mm"))&REPT(" ",MAX(3*(5-LEN(AF78)),1))&AF78) -> 11:21 Δ3m | AH78: 46.19769526 | AI78: -9.768464278 | AJ78: 709.2105263 | AK78: 1372.019365 | AL78: 1293.618259 | AM78: 2880.848662 | AN78: 0
A79: 1 | B79: 37000 | C79: 2013-10-06T17:42:10 | D79: 0 | E79: 0.00063 | F79: 3 | H79: chunk count1 | I79: =MAX(0,I77-I76+1) -> 238 | K79: 77 | L79: 2013-10-07T09:22:34.866 | M79: 0.001712093127 | N79: Table | O79: Time | P79: Time | Q79: Duration | R79: =1 | S79: >=41554.3906813141 | T79: <41554.3923934073 | U79: >=10 | V79: 64 | W79: 32 | X79: 29 | Y79: 500000 | Z79: 1.15801 | AA79: 3.30462 | AB79: 19862 | AD79: 2013-10-07T11:23:48.828 | AE79: =IF($K79="_","_",IF(ISNUMBER(AN79),IF(OR(INT(AD79)<>MAX(AE$1:AE78),COUNT(AN$1:AN79)=COUNT(AN:AN)),INT(AD79)))) -> FALSE | AF79: Δ2m | AG79: =IF($K79="_","_",IF(COUNT(AN$1:AN79)=1,TEXT($I$30+$I$9/24,"┌yy-mm-dd hh:mm:ss┐ "),IF(COUNT(AN$1:AN79)=COUNT(AN:AN),TEXT($I$31+$I$9/24,"└yy-mm-dd hh:mm:ss┘ "),""))&TEXT(AD79,IF(AE79,"mmm d dddd hh:mm","hh:mm"))&REPT(" ",MAX(3*(5-LEN(AF79)),1))&AF79) -> 11:23 Δ2m | AH79: 80.42348738 | AI79: -52.2413658 | AJ79: 781.25 | AK79: 1176.272982 | AL79: 1419.639806 | AM79: 8056.253096
A80: 2 | B80: 0 | C80: 2013-10-06T17:42:13 | H80: chunk count2 | I80: =IF(I78=FALSE,0,COUNT(INDIRECT(I78))) -> 238 | K80: 78 | L80: 2013-10-07T09:25:02.790 | M80: 0.001654662623 | N80: =1 | O80: >=41554.3923934073 | P80: <41554.3940480699 | Q80: >=10 | R80: Table | S80: Time | T80: Time | U80: Duration | V80: 61 | W80: 40 | X80: 37 | Y80: 614000 | Z80: 4.32866 | AA80: 2.86001 | AB80: 12239 | AD80: 2013-10-07T11:26:14.272 | AE80: =IF($K80="_","_",IF(ISNUMBER(AN80),IF(OR(INT(AD80)<>MAX(AE$1:AE79),COUNT(AN$1:AN80)=COUNT(AN:AN)),INT(AD80)))) -> FALSE | AF80: Δ2m | AG80: =IF($K80="_","_",IF(COUNT(AN$1:AN80)=1,TEXT($I$30+$I$9/24,"┌yy-mm-dd hh:mm:ss┐ "),IF(COUNT(AN$1:AN80)=COUNT(AN:AN),TEXT($I$31+$I$9/24,"└yy-mm-dd hh:mm:ss┘ "),""))&TEXT(AD80,IF(AE80,"mmm d dddd hh:mm","hh:mm"))&REPT(" ",MAX(3*(5-LEN(AF80)),1))&AF80) -> 11:26 Δ2m | AH80: =IF($K80="_","_",AA80/($M80*24)) -> 72.01896125 | AI80: =IF($K80="_","_",(Z80-AA80)/($M80*24)) -> 36.98261455 | AJ80: 767.5 | AK80: 1552.850961 | AL80: 1007.254677 | AM80: =IF($K80="_","_",(AB80/60)/($M80*24)) -> 5136.579166 | AN80: 0
A81: 1 | B81: 27000 | C81: 2013-10-06T17:42:14 | D81: 0.01467 | E81: 0.01503 | F81: 8 | H81: chunk count3 | I81: =IF(I78=FALSE,0,COUNTIF(INDIRECT(I78),">="&I74)) -> 238 | K81: 79 | L81: =IF(K81="_","_",L80+M80) -> 2013-10-07T09:27:25.753 | M81: 0.00159915857 | N81: Table | O81: Time | P81: Time | Q81: Duration | R81: =1 | S81: >=41554.3940480699 | T81: <41554.3956472284 | U81: >=10 | V81: 43 | W81: 28 | X81: 25 | Y81: 467000 | Z81: 3.61058 | AA81: 3.61116 | AB81: 6338 | AD81: 2013-10-07T11:28:34.837 | AE81: =IF($K81="_","_",IF(ISNUMBER(AN81),IF(OR(INT(AD81)<>MAX(AE$1:AE80),COUNT(AN$1:AN81)=COUNT(AN:AN)),INT(AD81)))) -> FALSE | AF81: Δ2m | AG81: =IF($K81="_","_",IF(COUNT(AN$1:AN81)=1,TEXT($I$30+$I$9/24,"┌yy-mm-dd hh:mm:ss┐ "),IF(COUNT(AN$1:AN81)=COUNT(AN:AN),TEXT($I$31+$I$9/24,"└yy-mm-dd hh:mm:ss┘ "),""))&TEXT(AD81,IF(AE81,"mmm d dddd hh:mm","hh:mm"))&REPT(" ",MAX(3*(5-LEN(AF81)),1))&AF81) -> 11:28 Δ2m | AH81: 94.09010643 | AI81: -0.01511211404 | AJ81: 833.9285714 | AK81: 1085.640376 | AL81: 781.6610709 | AM81: 2752.315482
A82: 2 | B82: 0 | C82: 2013-10-06T17:42:18 | H82: chunk count4 | I82: =IF(I78=FALSE,0,COUNTIF(INDIRECT(I78),"<"&I75)) -> 238 | K82: 80 | L82: 2013-10-07T09:29:43.921 | M82: 0.001545516346 | N82: =1 | O82: >=41554.3956472284 | P82: <41554.3971927448 | Q82: >=10 | R82: Table | S82: Time | T82: Time | U82: Duration | V82: 39 | W82: 25 | X82: 24 | Y82: 353000 | Z82: 1.004 | AA82: 1.39444 | AB82: 6737 | AD82: 2013-10-07T11:30:50.687 | AE82: =IF($K82="_","_",IF(ISNUMBER(AN82),IF(OR(INT(AD82)<>MAX(AE$1:AE81),COUNT(AN$1:AN82)=COUNT(AN:AN)),INT(AD82)))) -> FALSE | AF82: Δ2m | AG82: =IF($K82="_","_",IF(COUNT(AN$1:AN82)=1,TEXT($I$30+$I$9/24,"┌yy-mm-dd hh:mm:ss┐ "),IF(COUNT(AN$1:AN82)=COUNT(AN:AN),TEXT($I$31+$I$9/24,"└yy-mm-dd hh:mm:ss┘ "),""))&TEXT(AD82,IF(AE82,"mmm d dddd hh:mm","hh:mm"))&REPT(" ",MAX(3*(5-LEN(AF82)),1))&AF82) -> 11:30 Δ2m | AH82: 37.59369277 | AI82: -10.5261477 | AJ82: 706 | AK82: 1078.38825 | AL82: 673.992656 | AM82: 3027.125682 | AN82: 0
A83: 2 | B83: 0 | C83: 2013-10-06T17:42:18 | H83: chunk valid | I83: =MIN(I79:I82)=MAX(I79:I82) -> TRUE | K83: 81 | L83: 2013-10-07T09:31:57.453 | M83: 0.001493673498 | N83: Table | O83: Time | P83: Time | Q83: Duration | R83: =1 | S83: >=41554.3971927448 | T83: <41554.3986864183 | U83: >=10 | V83: 54 | W83: 28 | X83: 27 | Y83: 395000 | Z83: 0.90224 | AA83: 2.44361 | AB83: 13924 | AD83: 2013-10-07T11:33:01.980 | AE83: =IF($K83="_","_",IF(ISNUMBER(AN83),IF(OR(INT(AD83)<>MAX(AE$1:AE82),COUNT(AN$1:AN83)=COUNT(AN:AN)),INT(AD83)))) -> FALSE | AF83: Δ2m | AG83: =IF($K83="_","_",IF(COUNT(AN$1:AN83)=1,TEXT($I$30+$I$9/24,"┌yy-mm-dd hh:mm:ss┐ "),IF(COUNT(AN$1:AN83)=COUNT(AN:AN),TEXT($I$31+$I$9/24,"└yy-mm-dd hh:mm:ss┘ "),""))&TEXT(AD83,IF(AE83,"mmm d dddd hh:mm","hh:mm"))&REPT(" ",MAX(3*(5-LEN(AF83)),1))&AF83) -> 11:33 Δ2m | AH83: 68.16555523 | AI83: -42.99718116 | AJ83: 705.3571429 | AK83: 1255.294415 | AL83: 1255.294415 | AM83: 6473.59979
A84: 2 | B84: 0 | C84: 2013-10-06T17:42:18 | H84: chunk range | I84: ="'"&TEXT(I74,"yyyy-mm-dd hh:mm:ss")&"' and '"&TEXT(chunk_stop-TIME(0,0,1),"yyyy-mm-dd hh:mm:ss")&"'" -> '2013-10-06 21:00:00' and '2013-10-06 21:59:59' | K84: 82 | L84: 2013-10-07T09:34:06.507 | M84: 0.001443569669 | N84: =1 | O84: >=41554.3986864183 | P84: <41554.400129988 | Q84: >=10 | R84: Table | S84: Time | T84: Time | U84: Duration | V84: 34 | W84: 24 | X84: 21 | Y84: 451000 | Z84: 3.62074 | AA84: 3.23952 | AB84: 13104 | AD84: 2013-10-07T11:35:08.869 | AE84: =IF($K84="_","_",IF(ISNUMBER(AN84),IF(OR(INT(AD84)<>MAX(AE$1:AE83),COUNT(AN$1:AN84)=COUNT(AN:AN)),INT(AD84)))) -> FALSE | AF84: Δ2m | AG84: =IF($K84="_","_",IF(COUNT(AN$1:AN84)=1,TEXT($I$30+$I$9/24,"┌yy-mm-dd hh:mm:ss┐ "),IF(COUNT(AN$1:AN84)=COUNT(AN:AN),TEXT($I$31+$I$9/24,"└yy-mm-dd hh:mm:ss┘ "),""))&TEXT(AD84,IF(AE84,"mmm d dddd hh:mm","hh:mm"))&REPT(" ",MAX(3*(5-LEN(AF84)),1))&AF84) -> 11:35 Δ2m | AH84: 93.50431982 | AI84: 11.00339458 | AJ84: 939.5833333 | AK84: 1010.227192 | AL84: 625.378738 | AM84: 6303.817679 | AN84: 0
A85: 1 | B85: 14000 | C85: 2013-10-06T17:42:21 | D85: 0 | E85: 0.04408 | F85: 232 | H85: chunk_measure | I85: =IF(AND(ROUND(chunk_stop-I74,5)>=ROUND(I71/24,5),I83),"select count(1) from CDR_Vendors where disconnect_time between " & I84 & " union all select count(2) from CDR_Vendors_Failed where connect_time between " & I84) -> FALSE | K85: 83 | L85: 2013-10-07T09:36:11.231 | M85: 0.001395146524 | N85: Table | O85: Time | P85: Time | Q85: Duration | R85: =1 | S85: >=41554.400129988 | T85: <41554.4015251345 | U85: >=10 | V85: 42 | W85: 23 | X85: 21 | Y85: 367000 | Z85: 0.82076 | AA85: 1.43507 | AB85: 6926 | AD85: 2013-10-07T11:37:11.501 | AE85: =IF($K85="_","_",IF(ISNUMBER(AN85),IF(OR(INT(AD85)<>MAX(AE$1:AE84),COUNT(AN$1:AN85)=COUNT(AN:AN)),INT(AD85)))) -> FALSE | AF85: Δ2m | AG85: =IF($K85="_","_",IF(COUNT(AN$1:AN85)=1,TEXT($I$30+$I$9/24,"┌yy-mm-dd hh:mm:ss┐ "),IF(COUNT(AN$1:AN85)=COUNT(AN:AN),TEXT($I$31+$I$9/24,"└yy-mm-dd hh:mm:ss┘ "),""))&TEXT(AD85,IF(AE85,"mmm d dddd hh:mm","hh:mm"))&REPT(" ",MAX(3*(5-LEN(AF85)),1))&AF85) -> 11:37 Δ2m | AH85: 42.8589989 | AI85: -18.34663927 | AJ85: 797.826087 | AK85: 1045.290447 | AL85: 1045.290447 | AM85: 3447.467445
A86: 1 | B86: 12000 | C86: 2013-10-06T17:42:22 | D86: 0 | E86: 0.14326 | F86: 754 | H86: chunk_answered | K86: 84 | L86: 2013-10-07T09:38:11.772 | M86: 0.001348347686 | N86: =1 | O86: >=41554.4015251345 | P86: <41554.4028734822 | Q86: >=10 | R86: Table | S86: Time | T86: Time | U86: Duration | V86: 49 | W86: 26 | X86: 26 | Y86: 363000 | Z86: 3.73833 | AA86: 2.44284 | AB86: 8843 | AD86: 2013-10-07T11:39:10.020 | AE86: =IF($K86="_","_",IF(ISNUMBER(AN86),IF(OR(INT(AD86)<>MAX(AE$1:AE85),COUNT(AN$1:AN86)=COUNT(AN:AN)),INT(AD86)))) -> FALSE | AF86: Δ2m | AG86: =IF($K86="_","_",IF(COUNT(AN$1:AN86)=1,TEXT($I$30+$I$9/24,"┌yy-mm-dd hh:mm:ss┐ "),IF(COUNT(AN$1:AN86)=COUNT(AN:AN),TEXT($I$31+$I$9/24,"└yy-mm-dd hh:mm:ss┘ "),""))&TEXT(AD86,IF(AE86,"mmm d dddd hh:mm","hh:mm"))&REPT(" ",MAX(3*(5-LEN(AF86)),1))&AF86) -> 11:39 Δ2m | AH86: 75.48868963 | AI86: 40.03325741 | AJ86: 698.0769231 | AK86: 1339.087517 | AL86: 1184.577419 | AM86: 4554.442659 | AN86: 0
A87: 2 | B87: 0 | C87: 2013-10-06T17:42:29 | H87: chunk_failed | K87: 85 | L87: 2013-10-07T09:40:08.269 | M87: 0.00130311867 | N87: Table | O87: Time | P87: Time | Q87: Duration | R87: =1 | S87: >=41554.4028734822 | T87: <41554.4041766008 | U87: >=10 | V87: 52 | W87: 24 | X87: 22 | Y87: 314000 | Z87: 3.52999 | AA87: 3.06222 | AB87: 8926 | AD87: 2013-10-07T11:41:04.564 | AE87: =IF($K87="_","_",IF(ISNUMBER(AN87),IF(OR(INT(AD87)<>MAX(AE$1:AE86),COUNT(AN$1:AN87)=COUNT(AN:AN)),INT(AD87)))) -> FALSE | AF87: Δ2m | AG87: =IF($K87="_","_",IF(COUNT(AN$1:AN87)=1,TEXT($I$30+$I$9/24,"┌yy-mm-dd hh:mm:ss┐ "),IF(COUNT(AN$1:AN87)=COUNT(AN:AN),TEXT($I$31+$I$9/24,"└yy-mm-dd hh:mm:ss┘ "),""))&TEXT(AD87,IF(AE87,"mmm d dddd hh:mm","hh:mm"))&REPT(" ",MAX(3*(5-LEN(AF87)),1))&AF87) -> 11:41 Δ2m | AH87: =IF($K87="_","_",AA87/($M87*24)) -> 97.91318542 | AI87: =IF($K87="_","_",(Z87-AA87)/($M87*24)) -> 14.95674731 | AJ87: 654.1666667 | AK87: 1172.401112 | AL87: 1598.728789 | AM87: =IF($K87="_","_",(AB87/60)/($M87*24)) -> 4756.751056
A88: 2 | B88: 0 | C88: 2013-10-06T17:42:32 | H88: chunk missing | I88: =chunk_answered+chunk_failed-I79 -> -238 | K88: 86 | L88: =IF(K88="_","_",L87+M87) -> 2013-10-07T09:42:00.858 | M88: 0.001259406818 | N88: =1 | O88: >=41554.4041766008 | P88: <41554.4054360077 | Q88: >=10 | R88: Table | S88: Time | T88: Time | U88: Duration | V88: 53 | W88: 29 | X88: 26 | Y88: 430000 | Z88: 3.47359 | AA88: 3.98117 | AB88: 14953 | AD88: 2013-10-07T11:42:55.265 | AE88: =IF($K88="_","_",IF(ISNUMBER(AN88),IF(OR(INT(AD88)<>MAX(AE$1:AE87),COUNT(AN$1:AN88)=COUNT(AN:AN)),INT(AD88)))) -> FALSE | AF88: Δ2m | AG88: =IF($K88="_","_",IF(COUNT(AN$1:AN88)=1,TEXT($I$30+$I$9/24,"┌yy-mm-dd hh:mm:ss┐ "),IF(COUNT(AN$1:AN88)=COUNT(AN:AN),TEXT($I$31+$I$9/24,"└yy-mm-dd hh:mm:ss┘ "),""))&TEXT(AD88,IF(AE88,"mmm d dddd hh:mm","hh:mm"))&REPT(" ",MAX(3*(5-LEN(AF88)),1))&AF88) -> 11:42 Δ2m | AH88: 131.7144555 | AI88: -16.79295869 | AJ88: 741.3793103 | AK88: 1433.655535 | AL88: 1488.796133 | AM88: 8245.173545 | AN88: 0
A89: 2 | B89: 0 | C89: 2013-10-06T17:42:34 | H89: chunk_insert | I89: =IF(I88>0,I24&"!A"&I76&":F"&(I76+I88-1)) -> FALSE | K89: 87 | L89: 2013-10-07T09:43:49.671 | M89: 0.001217161237 | N89: Table | O89: Time | P89: Time | Q89: Duration | R89: =1 | S89: >=41554.4054360077 | T89: <41554.4066531689 | U89: >=10 | V89: 43 | W89: 24 | X89: 18 | Y89: 377000 | Z89: 2.93796 | AA89: 2.75869 | AB89: 3740 | AD89: 2013-10-07T11:44:42.252 | AE89: =IF($K89="_","_",IF(ISNUMBER(AN89),IF(OR(INT(AD89)<>MAX(AE$1:AE88),COUNT(AN$1:AN89)=COUNT(AN:AN)),INT(AD89)))) -> FALSE | AF89: Δ2m | AG89: =IF($K89="_","_",IF(COUNT(AN$1:AN89)=1,TEXT($I$30+$I$9/24,"┌yy-mm-dd hh:mm:ss┐ "),IF(COUNT(AN$1:AN89)=COUNT(AN:AN),TEXT($I$31+$I$9/24,"└yy-mm-dd hh:mm:ss┘ "),""))&TEXT(AD89,IF(AE89,"mmm d dddd hh:mm","hh:mm"))&REPT(" ",MAX(3*(5-LEN(AF89)),1))&AF89) -> 11:44 Δ2m | AH89: 94.43729651 | AI89: 6.136888939 | AJ89: 785.4166667 | AK89: 1026.979797 | AL89: 1426.360829 | AM89: 2133.8358
A90: 1 | B90: 17000 | C90: 2013-10-06T17:42:36 | D90: 0 | E90: 0.08037 | F90: 423 | H90: chunk_status | I90: ="detecting "&I88&" missing calls between UTC "&I84&"." -> detecting -238 missing calls between UTC '2013-10-06 21:00:00' and '2013-10-06 21:59:59'. | K90: 88 | L90: 2013-10-07T09:45:34.834 | M90: 0.001176332744 | N90: =1 | O90: >=41554.4066531689 | P90: <41554.4078295016 | Q90: >=10 | R90: Table | S90: Time | T90: Time | U90: Duration | V90: 37 | W90: 24 | X90: 22 | Y90: 345000 | Z90: 4.76983 | AA90: 6.07811 | AB90: 9123 | AD90: 2013-10-07T11:46:25.651 | AE90: =IF($K90="_","_",IF(ISNUMBER(AN90),IF(OR(INT(AD90)<>MAX(AE$1:AE89),COUNT(AN$1:AN90)=COUNT(AN:AN)),INT(AD90)))) -> FALSE | AF90: Δ2m | AG90: =IF($K90="_","_",IF(COUNT(AN$1:AN90)=1,TEXT($I$30+$I$9/24,"┌yy-mm-dd hh:mm:ss┐ "),IF(COUNT(AN$1:AN90)=COUNT(AN:AN),TEXT($I$31+$I$9/24,"└yy-mm-dd hh:mm:ss┘ "),""))&TEXT(AD90,IF(AE90,"mmm d dddd hh:mm","hh:mm"))&REPT(" ",MAX(3*(5-LEN(AF90)),1))&AF90) -> 11:46 Δ2m | AH90: 215.2916211 | AI90: -46.34034627 | AJ90: 718.75 | AK90: 1298.763285 | AL90: 885.5204213 | AM90: 5385.735202 | AN90: 0
A91: 1 | B91: 17000 | C91: 2013-10-06T17:42:48 | D91: 0 | E91: 0.1008 | F91: 960 | H91: chunk_report | I91: On 13-10-07 11:49:05 detecting 23267 missing calls between UTC '2013-10-04 02:00:00' and '2013-10-05 13:59:59'. After re-syncing... detecting 0 missing calls between UTC '2013-10-04 02:00:00' and '2013-10-05 13:59:59'. On 13-10-07 12:00:47 detecting 11828 missing calls between UTC '2013-10-05 14:00:00' and '2013-10-06 20:59:59'. After re-syncing... detecting 0 missing calls between UTC '2013-10-05 14:00:00' and '2013-10-06 20:59:59'. | K91: 89 | L91: 2013-10-07T09:47:16.469 | M91: 0.001136873802 | N91: Table | O91: Time | P91: Time | Q91: Duration | R91: =1 | S91: >=41554.4078295016 | T91: <41554.4089663754 | U91: >=10 | V91: 45 | W91: 20 | X91: 17 | Y91: 322000 | Z91: 1.0513 | AA91: 1.01744 | AB91: 2123 | AD91: 2013-10-07T11:48:05.582 | AE91: =IF($K91="_","_",IF(ISNUMBER(AN91),IF(OR(INT(AD91)<>MAX(AE$1:AE90),COUNT(AN$1:AN91)=COUNT(AN:AN)),INT(AD91)))) -> FALSE | AF91: Δ2m | AG91: =IF($K91="_","_",IF(COUNT(AN$1:AN91)=1,TEXT($I$30+$I$9/24,"┌yy-mm-dd hh:mm:ss┐ "),IF(COUNT(AN$1:AN91)=COUNT(AN:AN),TEXT($I$31+$I$9/24,"└yy-mm-dd hh:mm:ss┘ "),""))&TEXT(AD91,IF(AE91,"mmm d dddd hh:mm","hh:mm"))&REPT(" ",MAX(3*(5-LEN(AF91)),1))&AF91) -> 11:48 Δ2m | AH91: 37.28939241 | AI91: 1.240976202 | AJ91: 805 | AK91: 1038.422693 | AL91: 1710.34326 | AM91: 1296.806693
A92: 1 | B92: 32000 | C92: 2013-10-06T17:42:48 | D92: 0.01 | E92: 0.00036 | F92: 3 | H92: chunk_retrieve | I92: ="(select 1 as 'table', setup_time, disconnect_time as 'time', revenue, charged_amount, charged_quantity from CDR_Vendors where disconnect_time between " & I84 & " limit " & chunk_answered & ") union all (select 2, setup_time, connect_time, null, null, null from CDR_Vendors_Failed where connect_time between " & I84 & " limit " & chunk_failed & ") order by time" -> (select 1 as 'table', setup_time, disconnect_time as 'time', revenue, charged_amount, charged_quantity from CDR_Vendors where disconnect_time between '2013-10-06 21:00:00' and '2013-10-06 21:59:59' limit ) union all (select 2, setup_time, connect_time, null, null, null from CDR_Vendors_Failed where connect_time between '2013-10-06 21:00:00' and '2013-10-06 21:59:59' limit ) order by time | K92: 90 | L92: 2013-10-07T09:48:54.695 | M92: 0.001098738473 | N92: =1 | O92: >=41554.4089663754 | P92: <41554.4100651139 | Q92: >=10 | R92: Table | S92: Time | T92: Time | U92: Duration | V92: 43 | W92: 20 | X92: 18 | Y92: 259000 | Z92: 0.52261 | AA92: 1.46199 | AB92: 7339 | AD92: 2013-10-07T11:49:42.160 | AE92: =IF($K92="_","_",IF(ISNUMBER(AN92),IF(OR(INT(AD92)<>MAX(AE$1:AE91),COUNT(AN$1:AN92)=COUNT(AN:AN)),INT(AD92)))) -> FALSE | AF92: Δ2m | AG92: =IF($K92="_","_",IF(COUNT(AN$1:AN92)=1,TEXT($I$30+$I$9/24,"┌yy-mm-dd hh:mm:ss┐ "),IF(COUNT(AN$1:AN92)=COUNT(AN:AN),TEXT($I$31+$I$9/24,"└yy-mm-dd hh:mm:ss┘ "),""))&TEXT(AD92,IF(AE92,"mmm d dddd hh:mm","hh:mm"))&REPT(" ",MAX(3*(5-LEN(AF92)),1))&AF92) -> 11:49 Δ2m | AH92: 55.44199235 | AI92: -35.62343024 | AJ92: 647.5 | AK92: 1137.668363 | AL92: 1580.094949 | AM92: 4638.526733 | AN92: 0
A93: 1 | B93: 3000 | C93: 2013-10-06T17:42:53 | D93: 0 | E93: 0.00041 | F93: 5 | H93: chunk_land | I93: =I24&"!A"&I76 -> 'data sheet'!A3705 | K93: 91 | L93: 2013-10-07T09:50:29.626 | M93: 0.001061882356 | N93: Table | O93: Time | P93: Time | Q93: Duration | R93: =1 | S93: >=41554.4100651139 | T93: <41554.4111269963 | U93: >=10 | V93: 41 | W93: 22 | X93: 22 | Y93: 280000 | Z93: 2.9 | AA93: 2.88456 | AB93: 16567 | AD93: 2013-10-07T11:51:15.499 | AE93: =IF($K93="_","_",IF(ISNUMBER(AN93),IF(OR(INT(AD93)<>MAX(AE$1:AE92),COUNT(AN$1:AN93)=COUNT(AN:AN)),INT(AD93)))) -> FALSE | AF93: Δ2m | AG93: =IF($K93="_","_",IF(COUNT(AN$1:AN93)=1,TEXT($I$30+$I$9/24,"┌yy-mm-dd hh:mm:ss┐ "),IF(COUNT(AN$1:AN93)=COUNT(AN:AN),TEXT($I$31+$I$9/24,"└yy-mm-dd hh:mm:ss┘ "),""))&TEXT(AD93,IF(AE93,"mmm d dddd hh:mm","hh:mm"))&REPT(" ",MAX(3*(5-LEN(AF93)),1))&AF93) -> 11:51 Δ2m | AH93: 113.1857963 | AI93: 0.6058423796 | AJ93: 636.3636364 | AK93: 1438.744857 | AL93: 1242.552376 | AM93: 10834.40275
A94: 1 | B94: 6000 | C94: 2013-10-06T17:42:56 | D94: 0.04 | E94: 0.01995 | F94: 105 | K94: 92 | L94: 2013-10-07T09:52:01.372 | M94: 0.001026262542 | N94: =1 | O94: >=41554.4111269963 | P94: <41554.4121532588 | Q94: >=10 | R94: Table | S94: Time | T94: Time | U94: Duration | V94: 34 | W94: 16 | X94: 15 | Y94: 226000 | Z94: 0.91909 | AA94: 0.58276 | AB94: 1912 | AD94: 2013-10-07T11:52:45.707 | AE94: =IF($K94="_","_",IF(ISNUMBER(AN94),IF(OR(INT(AD94)<>MAX(AE$1:AE93),COUNT(AN$1:AN94)=COUNT(AN:AN)),INT(AD94)))) -> FALSE | AF94: Δ1m | AG94: =IF($K94="_","_",IF(COUNT(AN$1:AN94)=1,TEXT($I$30+$I$9/24,"┌yy-mm-dd hh:mm:ss┐ "),IF(COUNT(AN$1:AN94)=COUNT(AN:AN),TEXT($I$31+$I$9/24,"└yy-mm-dd hh:mm:ss┘ "),""))&TEXT(AD94,IF(AE94,"mmm d dddd hh:mm","hh:mm"))&REPT(" ",MAX(3*(5-LEN(AF94)),1))&AF94) -> 11:52 Δ1m | AH94: 23.66028738 | AI94: 13.65513154 | AJ94: 706.25 | AK94: 1015.009926 | AL94: 1285.67924 | AM94: 1293.799319 | AN94: 0
A95: 1 | B95: 9000 | C95: 2013-10-06T17:42:59 | D95: 0.89 | E95: 0.55887 | F95: 404 | H95: sheet | I95: =CELL("filename",I95) -> J:\run\folders\130916 Excel VBA ADODB ODBC MySQL\3\131003-Excel-ADODB-CDO-traffic-reports\code\[131007-Book45.xlsm]data sheet | K95: 93 | L95: 2013-10-07T09:53:30.042 | M95: 0.0009918375597 | N95: Table | O95: Time | P95: Time | Q95: Duration | R95: =1 | S95: >=41554.4121532588 | T95: <41554.4131450964 | U95: >=10 | V95: 43 | W95: 21 | X95: 18 | Y95: 342000 | Z95: 3.5536 | AA95: 3.00678 | AB95: 5915 | AD95: 2013-10-07T11:54:12.889 | AE95: =IF($K95="_","_",IF(ISNUMBER(AN95),IF(OR(INT(AD95)<>MAX(AE$1:AE94),COUNT(AN$1:AN95)=COUNT(AN:AN)),INT(AD95)))) -> FALSE | AF95: Δ1m | AG95: =IF($K95="_","_",IF(COUNT(AN$1:AN95)=1,TEXT($I$30+$I$9/24,"┌yy-mm-dd hh:mm:ss┐ "),IF(COUNT(AN$1:AN95)=COUNT(AN:AN),TEXT($I$31+$I$9/24,"└yy-mm-dd hh:mm:ss┘ "),""))&TEXT(AD95,IF(AE95,"mmm d dddd hh:mm","hh:mm"))&REPT(" ",MAX(3*(5-LEN(AF95)),1))&AF95) -> 11:54 Δ1m | AH95: 126.3135266 | AI95: 22.97167156 | AJ95: 814.2857143 | AK95: 1260.287018 | AL95: 1750.398635 | AM95: 4141.443172
A96: 2 | B96: 0 | C96: 2013-10-06T17:43:06 | H96: folder | I96: =LEFT(I95,SEARCH("[",I95)-1) -> J:\run\folders\130916 Excel VBA ADODB ODBC MySQL\3\131003-Excel-ADODB-CDO-traffic-reports\code\ | K96: 94 | L96: 2013-10-07T09:54:55.736 | M96: 0.0009585673304 | N96: =1 | O96: >=41554.4131450964 | P96: <41554.4141036637 | Q96: >=10 | R96: Table | S96: Time | T96: Time | U96: Duration | V96: 59 | W96: 20 | X96: 18 | Y96: 376000 | Z96: 0.742 | AA96: 0.58262 | AB96: 3826 | AD96: 2013-10-07T11:55:37.146 | AE96: =IF($K96="_","_",IF(ISNUMBER(AN96),IF(OR(INT(AD96)<>MAX(AE$1:AE95),COUNT(AN$1:AN96)=COUNT(AN:AN)),INT(AD96)))) -> FALSE | AF96: Δ1m | AG96: =IF($K96="_","_",IF(COUNT(AN$1:AN96)=1,TEXT($I$30+$I$9/24,"┌yy-mm-dd hh:mm:ss┐ "),IF(COUNT(AN$1:AN96)=COUNT(AN:AN),TEXT($I$31+$I$9/24,"└yy-mm-dd hh:mm:ss┘ "),""))&TEXT(AD96,IF(AE96,"mmm d dddd hh:mm","hh:mm"))&REPT(" ",MAX(3*(5-LEN(AF96)),1))&AF96) -> 11:55 Δ1m | AH96: 25.32512069 | AI96: 6.927873633 | AJ96: 940 | AK96: 1304.02942 | AL96: 2970.289235 | AM96: 2771.786979 | AN96: 0
A97: 1 | B97: 16000 | C97: 2013-10-06T17:43:07 | D97: 0.22025 | E97: 0 | F97: 2643 | H97: file | I97: =REPLACE(LEFT(I95,SEARCH("]",I95)-1),1,SEARCH("[",I95),"") -> 131007-Book45.xlsm | K97: 95 | L97: 2013-10-07T09:56:18.557 | M97: 0.0009264131186 | N97: Table | O97: Time | P97: Time | Q97: Duration | R97: =1 | S97: >=41554.4141036637 | T97: <41554.4150300768 | U97: >=10 | V97: 48 | W97: 23 | X97: 17 | Y97: 428000 | Z97: 1.20624 | AA97: 0.93441 | AB97: 2527 | AD97: 2013-10-07T11:56:58.578 | AE97: =IF($K97="_","_",IF(ISNUMBER(AN97),IF(OR(INT(AD97)<>MAX(AE$1:AE96),COUNT(AN$1:AN97)=COUNT(AN:AN)),INT(AD97)))) -> FALSE | AF97: Δ1m | AG97: =IF($K97="_","_",IF(COUNT(AN$1:AN97)=1,TEXT($I$30+$I$9/24,"┌yy-mm-dd hh:mm:ss┐ "),IF(COUNT(AN$1:AN97)=COUNT(AN:AN),TEXT($I$31+$I$9/24,"└yy-mm-dd hh:mm:ss┘ "),""))&TEXT(AD97,IF(AE97,"mmm d dddd hh:mm","hh:mm"))&REPT(" ",MAX(3*(5-LEN(AF97)),1))&AF97) -> 11:56 Δ1m | AH97: 42.02633708 | AI97: 12.22591711 | AJ97: 930.4347826 | AK97: 1274.329489 | AL97: 2323.777303 | AM97: 1894.253304
A98: 1 | B98: 28000 | C98: 2013-10-06T17:43:07 | D98: 0 | E98: 0.05187 | F98: 273 | H98: charts | I98: =I97&"_Charts" -> 131007-Book45.xlsm_Charts | K98: 96 | L98: 2013-10-07T09:57:38.599 | M98: 0.0008953374887 | N98: =1 | O98: >=41554.4150300768 | P98: <41554.4159254143 | Q98: >=10 | R98: Table | S98: Time | T98: Time | U98: Duration | V98: 25 | W98: 14 | X98: 13 | Y98: 188000 | Z98: 2.34083 | AA98: 1.38085 | AB98: 7224 | AD98: 2013-10-07T11:58:17.277 | AE98: =IF($K98="_","_",IF(ISNUMBER(AN98),IF(OR(INT(AD98)<>MAX(AE$1:AE97),COUNT(AN$1:AN98)=COUNT(AN:AN)),INT(AD98)))) -> FALSE | AF98: Δ1m | AG98: =IF($K98="_","_",IF(COUNT(AN$1:AN98)=1,TEXT($I$30+$I$9/24,"┌yy-mm-dd hh:mm:ss┐ "),IF(COUNT(AN$1:AN98)=COUNT(AN:AN),TEXT($I$31+$I$9/24,"└yy-mm-dd hh:mm:ss┘ "),""))&TEXT(AD98,IF(AE98,"mmm d dddd hh:mm","hh:mm"))&REPT(" ",MAX(3*(5-LEN(AF98)),1))&AF98) -> 11:58 Δ1m | AH98: 64.26115001 | AI98: 44.67496019 | AJ98: 671.4285714 | AK98: 1008.310039 | AL98: 930.7477279 | AM98: 5603.101322 | AN98: 0
A99: 1 | B99: 29000 | C99: 2013-10-06T17:43:07 | D99: 0.011 | E99: 0.01127 | F99: 6 | H99: chart_path | I99: =I96&I98 -> J:\run\folders\130916 Excel VBA ADODB ODBC MySQL\3\131003-Excel-ADODB-CDO-traffic-reports\code\131007-Book45.xlsm_Charts | K99: 97 | L99: 2013-10-07T09:58:55.956 | M99: 0.0008653042607 | N99: Table | O99: Time | P99: Time | Q99: Duration | R99: =1 | S99: >=41554.4159254143 | T99: <41554.4167907186 | U99: >=10 | V99: 40 | W99: 23 | X99: 20 | Y99: 267000 | Z99: 1.58683 | AA99: 1.1352 | AB99: 9442 | AD99: 2013-10-07T11:59:33.337 | AE99: =IF($K99="_","_",IF(ISNUMBER(AN99),IF(OR(INT(AD99)<>MAX(AE$1:AE98),COUNT(AN$1:AN99)=COUNT(AN:AN)),INT(AD99)))) -> FALSE | AF99: Δ1m | AG99: =IF($K99="_","_",IF(COUNT(AN$1:AN99)=1,TEXT($I$30+$I$9/24,"┌yy-mm-dd hh:mm:ss┐ "),IF(COUNT(AN$1:AN99)=COUNT(AN:AN),TEXT($I$31+$I$9/24,"└yy-mm-dd hh:mm:ss┘ "),""))&TEXT(AD99,IF(AE99,"mmm d dddd hh:mm","hh:mm"))&REPT(" ",MAX(3*(5-LEN(AF99)),1))&AF99) -> 11:59 Δ1m | AH99: 54.66285346 | AI99: 21.74716747 | AJ99: 580.4347826 | AK99: 1605.087311 | AL99: 1605.087311 | AM99: 7577.617195
A100: 2 | B100: 0 | C100: 2013-10-06T17:43:12 | H100: chart_name | I100: =TEXT(I30+I9/24,"yymmdd'hhmmss")&"_"&TEXT(I31+I9/24,"yymmdd'hhmmss")&"_"&TEXT(NOW(),"yymmdd'hhmmss")&".png" -> 131006'193914_131007'121942_131007'122226.png | K100: 98 | L100: 2013-10-07T10:00:10.718 | M100: 0.0008362784681 | N100: =1 | O100: >=41554.4167907186 | P100: <41554.417626997 | Q100: >=10 | R100: Table | S100: Time | T100: Time | U100: Duration | V100: 25 | W100: 15 | X100: 14 | Y100: 209000 | Z100: 0.44151 | AA100: 14.80958 | AB100: 5546 | AD100: 2013-10-07T12:00:46.845 | AE100: =IF($K100="_","_",IF(ISNUMBER(AN100),IF(OR(INT(AD100)<>MAX(AE$1:AE99),COUNT(AN$1:AN100)=COUNT(AN:AN)),INT(AD100)))) -> FALSE | AF100: Δ1m | AG100: =IF($K100="_","_",IF(COUNT(AN$1:AN100)=1,TEXT($I$30+$I$9/24,"┌yy-mm-dd hh:mm:ss┐ "),IF(COUNT(AN$1:AN100)=COUNT(AN:AN),TEXT($I$31+$I$9/24,"└yy-mm-dd hh:mm:ss┘ "),""))&TEXT(AD100,IF(AE100,"mmm d dddd hh:mm","hh:mm"))&REPT(" ",MAX(3*(5-LEN(AF100)),1))&AF100) -> 12:00 Δ1m | AH100: 737.8712437 | AI100: -715.8734873 | AJ100: 696.6666667 | AK100: 1162.557999 | AL100: 913.4384275 | AM100: 4605.390472 | AN100: 0
A101: 1 | B101: 54000 | C101: 2013-10-06T17:43:17 | D101: 0 | E101: 0.00214 | F101: 12 | K101: 99 | L101: 2013-10-07T10:01:22.973 | M101: 0.0008082263177 | N101: Table | O101: Time | P101: Time | Q101: Duration | R101: =1 | S101: >=41554.417626997 | T101: <41554.4184352234 | U101: >=10 | V101: 29 | W101: 15 | X101: 13 | Y101: 203000 | Z101: 0.7281 | AA101: 0.22449 | AB101: 3993 | AD101: 2013-10-07T12:01:57.888 | AE101: =IF($K101="_","_",IF(ISNUMBER(AN101),IF(OR(INT(AD101)<>MAX(AE$1:AE100),COUNT(AN$1:AN101)=COUNT(AN:AN)),INT(AD101)))) -> FALSE | AF101: Δ1m | AG101: =IF($K101="_","_",IF(COUNT(AN$1:AN101)=1,TEXT($I$30+$I$9/24,"┌yy-mm-dd hh:mm:ss┐ "),IF(COUNT(AN$1:AN101)=COUNT(AN:AN),TEXT($I$31+$I$9/24,"└yy-mm-dd hh:mm:ss┘ "),""))&TEXT(AD101,IF(AE101,"mmm d dddd hh:mm","hh:mm"))&REPT(" ",MAX(3*(5-LEN(AF101)),1))&AF101) -> 12:01 Δ1m | AH101: 11.57318166 | AI101: 25.96271557 | AJ101: 676.6666667 | AK101: 1116.986366 | AL101: 1374.752451 | AM101: 3430.866585
A102: 1 | B102: 22000 | C102: 2013-10-06T17:43:24 | D102: 0 | E102: 0.01625 | F102: 184 | H102: smtp way | I102: =CHOOSE(FLOOR(RAND()*3,1)+1,I114,I122,I130) -> $I$130 | K102: 100 | L102: 2013-10-07T10:02:32.803 | M102: 0.0007811151494 | N102: =1 | O102: >=41554.4184352234 | P102: <41554.4192163385 | Q102: >=10 | R102: Table | S102: Time | T102: Time | U102: Duration | V102: 31 | W102: 17 | X102: 13 | Y102: 232000 | Z102: 3.43481 | AA102: 3.45134 | AB102: 4753 | AD102: 2013-10-07T12:03:06.547 | AE102: =IF($K102="_","_",IF(ISNUMBER(AN102),IF(OR(INT(AD102)<>MAX(AE$1:AE101),COUNT(AN$1:AN102)=COUNT(AN:AN)),INT(AD102)))) -> FALSE | AF102: Δ1m | AG102: =IF($K102="_","_",IF(COUNT(AN$1:AN102)=1,TEXT($I$30+$I$9/24,"┌yy-mm-dd hh:mm:ss┐ "),IF(COUNT(AN$1:AN102)=COUNT(AN:AN),TEXT($I$31+$I$9/24,"└yy-mm-dd hh:mm:ss┘ "),""))&TEXT(AD102,IF(AE102,"mmm d dddd hh:mm","hh:mm"))&REPT(" ",MAX(3*(5-LEN(AF102)),1))&AF102) -> 12:03 Δ1m | AH102: 184.1032445 | AI102: -0.8817521981 | AJ102: 682.3529412 | AK102: 1155.755049 | AL102: 1600.276222 | AM102: 4225.618267 | AN102: 0
A103: 2 | B103: 0 | C103: 2013-10-06T17:43:25 | H103: smtp_server | I103: =OFFSET(INDIRECT(I$102),ROWS(I$103:I103),0) -> smtp.switzernet.com | K103: 101 | L103: 2013-10-07T10:03:40.292 | M103: 0.0007549133991 | N103: Table | O103: Time | P103: Time | Q103: Duration | R103: =1 | S103: >=41554.4192163385 | T103: <41554.4199712519 | U103: >=10 | V103: 27 | W103: 11 | X103: 9 | Y103: 190000 | Z103: 0.27692 | AA103: 0.22899 | AB103: 2353 | AD103: 2013-10-07T12:04:12.904 | AE103: =IF($K103="_","_",IF(ISNUMBER(AN103),IF(OR(INT(AD103)<>MAX(AE$1:AE102),COUNT(AN$1:AN103)=COUNT(AN:AN)),INT(AD103)))) -> FALSE | AF103: Δ1m | AG103: =IF($K103="_","_",IF(COUNT(AN$1:AN103)=1,TEXT($I$30+$I$9/24,"┌yy-mm-dd hh:mm:ss┐ "),IF(COUNT(AN$1:AN103)=COUNT(AN:AN),TEXT($I$31+$I$9/24,"└yy-mm-dd hh:mm:ss┘ "),""))&TEXT(AD103,IF(AE103,"mmm d dddd hh:mm","hh:mm"))&REPT(" ",MAX(3*(5-LEN(AF103)),1))&AF103) -> 12:04 Δ1m | AH103: 12.63886694 | AI103: 2.645446929 | AJ103: 863.6363636 | AK103: 827.9095334 | AL103: 1655.819067 | AM103: 2164.52348
A104: 2 | B104: 0 | C104: 2013-10-06T17:43:42 | H104: smtp_port | I104: =OFFSET(INDIRECT(I$102),ROWS(I$103:I104),0) -> 587 | K104: 102 | L104: 2013-10-07T10:04:45.516 | M104: 0.000729590561 | N104: =1 | O104: >=41554.4199712519 | P104: <41554.4207008425 | Q104: >=10 | R104: Table | S104: Time | T104: Time | U104: Duration | V104: 19 | W104: 13 | X104: 12 | Y104: 174000 | Z104: 0.53092 | AA104: 4.62829 | AB104: 6722 | AD104: 2013-10-07T12:05:17.034 | AE104: =IF($K104="_","_",IF(ISNUMBER(AN104),IF(OR(INT(AD104)<>MAX(AE$1:AE103),COUNT(AN$1:AN104)=COUNT(AN:AN)),INT(AD104)))) -> FALSE | AF104: Δ1m | AG104: =IF($K104="_","_",IF(COUNT(AN$1:AN104)=1,TEXT($I$30+$I$9/24,"┌yy-mm-dd hh:mm:ss┐ "),IF(COUNT(AN$1:AN104)=COUNT(AN:AN),TEXT($I$31+$I$9/24,"└yy-mm-dd hh:mm:ss┘ "),""))&TEXT(AD104,IF(AE104,"mmm d dddd hh:mm","hh:mm"))&REPT(" ",MAX(3*(5-LEN(AF104)),1))&AF104) -> 12:05 Δ1m | AH104: 264.3200543 | AI104: -233.9993952 | AJ104: 669.2307692 | AK104: 1142.193139 | AL104: 666.2793313 | AM104: 6398.185236 | AN104: 0
A105: 2 | B105: 0 | C105: 2013-10-06T17:43:44 | H105: smtp_authenticate | I105: =OFFSET(INDIRECT(I$102),ROWS(I$103:I105),0) -> 1 | K105: 103 | L105: 2013-10-07T10:05:48.553 | M105: 0.0007051171529 | N105: Table | O105: Time | P105: Time | Q105: Duration | R105: =1 | S105: >=41554.4207008425 | T105: <41554.4214059596 | U105: >=10 | V105: 21 | W105: 10 | X105: 7 | Y105: 181000 | Z105: 0.26425 | AA105: 0.26677 | AB105: 1060 | AD105: 2013-10-07T12:06:19.014 | AE105: =IF($K105="_","_",IF(ISNUMBER(AN105),IF(OR(INT(AD105)<>MAX(AE$1:AE104),COUNT(AN$1:AN105)=COUNT(AN:AN)),INT(AD105)))) -> FALSE | AF105: Δ1m | AG105: =IF($K105="_","_",IF(COUNT(AN$1:AN105)=1,TEXT($I$30+$I$9/24,"┌yy-mm-dd hh:mm:ss┐ "),IF(COUNT(AN$1:AN105)=COUNT(AN:AN),TEXT($I$31+$I$9/24,"└yy-mm-dd hh:mm:ss┘ "),""))&TEXT(AD105,IF(AE105,"mmm d dddd hh:mm","hh:mm"))&REPT(" ",MAX(3*(5-LEN(AF105)),1))&AF105) -> 12:06 Δ1m | AH105: 15.7639289 | AI105: -0.1489114249 | AJ105: 905 | AK105: 689.4047451 | AL105: 1378.80949 | AM105: 1043.955757
A106: 2 | B106: 0 | C106: 2013-10-06T17:43:44 | H106: smtp_ssl | I106: =OFFSET(INDIRECT(I$102),ROWS(I$103:I106),0) -> FALSE | K106: 104 | L106: 2013-10-07T10:06:49.475 | M106: 0.0006814646817 | N106: =1 | O106: >=41554.4214059596 | P106: <41554.4220874243 | Q106: >=10 | R106: Table | S106: Time | T106: Time | U106: Duration | V106: 24 | W106: 13 | X106: 10 | Y106: 193000 | Z106: 1.44793 | AA106: 1.93847 | AB106: 4464 | AD106: 2013-10-07T12:07:18.914 | AE106: =IF($K106="_","_",IF(ISNUMBER(AN106),IF(OR(INT(AD106)<>MAX(AE$1:AE105),COUNT(AN$1:AN106)=COUNT(AN:AN)),INT(AD106)))) -> FALSE | AF106: Δ59s | AG106: =IF($K106="_","_",IF(COUNT(AN$1:AN106)=1,TEXT($I$30+$I$9/24,"┌yy-mm-dd hh:mm:ss┐ "),IF(COUNT(AN$1:AN106)=COUNT(AN:AN),TEXT($I$31+$I$9/24,"└yy-mm-dd hh:mm:ss┘ "),""))&TEXT(AD106,IF(AE106,"mmm d dddd hh:mm","hh:mm"))&REPT(" ",MAX(3*(5-LEN(AF106)),1))&AF106) -> 12:07 Δ59s | AH106: 118.5235061 | AI106: -29.99299482 | AJ106: 742.3076923 | AK106: 1019.046861 | AL106: 1426.665605 | AM106: 4549.025186 | AN106: 0
A107: 2 | B107: 0 | C107: 2013-10-06T17:43:44 | H107: smtp_user | I107: =OFFSET(INDIRECT(I$102),ROWS(I$103:I107),0) -> d9a.monitor@smtp.switzernet.com | K107: 105 | L107: 2013-10-07T10:07:48.353 | M107: 0.0006586056096 | N107: Table | O107: Time | P107: Time | Q107: Duration | R107: =1 | S107: >=41554.4220874243 | T107: <41554.4227460299 | U107: >=10 | V107: 22 | W107: 9 | X107: 9 | Y107: 126000 | Z107: 0.18242 | AA107: 0.89771 | AB107: 7862 | AD107: 2013-10-07T12:08:16.805 | AE107: =IF($K107="_","_",IF(ISNUMBER(AN107),IF(OR(INT(AD107)<>MAX(AE$1:AE106),COUNT(AN$1:AN107)=COUNT(AN:AN)),INT(AD107)))) -> FALSE | AF107: Δ57s | AG107: =IF($K107="_","_",IF(COUNT(AN$1:AN107)=1,TEXT($I$30+$I$9/24,"┌yy-mm-dd hh:mm:ss┐ "),IF(COUNT(AN$1:AN107)=COUNT(AN:AN),TEXT($I$31+$I$9/24,"└yy-mm-dd hh:mm:ss┘ "),""))&TEXT(AD107,IF(AE107,"mmm d dddd hh:mm","hh:mm"))&REPT(" ",MAX(3*(5-LEN(AF107)),1))&AF107) -> 12:08 Δ57s | AH107: 56.79359967 | AI107: -45.25280314 | AJ107: 700 | AK107: 948.9746077 | AL107: 1370.7411 | AM107: 8289.820406
A108: 2 | B108: 0 | C108: 2013-10-06T17:43:44 | H108: smtp_password | I108: =OFFSET(INDIRECT(I$102),ROWS(I$103:I108),0) -> 0 | K108: 106 | L108: 2013-10-07T10:08:45.257 | M108: 0.0006365133229 | N108: =1 | O108: >=41554.4227460299 | P108: <41554.4233825432 | Q108: >=10 | R108: Table | S108: Time | T108: Time | U108: Duration | V108: 26 | W108: 14 | X108: 12 | Y108: 192000 | Z108: 0.11674 | AA108: 0.24744 | AB108: 1927 | AD108: 2013-10-07T12:09:12.754 | AE108: =IF($K108="_","_",IF(ISNUMBER(AN108),IF(OR(INT(AD108)<>MAX(AE$1:AE107),COUNT(AN$1:AN108)=COUNT(AN:AN)),INT(AD108)))) -> FALSE | AF108: Δ55s | AG108: =IF($K108="_","_",IF(COUNT(AN$1:AN108)=1,TEXT($I$30+$I$9/24,"┌yy-mm-dd hh:mm:ss┐ "),IF(COUNT(AN$1:AN108)=COUNT(AN:AN),TEXT($I$31+$I$9/24,"└yy-mm-dd hh:mm:ss┘ "),""))&TEXT(AD108,IF(AE108,"mmm d dddd hh:mm","hh:mm"))&REPT(" ",MAX(3*(5-LEN(AF108)),1))&AF108) -> 12:09 Δ55s | AH108: 16.19761854 | AI108: -8.555725602 | AJ108: 685.7142857 | AK108: 1309.215853 | AL108: 1527.418496 | AM108: 2102.382458 | AN108: 0
A109: 2 | B109: 0 | C109: 2013-10-06T17:43:44 | H109: smtp_from | I109: =OFFSET(INDIRECT(I$102),ROWS(I$103:I109),0) -> d9a Monitor Switzernet.com <d9a.monitor@switzernet.com> | K109: 107 | L109: 2013-10-07T10:09:40.252 | M109: 0.0006151621006 | N109: Table | O109: Time | P109: Time | Q109: Duration | R109: =1 | S109: >=41554.4233825432 | T109: <41554.4239977053 | U109: >=10 | V109: 14 | W109: 8 | X109: 5 | Y109: 136000 | Z109: 0.11275 | AA109: 0.13887 | AB109: 634 | AD109: 2013-10-07T12:10:06.827 | AE109: =IF($K109="_","_",IF(ISNUMBER(AN109),IF(OR(INT(AD109)<>MAX(AE$1:AE108),COUNT(AN$1:AN109)=COUNT(AN:AN)),INT(AD109)))) -> FALSE | AF109: Δ53s | AG109: =IF($K109="_","_",IF(COUNT(AN$1:AN109)=1,TEXT($I$30+$I$9/24,"┌yy-mm-dd hh:mm:ss┐ "),IF(COUNT(AN$1:AN109)=COUNT(AN:AN),TEXT($I$31+$I$9/24,"└yy-mm-dd hh:mm:ss┘ "),""))&TEXT(AD109,IF(AE109,"mmm d dddd hh:mm","hh:mm"))&REPT(" ",MAX(3*(5-LEN(AF109)),1))&AF109) -> 12:10 Δ53s | AH109: 9.406057353 | AI109: -1.769181379 | AJ109: 850 | AK109: 564.4402051 | AL109: 1015.992369 | AM109: 715.71018
A110: 2 | B110: 0 | C110: 2013-10-06T17:43:47 | H110: smtp_to | I110: emin.gabrielyan@switzernet.com;emin.gabrielyan@gmail.com;nicolas.bondier@switzernet.com;nicolas.bondier@gmail.com;elen.virabyan@intarnet.com;sujatha.nampally@switzernet.com | K110: 108 | L110: 2013-10-07T10:10:33.402 | M110: 0.0005945270844 | N110: =1 | O110: >=41554.4239977053 | P110: <41554.4245922324 | Q110: >=10 | R110: Table | S110: Time | T110: Time | U110: Duration | V110: 7 | W110: 5 | X110: 5 | Y110: 65000 | Z110: 0.39483 | AA110: 0.32931 | AB110: 538 | AD110: 2013-10-07T12:10:59.085 | AE110: =IF($K110="_","_",IF(ISNUMBER(AN110),IF(OR(INT(AD110)<>MAX(AE$1:AE109),COUNT(AN$1:AN110)=COUNT(AN:AN)),INT(AD110)))) -> FALSE | AF110: Δ51s | AG110: =IF($K110="_","_",IF(COUNT(AN$1:AN110)=1,TEXT($I$30+$I$9/24,"┌yy-mm-dd hh:mm:ss┐ "),IF(COUNT(AN$1:AN110)=COUNT(AN:AN),TEXT($I$31+$I$9/24,"└yy-mm-dd hh:mm:ss┘ "),""))&TEXT(AD110,IF(AE110,"mmm d dddd hh:mm","hh:mm"))&REPT(" ",MAX(3*(5-LEN(AF110)),1))&AF110) -> 12:10 Δ51s | AH110: 23.07926815 | AI110: 4.591884999 | AJ110: 650 | AK110: 584.0309573 | AL110: 233.6123829 | AM110: 628.4173101 | AN110: 0
A111: 2 | B111: 0 | C111: 2013-10-06T17:44:00 | H111: smtp_subject | I111: [1'da3'1 cost revenue] | K111: 109 | L111: 2013-10-07T10:11:24.769 | M111: 0.0005745842497 | N111: Table | O111: Time | P111: Time | Q111: Duration | R111: =1 | S111: >=41554.4245922324 | T111: <41554.4251668167 | U111: >=10 | V111: 17 | W111: 4 | X111: 4 | Y111: 67000 | Z111: 0.3935 | AA111: 0.24674 | AB111: 533 | AD111: 2013-10-07T12:11:49.591 | AE111: =IF($K111="_","_",IF(ISNUMBER(AN111),IF(OR(INT(AD111)<>MAX(AE$1:AE110),COUNT(AN$1:AN111)=COUNT(AN:AN)),INT(AD111)))) -> FALSE | AF111: Δ50s | AG111: =IF($K111="_","_",IF(COUNT(AN$1:AN111)=1,TEXT($I$30+$I$9/24,"┌yy-mm-dd hh:mm:ss┐ "),IF(COUNT(AN$1:AN111)=COUNT(AN:AN),TEXT($I$31+$I$9/24,"└yy-mm-dd hh:mm:ss┘ "),""))&TEXT(AD111,IF(AE111,"mmm d dddd hh:mm","hh:mm"))&REPT(" ",MAX(3*(5-LEN(AF111)),1))&AF111) -> 12:11 Δ50s | AH111: 17.89264732 | AI111: 10.64247759 | AJ111: 837.5 | AK111: 483.4413368 | AL111: 1571.184345 | AM111: 644.1855813
A112: 2 | B112: 0 | C112: 2013-10-06T17:44:04 | H112: smtp_error | K112: 110 | L112: 2013-10-07T10:12:14.413 | M112: 0.0005553103781 | N112: =1 | O112: >=41554.4251668167 | P112: <41554.4257221271 | Q112: >=10 | R112: Table | S112: Time | T112: Time | U112: Duration | V112: 18 | W112: 10 | X112: 7 | Y112: 159000 | Z112: 0.25459 | AA112: 0.30685 | AB112: 1249 | AD112: 2013-10-07T12:12:38.402 | AE112: =IF($K112="_","_",IF(ISNUMBER(AN112),IF(OR(INT(AD112)<>MAX(AE$1:AE111),COUNT(AN$1:AN112)=COUNT(AN:AN)),INT(AD112)))) -> FALSE | AF112: Δ48s | AG112: =IF($K112="_","_",IF(COUNT(AN$1:AN112)=1,TEXT($I$30+$I$9/24,"┌yy-mm-dd hh:mm:ss┐ "),IF(COUNT(AN$1:AN112)=COUNT(AN:AN),TEXT($I$31+$I$9/24,"└yy-mm-dd hh:mm:ss┘ "),""))&TEXT(AD112,IF(AE112,"mmm d dddd hh:mm","hh:mm"))&REPT(" ",MAX(3*(5-LEN(AF112)),1))&AF112) -> 12:12 Δ48s | AH112: 23.0239109 | AI112: -3.921230515 | AJ112: 795 | AK112: 875.386325 | AL112: 1375.607082 | AM112: 1561.939314 | AN112: 0
A113: 1 | B113: 8000 | C113: 2013-10-06T17:44:09 | D113: 0.01283 | E113: 0.01315 | F113: 7 | K113: 111 | L113: 2013-10-07T10:13:02.392 | M113: 0.0005366830298 | N113: Table | O113: Time | P113: Time | Q113: Duration | R113: =1 | S113: >=41554.4257221271 | T113: <41554.4262588101 | U113: >=10 | V113: 23 | W113: 7 | X113: 6 | Y113: 91000 | Z113: 0.3425 | AA113: 0.09557 | AB113: 1873 | AD113: 2013-10-07T12:13:25.576 | AE113: =IF($K113="_","_",IF(ISNUMBER(AN113),IF(OR(INT(AD113)<>MAX(AE$1:AE112),COUNT(AN$1:AN113)=COUNT(AN:AN)),INT(AD113)))) -> FALSE | AF113: Δ46s | AG113: =IF($K113="_","_",IF(COUNT(AN$1:AN113)=1,TEXT($I$30+$I$9/24,"┌yy-mm-dd hh:mm:ss┐ "),IF(COUNT(AN$1:AN113)=COUNT(AN:AN),TEXT($I$31+$I$9/24,"└yy-mm-dd hh:mm:ss┘ "),""))&TEXT(AD113,IF(AE113,"mmm d dddd hh:mm","hh:mm"))&REPT(" ",MAX(3*(5-LEN(AF113)),1))&AF113) -> 12:13 Δ46s | AH113: 7.419804823 | AI113: 19.17099932 | AJ113: 650 | AK113: 776.3738436 | AL113: 2199.72589 | AM113: 2423.580348
A114: 1 | B114: 11000 | C114: 2013-10-06T17:44:10 | D114: 0 | E114: 0.40981 | F114: 2298 | H114: smtp way | I114: =CELL("address",I114) -> $I$114 | K114: 112 | L114: 2013-10-07T10:13:48.761 | M114: 0.0005186805179 | N114: =1 | O114: >=41554.4262588101 | P114: <41554.4267774906 | Q114: >=10 | R114: Table | S114: Time | T114: Time | U114: Duration | V114: 15 | W114: 8 | X114: 6 | Y114: 172000 | Z114: 0.42475 | AA114: 0.95455 | AB114: 1263 | AD114: 2013-10-07T12:14:11.168 | AE114: =IF($K114="_","_",IF(ISNUMBER(AN114),IF(OR(INT(AD114)<>MAX(AE$1:AE113),COUNT(AN$1:AN114)=COUNT(AN:AN)),INT(AD114)))) -> FALSE | AF114: Δ45s | AG114: =IF($K114="_","_",IF(COUNT(AN$1:AN114)=1,TEXT($I$30+$I$9/24,"┌yy-mm-dd hh:mm:ss┐ "),IF(COUNT(AN$1:AN114)=COUNT(AN:AN),TEXT($I$31+$I$9/24,"└yy-mm-dd hh:mm:ss┘ "),""))&TEXT(AD114,IF(AE114,"mmm d dddd hh:mm","hh:mm"))&REPT(" ",MAX(3*(5-LEN(AF114)),1))&AF114) -> 12:14 Δ45s | AH114: 76.68095348 | AI114: -42.5599174 | AJ114: 1075 | AK114: 803.3204492 | AL114: 1204.980674 | AM114: 1690.989546 | AN114: 0
A115: 2 | B115: 0 | C115: 2013-10-06T17:44:16 | H115: smtp server | I115: smtp.mail.yahoo.com | K115: 113 | L115: 2013-10-07T10:14:33.575 | M115: 0.0005012818828 | N115: Table | O115: Time | P115: Time | Q115: Duration | R115: =1 | S115: >=41554.4267774906 | T115: <41554.4272787725 | U115: >=10 | V115: 23 | W115: 15 | X115: 14 | Y115: 155000 | Z115: 0.29117 | AA115: 0.40035 | AB115: 5420 | AD115: 2013-10-07T12:14:55.231 | AE115: =IF($K115="_","_",IF(ISNUMBER(AN115),IF(OR(INT(AD115)<>MAX(AE$1:AE114),COUNT(AN$1:AN115)=COUNT(AN:AN)),INT(AD115)))) -> FALSE | AF115: Δ43s | AG115: =IF($K115="_","_",IF(COUNT(AN$1:AN115)=1,TEXT($I$30+$I$9/24,"┌yy-mm-dd hh:mm:ss┐ "),IF(COUNT(AN$1:AN115)=COUNT(AN:AN),TEXT($I$31+$I$9/24,"└yy-mm-dd hh:mm:ss┘ "),""))&TEXT(AD115,IF(AE115,"mmm d dddd hh:mm","hh:mm"))&REPT(" ",MAX(3*(5-LEN(AF115)),1))&AF115) -> 12:14 Δ43s | AH115: 33.2771851 | AI115: -9.075066989 | AJ115: 516.6666667 | AK115: 1939.472093 | AL115: 1246.803488 | AM115: 7508.527673
A116: 2 | B116: 0 | C116: 2013-10-06T17:44:16 | H116: smtp port | I116: 25 | K116: 114 | L116: 2013-10-07T10:15:16.886 | M116: 0.000484466868 | N116: =1 | O116: >=41554.4272787725 | P116: <41554.4277632393 | Q116: >=10 | R116: Table | S116: Time | T116: Time | U116: Duration | V116: 16 | W116: 7 | X116: 4 | Y116: 123000 | Z116: 1.28066 | AA116: 0.47607 | AB116: 2077 | AD116: 2013-10-07T12:15:37.815 | AE116: =IF($K116="_","_",IF(ISNUMBER(AN116),IF(OR(INT(AD116)<>MAX(AE$1:AE115),COUNT(AN$1:AN116)=COUNT(AN:AN)),INT(AD116)))) -> FALSE | AF116: Δ42s | AG116: =IF($K116="_","_",IF(COUNT(AN$1:AN116)=1,TEXT($I$30+$I$9/24,"┌yy-mm-dd hh:mm:ss┐ "),IF(COUNT(AN$1:AN116)=COUNT(AN:AN),TEXT($I$31+$I$9/24,"└yy-mm-dd hh:mm:ss┘ "),""))&TEXT(AD116,IF(AE116,"mmm d dddd hh:mm","hh:mm"))&REPT(" ",MAX(3*(5-LEN(AF116)),1))&AF116) -> 12:15 Δ42s | AH116: 40.94449241 | AI116: 69.19891853 | AJ116: 878.5714286 | AK116: 573.3679558 | AL116: 1720.103867 | AM116: 2977.21311 | AN116: 0
A117: 2 | B117: 0 | C117: 2013-10-06T17:44:16 | H117: smtp authenticate | I117: 1 | K117: 115 | L117: 2013-10-07T10:15:58.744 | M117: 0.0004682158966 | N117: Table | O117: Time | P117: Time | Q117: Duration | R117: =1 | S117: >=41554.4277632393 | T117: <41554.4282314552 | U117: >=10 | V117: 15 | W117: 5 | X117: 4 | Y117: 71000 | Z117: 4.91092 | AA117: 1.35736 | AB117: 3464 | AD117: 2013-10-07T12:16:18.971 | AE117: =IF($K117="_","_",IF(ISNUMBER(AN117),IF(OR(INT(AD117)<>MAX(AE$1:AE116),COUNT(AN$1:AN117)=COUNT(AN:AN)),INT(AD117)))) -> FALSE | AF117: Δ40s | AG117: =IF($K117="_","_",IF(COUNT(AN$1:AN117)=1,TEXT($I$30+$I$9/24,"┌yy-mm-dd hh:mm:ss┐ "),IF(COUNT(AN$1:AN117)=COUNT(AN:AN),TEXT($I$31+$I$9/24,"└yy-mm-dd hh:mm:ss┘ "),""))&TEXT(AD117,IF(AE117,"mmm d dddd hh:mm","hh:mm"))&REPT(" ",MAX(3*(5-LEN(AF117)),1))&AF117) -> 12:16 Δ40s | AH117: 120.7918549 | AI117: 316.2323216 | AJ117: 710 | AK117: 593.268575 | AL117: 1631.488581 | AM117: 5137.705859
A118: 2 | B118: 0 | C118: 2013-10-06T17:44:16 | H118: smtp ssl | I118: TRUE | K118: 116 | L118: 2013-10-07T10:16:39.198 | M118: 0.0004525100483 | N118: =1 | O118: >=41554.4282314552 | P118: <41554.4286839653 | Q118: >=10 | R118: Table | S118: Time | T118: Time | U118: Duration | V118: 15 | W118: 6 | X118: 5 | Y118: 71000 | Z118: 0.02641 | AA118: 0.91341 | AB118: 4948 | AD118: 2013-10-07T12:16:58.746 | AE118: =IF($K118="_","_",IF(ISNUMBER(AN118),IF(OR(INT(AD118)<>MAX(AE$1:AE117),COUNT(AN$1:AN118)=COUNT(AN:AN)),INT(AD118)))) -> FALSE | AF118: Δ39s | AG118: =IF($K118="_","_",IF(COUNT(AN$1:AN118)=1,TEXT($I$30+$I$9/24,"┌yy-mm-dd hh:mm:ss┐ "),IF(COUNT(AN$1:AN118)=COUNT(AN:AN),TEXT($I$31+$I$9/24,"└yy-mm-dd hh:mm:ss┘ "),""))&TEXT(AD118,IF(AE118,"mmm d dddd hh:mm","hh:mm"))&REPT(" ",MAX(3*(5-LEN(AF118)),1))&AF118) -> 12:16 Δ39s | AH118: 84.10586713 | AI118: -81.67406109 | AJ118: 591.6666667 | AK118: 767.3248881 | AL118: 1534.649776 | AM118: 7593.447093 | AN118: 0
A119: 2 | B119: 0 | C119: 2013-10-06T17:44:16 | H119: smtp user | I119: d9a.monitor@yahoo.com | K119: 117 | L119: 2013-10-07T10:17:18.295 | M119: 0.0004373310375 | N119: Table | O119: Time | P119: Time | Q119: Duration | R119: =1 | S119: >=41554.4286839653 | T119: <41554.4291212963 | U119: >=10 | V119: 23 | W119: 12 | X119: 11 | Y119: 182000 | Z119: 0.71783 | AA119: 0.20969 | AB119: 1700 | AD119: 2013-10-07T12:17:37.187 | AE119: =IF($K119="_","_",IF(ISNUMBER(AN119),IF(OR(INT(AD119)<>MAX(AE$1:AE118),COUNT(AN$1:AN119)=COUNT(AN:AN)),INT(AD119)))) -> FALSE | AF119: Δ38s | AG119: =IF($K119="_","_",IF(COUNT(AN$1:AN119)=1,TEXT($I$30+$I$9/24,"┌yy-mm-dd hh:mm:ss┐ "),IF(COUNT(AN$1:AN119)=COUNT(AN:AN),TEXT($I$31+$I$9/24,"└yy-mm-dd hh:mm:ss┘ "),""))&TEXT(AD119,IF(AE119,"mmm d dddd hh:mm","hh:mm"))&REPT(" ",MAX(3*(5-LEN(AF119)),1))&AF119) -> 12:17 Δ38s | AH119: 19.97819177 | AI119: 48.41298281 | AJ119: 758.3333333 | AK119: 1746.706324 | AL119: 1905.497808 | AM119: 2699.455228
A120: 2 | B120: 0 | C120: 2013-10-06T17:44:19 | H120: smtp password | K120: 118 | L120: 2013-10-07T10:17:56.080 | M120: 0.0004226611918 | N120: =1 | O120: >=41554.4291212963 | P120: <41554.4295439575 | Q120: >=10 | R120: Table | S120: Time | T120: Time | U120: Duration | V120: 15 | W120: 6 | X120: 5 | Y120: 106000 | Z120: 0.69083 | AA120: 1.19224 | AB120: 4060 | AD120: 2013-10-07T12:18:14.339 | AE120: =IF($K120="_","_",IF(ISNUMBER(AN120),IF(OR(INT(AD120)<>MAX(AE$1:AE119),COUNT(AN$1:AN120)=COUNT(AN:AN)),INT(AD120)))) -> FALSE | AF120: Δ37s | AG120: =IF($K120="_","_",IF(COUNT(AN$1:AN120)=1,TEXT($I$30+$I$9/24,"┌yy-mm-dd hh:mm:ss┐ "),IF(COUNT(AN$1:AN120)=COUNT(AN:AN),TEXT($I$31+$I$9/24,"└yy-mm-dd hh:mm:ss┘ "),""))&TEXT(AD120,IF(AE120,"mmm d dddd hh:mm","hh:mm"))&REPT(" ",MAX(3*(5-LEN(AF120)),1))&AF120) -> 12:18 Δ37s | AH120: 117.5330682 | AI120: -49.42985951 | AJ120: 883.3333333 | AK120: 821.5143215 | AL120: 1643.028643 | AM120: 6670.696291 | AN120: 0
A121: 1 | B121: 14000 | C121: 2013-10-06T17:44:22 | D121: 0 | E121: 0.00684 | F121: 36 | H121: smtp from | I121: d9a Monitor Yahoo.com <d9a.monitor@yahoo.com> | K121: 119 | L121: 2013-10-07T10:18:32.598 | M121: 0.0004084834319 | N121: Table | O121: Time | P121: Time | Q121: Duration | R121: =1 | S121: >=41554.4295439575 | T121: <41554.429952441 | U121: >=10 | V121: 15 | W121: 8 | X121: 8 | Y121: 154000 | Z121: 4.31032 | AA121: 4.32905 | AB121: 921 | AD121: 2013-10-07T12:18:50.244 | AE121: =IF($K121="_","_",IF(ISNUMBER(AN121),IF(OR(INT(AD121)<>MAX(AE$1:AE120),COUNT(AN$1:AN121)=COUNT(AN:AN)),INT(AD121)))) -> FALSE | AF121: Δ35s | AG121: =IF($K121="_","_",IF(COUNT(AN$1:AN121)=1,TEXT($I$30+$I$9/24,"┌yy-mm-dd hh:mm:ss┐ "),IF(COUNT(AN$1:AN121)=COUNT(AN:AN),TEXT($I$31+$I$9/24,"└yy-mm-dd hh:mm:ss┘ "),""))&TEXT(AD121,IF(AE121,"mmm d dddd hh:mm","hh:mm"))&REPT(" ",MAX(3*(5-LEN(AF121)),1))&AF121) -> 12:18 Δ35s | AH121: 441.5774772 | AI121: -1.910522204 | AJ121: 962.5 | AK121: 1360.044281 | AL121: 1190.038746 | AM121: 1565.750979
A122: 1 | B122: 3000 | C122: 2013-10-06T17:44:24 | D122: 0.12867 | E122: 0 | F122: 1544 | H122: smtp way | I122: =CELL("address",I122) -> $I$122 | K122: 120 | L122: 2013-10-07T10:19:07.891 | M122: 0.0003947812512 | N122: =1 | O122: >=41554.429952441 | P122: >=0 | Q122: >=10 | R122: Table | S122: Time | T122: Time | U122: Duration | V122: 11 | W122: 8 | X122: 6 | Y122: 134000 | Z122: 0.33717 | AA122: 0.34515 | AB122: 1513 | AD122: 2013-10-07T12:19:24.945 | AE122: =IF($K122="_","_",IF(ISNUMBER(AN122),IF(OR(INT(AD122)<>MAX(AE$1:AE121),COUNT(AN$1:AN122)=COUNT(AN:AN)),INT(AD122)))) -> 2013-10-07 | AF122: Δ34s | AG122: =IF($K122="_","_",IF(COUNT(AN$1:AN122)=1,TEXT($I$30+$I$9/24,"┌yy-mm-dd hh:mm:ss┐ "),IF(COUNT(AN$1:AN122)=COUNT(AN:AN),TEXT($I$31+$I$9/24,"└yy-mm-dd hh:mm:ss┘ "),""))&TEXT(AD122,IF(AE122,"mmm d dddd hh:mm","hh:mm"))&REPT(" ",MAX(3*(5-LEN(AF122)),1))&AF122) -> └13-10-07 12:19:42┘ Oct 7 Monday 12:19 Δ34s | AH122: 36.42840169 | AI122: -0.8422385789 | AJ122: 837.5 | AK122: 1055.436816 | AL122: 879.5306797 | AM122: 2661.459837 | AN122: 0
A123: 1 | B123: 16000 | C123: 2013-10-06T17:44:26 | D123: 0.0005 | E123: 0 | F123: 6 | H123: smtp server | I123: smtp.googlemail.com | K123: _ | L123: _ | M123: _ | N123: _ | O123: _ | P123: _ | Q123: _ | R123: _ | S123: _ | T123: _ | U123: _ | V123: _ | W123: _ | X123: _ | Y123: _ | Z123: _ | AA123: _ | AB123: _ | AD123: _ | AE123: =IF($K123="_","_",IF(ISNUMBER(AN123),IF(OR(INT(AD123)<>MAX(AE$1:AE122),COUNT(AN$1:AN123)=COUNT(AN:AN)),INT(AD123)))) -> _ | AF123: _ | AG123: =IF($K123="_","_",IF(COUNT(AN$1:AN123)=1,TEXT($I$30+$I$9/24,"┌yy-mm-dd hh:mm:ss┐ "),IF(COUNT(AN$1:AN123)=COUNT(AN:AN),TEXT($I$31+$I$9/24,"└yy-mm-dd hh:mm:ss┘ "),""))&TEXT(AD123,IF(AE123,"mmm d dddd hh:mm","hh:mm"))&REPT(" ",MAX(3*(5-LEN(AF123)),1))&AF123) -> _ | AH123: _ | AI123: _ | AJ123: _ | AK123: _ | AL123: _ | AM123: _ | AN123: _
A124: 1 | B124: 22000 | C124: 2013-10-06T17:44:30 | D124: 0 | E124: 0.00737 | F124: 201 | H124: smtp port | I124: 25 | K124: _ | L124: _ | M124: _ | N124: _ | O124: _ | P124: _ | Q124: _ | R124: _ | S124: _ | T124: _ | U124: _ | V124: _ | W124: _ | X124: _ | Y124: _ | Z124: _ | AA124: _ | AB124: _ | AD124: _ | AE124: =IF($K124="_","_",IF(ISNUMBER(AN124),IF(OR(INT(AD124)<>MAX(AE$1:AE123),COUNT(AN$1:AN124)=COUNT(AN:AN)),INT(AD124)))) -> _ | AF124: _ | AG124: =IF($K124="_","_",IF(COUNT(AN$1:AN124)=1,TEXT($I$30+$I$9/24,"┌yy-mm-dd hh:mm:ss┐ "),IF(COUNT(AN$1:AN124)=COUNT(AN:AN),TEXT($I$31+$I$9/24,"└yy-mm-dd hh:mm:ss┘ "),""))&TEXT(AD124,IF(AE124,"mmm d dddd hh:mm","hh:mm"))&REPT(" ",MAX(3*(5-LEN(AF124)),1))&AF124) -> _ | AH124: _ | AI124: _ | AJ124: _ | AK124: _ | AL124: _ | AM124: _ | AN124: _
A125: 1 | B125: 12000 | C125: 2013-10-06T17:44:30 | D125: 0.10533 | E125: 0 | F125: 1264 | H125: smtp authenticate | I125: 1 | K125: _ | L125: _ | M125: _ | N125: _ | O125: _ | P125: _ | Q125: _ | R125: _ | S125: _ | T125: _ | U125: _ | V125: _ | W125: _ | X125: _ | Y125: _ | Z125: _ | AA125: _ | AB125: _ | AD125: _ | AE125: =IF($K125="_","_",IF(ISNUMBER(AN125),IF(OR(INT(AD125)<>MAX(AE$1:AE124),COUNT(AN$1:AN125)=COUNT(AN:AN)),INT(AD125)))) -> _ | AF125: _ | AG125: =IF($K125="_","_",IF(COUNT(AN$1:AN125)=1,TEXT($I$30+$I$9/24,"┌yy-mm-dd hh:mm:ss┐ "),IF(COUNT(AN$1:AN125)=COUNT(AN:AN),TEXT($I$31+$I$9/24,"└yy-mm-dd hh:mm:ss┘ "),""))&TEXT(AD125,IF(AE125,"mmm d dddd hh:mm","hh:mm"))&REPT(" ",MAX(3*(5-LEN(AF125)),1))&AF125) -> _ | AH125: _ | AI125: _ | AJ125: _ | AK125: _ | AL125: _ | AM125: _ | AN125: _
A126: 1 | B126: 12000 | C126: 2013-10-06T17:44:32 | D126: 0.06 | E126: 0.01867 | F126: 14 | H126: smtp ssl | I126: TRUE | K126: _ | L126: _ | M126: _ | N126: _ | O126: _ | P126: _ | Q126: _ | R126: _ | S126: _ | T126: _ | U126: _ | V126: _ | W126: _ | X126: _ | Y126: _ | Z126: _ | AA126: _ | AB126: _ | AD126: _ | AE126: =IF($K126="_","_",IF(ISNUMBER(AN126),IF(OR(INT(AD126)<>MAX(AE$1:AE125),COUNT(AN$1:AN126)=COUNT(AN:AN)),INT(AD126)))) -> _ | AF126: _ | AG126: =IF($K126="_","_",IF(COUNT(AN$1:AN126)=1,TEXT($I$30+$I$9/24,"┌yy-mm-dd hh:mm:ss┐ "),IF(COUNT(AN$1:AN126)=COUNT(AN:AN),TEXT($I$31+$I$9/24,"└yy-mm-dd hh:mm:ss┘ "),""))&TEXT(AD126,IF(AE126,"mmm d dddd hh:mm","hh:mm"))&REPT(" ",MAX(3*(5-LEN(AF126)),1))&AF126) -> _ | AH126: _ | AI126: _ | AJ126: _ | AK126: _ | AL126: _ | AM126: _ | AN126: _
A127: 1 | B127: 2000 | C127: 2013-10-06T17:44:32 | D127: 0.01467 | E127: 0.01467 | F127: 8 | H127: smtp user | I127: d9a.monitor@gmail.com | K127: _ | L127: _ | M127: _ | N127: _ | O127: _ | P127: _ | Q127: _ | R127: _ | S127: _ | T127: _ | U127: _ | V127: _ | W127: _ | X127: _ | Y127: _ | Z127: _ | AA127: _ | AB127: _ | AD127: _ | AE127: =IF($K127="_","_",IF(ISNUMBER(AN127),IF(OR(INT(AD127)<>MAX(AE$1:AE126),COUNT(AN$1:AN127)=COUNT(AN:AN)),INT(AD127)))) -> _ | AF127: _ | AG127: =IF($K127="_","_",IF(COUNT(AN$1:AN127)=1,TEXT($I$30+$I$9/24,"┌yy-mm-dd hh:mm:ss┐ "),IF(COUNT(AN$1:AN127)=COUNT(AN:AN),TEXT($I$31+$I$9/24,"└yy-mm-dd hh:mm:ss┘ "),""))&TEXT(AD127,IF(AE127,"mmm d dddd hh:mm","hh:mm"))&REPT(" ",MAX(3*(5-LEN(AF127)),1))&AF127) -> _ | AH127: _ | AI127: _ | AJ127: _ | AK127: _ | AL127: _ | AM127: _ | AN127: _
A128: 2 | B128: 0 | C128: 2013-10-06T17:44:32 | H128: smtp password | K128: _ | L128: _ | M128: _ | N128: _ | O128: _ | P128: _ | Q128: _ | R128: _ | S128: _ | T128: _ | U128: _ | V128: _ | W128: _ | X128: _ | Y128: _ | Z128: _ | AA128: _ | AB128: _ | AD128: _ | AE128: =IF($K128="_","_",IF(ISNUMBER(AN128),IF(OR(INT(AD128)<>MAX(AE$1:AE127),COUNT(AN$1:AN128)=COUNT(AN:AN)),INT(AD128)))) -> _ | AF128: _ | AG128: =IF($K128="_","_",IF(COUNT(AN$1:AN128)=1,TEXT($I$30+$I$9/24,"┌yy-mm-dd hh:mm:ss┐ "),IF(COUNT(AN$1:AN128)=COUNT(AN:AN),TEXT($I$31+$I$9/24,"└yy-mm-dd hh:mm:ss┘ "),""))&TEXT(AD128,IF(AE128,"mmm d dddd hh:mm","hh:mm"))&REPT(" ",MAX(3*(5-LEN(AF128)),1))&AF128) -> _ | AH128: _ | AI128: _ | AJ128: _ | AK128: _ | AL128: _ | AM128: _ | AN128: _
A129: 2 | B129: 0 | C129: 2013-10-06T17:44:33 | H129: smtp from | I129: d9a Monitor Gmail.com <d9a.monitor@gmail.com> | K129: _ | L129: _ | M129: _ | N129: _ | O129: _ | P129: _ | Q129: _ | R129: _ | S129: _ | T129: _ | U129: _ | V129: _ | W129: _ | X129: _ | Y129: _ | Z129: _ | AA129: _ | AB129: _ | AD129: _ | AE129: =IF($K129="_","_",IF(ISNUMBER(AN129),IF(OR(INT(AD129)<>MAX(AE$1:AE128),COUNT(AN$1:AN129)=COUNT(AN:AN)),INT(AD129)))) -> _ | AF129: _ | AG129: =IF($K129="_","_",IF(COUNT(AN$1:AN129)=1,TEXT($I$30+$I$9/24,"┌yy-mm-dd hh:mm:ss┐ "),IF(COUNT(AN$1:AN129)=COUNT(AN:AN),TEXT($I$31+$I$9/24,"└yy-mm-dd hh:mm:ss┘ "),""))&TEXT(AD129,IF(AE129,"mmm d dddd hh:mm","hh:mm"))&REPT(" ",MAX(3*(5-LEN(AF129)),1))&AF129) -> _ | AH129: _ | AI129: _ | AJ129: _ | AK129: _ | AL129: _ | AM129: _ | AN129: _
A130: 2 | B130: 0 | C130: 2013-10-06T17:44:41 | H130: smtp way | I130: =CELL("address",I130) -> $I$130 | K130: _ | L130: _ | M130: _ | N130: _ | O130: _ | P130: =IF($K130="_","_",IF(MOD(ROW()-1,2)=1,IF($K130<$I$27,"<"&($L130+$M130),">=0"),P$1)) -> _ | Q130: =IF($K130="_","_",IF(MOD(ROW()-1,2)=1,">="&$I$39,Q$1)) -> _ | R130: _ | S130: _ | T130: =IF($K130="_","_",IF(MOD(ROW()-1,2)=0,IF($K130<$I$27,"<"&($L130+$M130),">=0"),T$1)) -> _ | U130: =IF($K130="_","_",IF(MOD(ROW()-1,2)=0,">="&$I$39,U$1)) -> _ | V130: =IF($K130="_","_",DCOUNT($A:$F,"Time",IF(MOD(ROW()-1,2)=1,$O129:$P130,$S129:$T130))) -> _ | W130: =IF($K130="_","_",DCOUNT($A:$F,"Time",IF(MOD(ROW()-1,2)=1,$N129:$P130,$R129:$T130))) -> _ | X130: =IF($K130="_","_",DCOUNT($A:$F,"Time",IF(MOD(ROW()-1,2)=1,$N129:$Q130,$R129:$U130))) -> _ | Y130: =IF($K130="_","_",DSUM($A:$F,Y$1,IF(MOD(ROW()-1,2)=1,$N129:$P130,$R129:$T130))) -> _ | Z130: =IF($K130="_","_",DSUM($A:$F,Z$1,IF(MOD(ROW()-1,2)=1,$N129:$P130,$R129:$T130))) -> _ | AA130: =IF($K130="_","_",DSUM($A:$F,AA$1,IF(MOD(ROW()-1,2)=1,$N129:$P130,$R129:$T130))) -> _ | AB130: =IF($K130="_","_",DSUM($A:$F,AB$1,IF(MOD(ROW()-1,2)=1,$N129:$P130,$R129:$T130))) -> _ | AD130: =IF($K130="_","_",L130+M130/2+$I$9/24) -> _ | AE130: =IF($K130="_","_",IF(ISNUMBER(AN130),IF(OR(INT(AD130)<>MAX(AE$1:AE129),COUNT(AN$1:AN130)=COUNT(AN:AN)),INT(AD130)))) -> _ | AF130: _ | AG130: =IF($K130="_","_",IF(COUNT(AN$1:AN130)=1,TEXT($I$30+$I$9/24,"┌yy-mm-dd hh:mm:ss┐ "),IF(COUNT(AN$1:AN130)=COUNT(AN:AN),TEXT($I$31+$I$9/24,"└yy-mm-dd hh:mm:ss┘ "),""))&TEXT(AD130,IF(AE130,"mmm d dddd hh:mm","hh:mm"))&REPT(" ",MAX(3*(5-LEN(AF130)),1))&AF130) -> _ | AH130: _ | AI130: _ | AJ130: =IF($K130="_","_",IF(W130=0,NA(),Y130/W130/1000*$I$59)) -> _ | AK130: =IF($K130="_","_",X130/($M130*24*60)*$I$60) -> _ | AL130: =IF($K130="_","_",(V130-X130)/($M130*24*60)*$I$60) -> _ | AM130: _ | AN130: =IF($K130="_","_",IF(MOD(ROW()-2,$I$37)=0,0,NA())) -> _
A131: 2 | B131: 0 | C131: 2013-10-06T17:44:42 | H131: smtp server | I131: smtp.switzernet.com | K131: =IF(ISNUMBER(K130),IF(K130<$I$27,K130+1,"_"),"_") -> _ | L131: _ | M131: =IF(K131="_","_",M130/$I$29) -> _ | N131: =IF($K131="_","_",IF(MOD(ROW()-1,2)=1,"=1",N$1)) -> _ | O131: =IF($K131="_","_",IF(MOD(ROW()-1,2)=1,">="&$L131,O$1)) -> _ | P131: _ | Q131: _ | R131: =IF($K131="_","_",IF(MOD(ROW()-1,2)=0,"=1",R$1)) -> _ | S131: =IF($K131="_","_",IF(MOD(ROW()-1,2)=0,">="&$L131,S$1)) -> _ | T131: _ | U131: _ | V131: _ | W131: _ | X131: _ | Y131: _ | Z131: _ | AA131: _ | AB131: _ | AD131: _ | AE131: =IF($K131="_","_",IF(ISNUMBER(AN131),IF(OR(INT(AD131)<>MAX(AE$1:AE130),COUNT(AN$1:AN131)=COUNT(AN:AN)),INT(AD131)))) -> _ | AF131: =IF($K131="_","_","Δ"&IF(M131>1,TEXT(M131,"0\d"),IF(M131>1/24,TEXT(M131*24,"0\h"),IF(M131>1/(24*60),TEXT(M131*24*60,"0\m"),TEXT(M131*24*60*60,"0\s"))))) -> _ | AG131: =IF($K131="_","_",IF(COUNT(AN$1:AN131)=1,TEXT($I$30+$I$9/24,"┌yy-mm-dd hh:mm:ss┐ "),IF(COUNT(AN$1:AN131)=COUNT(AN:AN),TEXT($I$31+$I$9/24,"└yy-mm-dd hh:mm:ss┘ "),""))&TEXT(AD131,IF(AE131,"mmm d dddd hh:mm","hh:mm"))&REPT(" ",MAX(3*(5-LEN(AF131)),1))&AF131) -> _ | AH131: _ | AI131: _ | AJ131: _ | AK131: _ | AL131: _ | AM131: _ | AN131: _
A132: 1 | B132: 16000 | C132: 2013-10-06T17:44:43 | D132: 3.57083 | E132: 0.22711 | F132: 857 | H132: smtp port | I132: 587 | K132: _ | L132: _ | M132: _ | N132: _ | O132: _ | P132: _ | Q132: _ | R132: _ | S132: _ | T132: _ | U132: _ | V132: _ | W132: _ | X132: _ | Y132: _ | Z132: _ | AA132: _ | AB132: _ | AD132: _ | AE132: =IF($K132="_","_",IF(ISNUMBER(AN132),IF(OR(INT(AD132)<>MAX(AE$1:AE131),COUNT(AN$1:AN132)=COUNT(AN:AN)),INT(AD132)))) -> _ | AF132: _ | AG132: =IF($K132="_","_",IF(COUNT(AN$1:AN132)=1,TEXT($I$30+$I$9/24,"┌yy-mm-dd hh:mm:ss┐ "),IF(COUNT(AN$1:AN132)=COUNT(AN:AN),TEXT($I$31+$I$9/24,"└yy-mm-dd hh:mm:ss┘ "),""))&TEXT(AD132,IF(AE132,"mmm d dddd hh:mm","hh:mm"))&REPT(" ",MAX(3*(5-LEN(AF132)),1))&AF132) -> _ | AH132: _ | AI132: _ | AJ132: _ | AK132: _ | AL132: _ | AM132: _ | AN132: _
A133: 1 | B133: 17000 | C133: 2013-10-06T17:44:50 | D133: 0 | E133: 0.61089 | F133: 2909 | H133: smtp authenticate | I133: 1 | K133: _ | L133: _ | M133: _ | N133: _ | O133: _ | P133: _ | Q133: _ | R133: _ | S133: _ | T133: _ | U133: _ | V133: _ | W133: _ | X133: _ | Y133: _ | Z133: _ | AA133: _ | AB133: _ | AD133: _ | AE133: =IF($K133="_","_",IF(ISNUMBER(AN133),IF(OR(INT(AD133)<>MAX(AE$1:AE132),COUNT(AN$1:AN133)=COUNT(AN:AN)),INT(AD133)))) -> _ | AF133: _ | AG133: =IF($K133="_","_",IF(COUNT(AN$1:AN133)=1,TEXT($I$30+$I$9/24,"┌yy-mm-dd hh:mm:ss┐ "),IF(COUNT(AN$1:AN133)=COUNT(AN:AN),TEXT($I$31+$I$9/24,"└yy-mm-dd hh:mm:ss┘ "),""))&TEXT(AD133,IF(AE133,"mmm d dddd hh:mm","hh:mm"))&REPT(" ",MAX(3*(5-LEN(AF133)),1))&AF133) -> _ | AH133: _ | AI133: _ | AJ133: _ | AK133: _ | AL133: _ | AM133: _ | AN133: _
A134: 2 | B134: 0 | C134: 2013-10-06T17:44:57 | H134: smtp ssl | I134: FALSE | K134: _ | L134: _ | M134: _ | N134: _ | O134: _ | P134: _ | Q134: _ | R134: _ | S134: _ | T134: _ | U134: _ | V134: _ | W134: _ | X134: _ | Y134: _ | Z134: _ | AA134: _ | AB134: _ | AD134: _ | AE134: =IF($K134="_","_",IF(ISNUMBER(AN134),IF(OR(INT(AD134)<>MAX(AE$1:AE133),COUNT(AN$1:AN134)=COUNT(AN:AN)),INT(AD134)))) -> _ | AF134: _ | AG134: =IF($K134="_","_",IF(COUNT(AN$1:AN134)=1,TEXT($I$30+$I$9/24,"┌yy-mm-dd hh:mm:ss┐ "),IF(COUNT(AN$1:AN134)=COUNT(AN:AN),TEXT($I$31+$I$9/24,"└yy-mm-dd hh:mm:ss┘ "),""))&TEXT(AD134,IF(AE134,"mmm d dddd hh:mm","hh:mm"))&REPT(" ",MAX(3*(5-LEN(AF134)),1))&AF134) -> _ | AH134: _ | AI134: _ | AJ134: _ | AK134: _ | AL134: _ | AM134: _ | AN134: _
A135: 1 | B135: 28000 | C135: 2013-10-06T17:45:03 | D135: 0 | E135: 0.03868 | F135: 566 | H135: smtp user | I135: d9a.monitor@smtp.switzernet.com | K135: _ | L135: _ | M135: _ | N135: _ | O135: _ | P135: _ | Q135: _ | R135: _ | S135: _ | T135: _ | U135: _ | V135: _ | W135: _ | X135: _ | Y135: _ | Z135: _ | AA135: _ | AB135: _ | AD135: _ | AE135: =IF($K135="_","_",IF(ISNUMBER(AN135),IF(OR(INT(AD135)<>MAX(AE$1:AE134),COUNT(AN$1:AN135)=COUNT(AN:AN)),INT(AD135)))) -> _ | AF135: _ | AG135: =IF($K135="_","_",IF(COUNT(AN$1:AN135)=1,TEXT($I$30+$I$9/24,"┌yy-mm-dd hh:mm:ss┐ "),IF(COUNT(AN$1:AN135)=COUNT(AN:AN),TEXT($I$31+$I$9/24,"└yy-mm-dd hh:mm:ss┘ "),""))&TEXT(AD135,IF(AE135,"mmm d dddd hh:mm","hh:mm"))&REPT(" ",MAX(3*(5-LEN(AF135)),1))&AF135) -> _ | AH135: _ | AI135: _ | AJ135: _ | AK135: _ | AL135: _ | AM135: _ | AN135: _
A136: 1 | B136: 19000 | C136: 2013-10-06T17:45:06 | D136: 0 | E136: 0.00059 | F136: 6 | H136: smtp password | K136: _ | L136: _ | M136: _ | N136: _ | O136: _ | P136: _ | Q136: _ | R136: _ | S136: _ | T136: _ | U136: _ | V136: _ | W136: _ | X136: _ | Y136: _ | Z136: _ | AA136: _ | AB136: _ | AD136: _ | AE136: =IF($K136="_","_",IF(ISNUMBER(AN136),IF(OR(INT(AD136)<>MAX(AE$1:AE135),COUNT(AN$1:AN136)=COUNT(AN:AN)),INT(AD136)))) -> _ | AF136: _ | AG136: =IF($K136="_","_",IF(COUNT(AN$1:AN136)=1,TEXT($I$30+$I$9/24,"┌yy-mm-dd hh:mm:ss┐ "),IF(COUNT(AN$1:AN136)=COUNT(AN:AN),TEXT($I$31+$I$9/24,"└yy-mm-dd hh:mm:ss┘ "),""))&TEXT(AD136,IF(AE136,"mmm d dddd hh:mm","hh:mm"))&REPT(" ",MAX(3*(5-LEN(AF136)),1))&AF136) -> _ | AH136: _ | AI136: _ | AJ136: _ | AK136: _ | AL136: _ | AM136: _ | AN136: _
A137: 1 | B137: 11000 | C137: 2013-10-06T17:45:08 | D137: 0 | E137: 0.22572 | F137: 1188 | H137: smtp from | I137: d9a Monitor Switzernet.com <d9a.monitor@switzernet.com> | K137: _ | L137: _ | M137: _ | N137: _ | O137: _ | P137: _ | Q137: _ | R137: _ | S137: _ | T137: _ | U137: _ | V137: _ | W137: _ | X137: _ | Y137: _ | Z137: _ | AA137: _ | AB137: _ | AD137: _ | AE137: =IF($K137="_","_",IF(ISNUMBER(AN137),IF(OR(INT(AD137)<>MAX(AE$1:AE136),COUNT(AN$1:AN137)=COUNT(AN:AN)),INT(AD137)))) -> _ | AF137: _ | AG137: =IF($K137="_","_",IF(COUNT(AN$1:AN137)=1,TEXT($I$30+$I$9/24,"┌yy-mm-dd hh:mm:ss┐ "),IF(COUNT(AN$1:AN137)=COUNT(AN:AN),TEXT($I$31+$I$9/24,"└yy-mm-dd hh:mm:ss┘ "),""))&TEXT(AD137,IF(AE137,"mmm d dddd hh:mm","hh:mm"))&REPT(" ",MAX(3*(5-LEN(AF137)),1))&AF137) -> _ | AH137: _ | AI137: _ | AJ137: _ | AK137: _ | AL137: _ | AM137: _ | AN137: _
A138: 2 | B138: 0 | C138: 2013-10-06T17:45:08 | K138: _ | L138: _ | M138: _ | N138: _ | O138: _ | P138: _ | Q138: _ | R138: _ | S138: _ | T138: _ | U138: _ | V138: _ | W138: _ | X138: _ | Y138: _ | Z138: _ | AA138: _ | AB138: _ | AD138: _ | AE138: =IF($K138="_","_",IF(ISNUMBER(AN138),IF(OR(INT(AD138)<>MAX(AE$1:AE137),COUNT(AN$1:AN138)=COUNT(AN:AN)),INT(AD138)))) -> _ | AF138: _ | AG138: =IF($K138="_","_",IF(COUNT(AN$1:AN138)=1,TEXT($I$30+$I$9/24,"┌yy-mm-dd hh:mm:ss┐ "),IF(COUNT(AN$1:AN138)=COUNT(AN:AN),TEXT($I$31+$I$9/24,"└yy-mm-dd hh:mm:ss┘ "),""))&TEXT(AD138,IF(AE138,"mmm d dddd hh:mm","hh:mm"))&REPT(" ",MAX(3*(5-LEN(AF138)),1))&AF138) -> _ | AH138: _ | AI138: _ | AJ138: _ | AK138: _ | AL138: _ | AM138: _ | AN138: _
A139: 2 | B139: 0 | C139: 2013-10-06T17:45:09 | H139: schedule_period | I139: 0.006944444444 | K139: _ | L139: _ | M139: _ | N139: _ | O139: _ | P139: _ | Q139: _ | R139: _ | S139: _ | T139: _ | U139: _ | V139: _ | W139: _ | X139: _ | Y139: _ | Z139: _ | AA139: _ | AB139: _ | AD139: _ | AE139: =IF($K139="_","_",IF(ISNUMBER(AN139),IF(OR(INT(AD139)<>MAX(AE$1:AE138),COUNT(AN$1:AN139)=COUNT(AN:AN)),INT(AD139)))) -> _ | AF139: _ | AG139: =IF($K139="_","_",IF(COUNT(AN$1:AN139)=1,TEXT($I$30+$I$9/24,"┌yy-mm-dd hh:mm:ss┐ "),IF(COUNT(AN$1:AN139)=COUNT(AN:AN),TEXT($I$31+$I$9/24,"└yy-mm-dd hh:mm:ss┘ "),""))&TEXT(AD139,IF(AE139,"mmm d dddd hh:mm","hh:mm"))&REPT(" ",MAX(3*(5-LEN(AF139)),1))&AF139) -> _ | AH139: _ | AI139: _ | AJ139: _ | AK139: _ | AL139: _ | AM139: _ | AN139: _
A140: 1 | B140: 16000 | C140: 2013-10-06T17:45:14 | D140: 0 | E140: 0.04674 | F140: 246 | H140: schedule_running | I140: TRUE | K140: _ | L140: _ | M140: _ | N140: _ | O140: _ | P140: _ | Q140: _ | R140: _ | S140: _ | T140: _ | U140: _ | V140: _ | W140: _ | X140: _ | Y140: _ | Z140: _ | AA140: _ | AB140: _ | AD140: _ | AE140: =IF($K140="_","_",IF(ISNUMBER(AN140),IF(OR(INT(AD140)<>MAX(AE$1:AE139),COUNT(AN$1:AN140)=COUNT(AN:AN)),INT(AD140)))) -> _ | AF140: _ | AG140: =IF($K140="_","_",IF(COUNT(AN$1:AN140)=1,TEXT($I$30+$I$9/24,"┌yy-mm-dd hh:mm:ss┐ "),IF(COUNT(AN$1:AN140)=COUNT(AN:AN),TEXT($I$31+$I$9/24,"└yy-mm-dd hh:mm:ss┘ "),""))&TEXT(AD140,IF(AE140,"mmm d dddd hh:mm","hh:mm"))&REPT(" ",MAX(3*(5-LEN(AF140)),1))&AF140) -> _ | AH140: _ | AI140: _ | AJ140: _ | AK140: _ | AL140: _ | AM140: _ | AN140: _
A141: 1 | B141: 11000 | C141: 2013-10-06T17:45:15 | D141: 0.047 | E141: 0 | F141: 564 | H141: schedule_next | I141: 2013-10-07T12:22:31 | K141: _ | L141: _ | M141: _ | N141: _ | O141: _ | P141: _ | Q141: _ | R141: _ | S141: _ | T141: _ | U141: _ | V141: _ | W141: _ | X141: _ | Y141: _ | Z141: _ | AA141: _ | AB141: _ | AD141: _ | AE141: =IF($K141="_","_",IF(ISNUMBER(AN141),IF(OR(INT(AD141)<>MAX(AE$1:AE140),COUNT(AN$1:AN141)=COUNT(AN:AN)),INT(AD141)))) -> _ | AF141: _ | AG141: =IF($K141="_","_",IF(COUNT(AN$1:AN141)=1,TEXT($I$30+$I$9/24,"┌yy-mm-dd hh:mm:ss┐ "),IF(COUNT(AN$1:AN141)=COUNT(AN:AN),TEXT($I$31+$I$9/24,"└yy-mm-dd hh:mm:ss┘ "),""))&TEXT(AD141,IF(AE141,"mmm d dddd hh:mm","hh:mm"))&REPT(" ",MAX(3*(5-LEN(AF141)),1))&AF141) -> _ | AH141: _ | AI141: _ | AJ141: _ | AK141: _ | AL141: _ | AM141: _ | AN141: _
A142: 1 | B142: 28000 | C142: 2013-10-06T17:45:17 | D142: 0 | E142: 0.00076 | F142: 4 | H142: schedule_reporting | I142: 0.4583333333 | K142: _ | L142: _ | M142: _ | N142: _ | O142: _ | P142: _ | Q142: _ | R142: _ | S142: _ | T142: _ | U142: _ | V142: _ | W142: _ | X142: _ | Y142: _ | Z142: _ | AA142: _ | AB142: _ | AD142: _ | AE142: =IF($K142="_","_",IF(ISNUMBER(AN142),IF(OR(INT(AD142)<>MAX(AE$1:AE141),COUNT(AN$1:AN142)=COUNT(AN:AN)),INT(AD142)))) -> _ | AF142: _ | AG142: =IF($K142="_","_",IF(COUNT(AN$1:AN142)=1,TEXT($I$30+$I$9/24,"┌yy-mm-dd hh:mm:ss┐ "),IF(COUNT(AN$1:AN142)=COUNT(AN:AN),TEXT($I$31+$I$9/24,"└yy-mm-dd hh:mm:ss┘ "),""))&TEXT(AD142,IF(AE142,"mmm d dddd hh:mm","hh:mm"))&REPT(" ",MAX(3*(5-LEN(AF142)),1))&AF142) -> _ | AH142: _ | AI142: _ | AJ142: _ | AK142: _ | AL142: _ | AM142: _ | AN142: _
A143: 2 | B143: 0 | C143: 2013-10-06T17:45:20 | H143: schedule_report | I143: 2013-10-07T22:39:03 | K143: _ | L143: _ | M143: _ | N143: _ | O143: _ | P143: _ | Q143: _ | R143: _ | S143: _ | T143: _ | U143: _ | V143: _ | W143: _ | X143: _ | Y143: _ | Z143: _ | AA143: _ | AB143: _ | AD143: _ | AE143: =IF($K143="_","_",IF(ISNUMBER(AN143),IF(OR(INT(AD143)<>MAX(AE$1:AE142),COUNT(AN$1:AN143)=COUNT(AN:AN)),INT(AD143)))) -> _ | AF143: _ | AG143: =IF($K143="_","_",IF(COUNT(AN$1:AN143)=1,TEXT($I$30+$I$9/24,"┌yy-mm-dd hh:mm:ss┐ "),IF(COUNT(AN$1:AN143)=COUNT(AN:AN),TEXT($I$31+$I$9/24,"└yy-mm-dd hh:mm:ss┘ "),""))&TEXT(AD143,IF(AE143,"mmm d dddd hh:mm","hh:mm"))&REPT(" ",MAX(3*(5-LEN(AF143)),1))&AF143) -> _ | AH143: _ | AI143: _ | AJ143: _ | AK143: _ | AL143: _ | AM143: _ | AN143: _
A144: 1 | B144: 18000 | C144: 2013-10-06T17:45:30 | D144: 2.995 | E144: 0.22962 | F144: 599 | K144: _ | L144: _ | M144: _ | N144: _ | O144: _ | P144: _ | Q144: _ | R144: _ | S144: _ | T144: _ | U144: _ | V144: _ | W144: _ | X144: _ | Y144: _ | Z144: _ | AA144: _ | AB144: _ | AD144: _ | AE144: =IF($K144="_","_",IF(ISNUMBER(AN144),IF(OR(INT(AD144)<>MAX(AE$1:AE143),COUNT(AN$1:AN144)=COUNT(AN:AN)),INT(AD144)))) -> _ | AF144: _ | AG144: =IF($K144="_","_",IF(COUNT(AN$1:AN144)=1,TEXT($I$30+$I$9/24,"┌yy-mm-dd hh:mm:ss┐ "),IF(COUNT(AN$1:AN144)=COUNT(AN:AN),TEXT($I$31+$I$9/24,"└yy-mm-dd hh:mm:ss┘ "),""))&TEXT(AD144,IF(AE144,"mmm d dddd hh:mm","hh:mm"))&REPT(" ",MAX(3*(5-LEN(AF144)),1))&AF144) -> _ | AH144: _ | AI144: _ | AJ144: _ | AK144: _ | AL144: _ | AM144: _ | AN144: _
A145: 2 | B145: 0 | C145: 2013-10-06T17:45:33 | H145: error window | I145: =IF(db_error&chunk_report&smtp_error<>"","..."&RIGHT(IF(db_error<>""," >>MySQL Errors:"&db_error,"")&IF(chunk_report<>""," >>Sync Errors:"&chunk_report,"")&IF(smtp_error<>""," >>Sync Errors:"&smtp_error,""),251)&"!","") -> ...0:00' and '2013-10-05 13:59:59'. On 13-10-07 12:00:47 detecting 11828 missing calls between UTC '2013-10-05 14:00:00' and '2013-10-06 20:59:59'. After re-syncing... detecting 0 missing calls between UTC '2013-10-05 14:00:00' and '2013-10-06 20:59:59'.! | K145: _ | L145: _ | M145: _ | N145: _ | O145: _ | P145: _ | Q145: _ | R145: _ | S145: _ | T145: _ | U145: _ | V145: _ | W145: _ | X145: _ | Y145: _ | Z145: _ | AA145: _ | AB145: _ | AD145: _ | AE145: =IF($K145="_","_",IF(ISNUMBER(AN145),IF(OR(INT(AD145)<>MAX(AE$1:AE144),COUNT(AN$1:AN145)=COUNT(AN:AN)),INT(AD145)))) -> _ | AF145: _ | AG145: =IF($K145="_","_",IF(COUNT(AN$1:AN145)=1,TEXT($I$30+$I$9/24,"┌yy-mm-dd hh:mm:ss┐ "),IF(COUNT(AN$1:AN145)=COUNT(AN:AN),TEXT($I$31+$I$9/24,"└yy-mm-dd hh:mm:ss┘ "),""))&TEXT(AD145,IF(AE145,"mmm d dddd hh:mm","hh:mm"))&REPT(" ",MAX(3*(5-LEN(AF145)),1))&AF145) -> _ | AH145: _ | AI145: _ | AJ145: _ | AK145: _ | AL145: _ | AM145: _ | AN145: _
A146: 2 | B146: 0 | C146: 2013-10-06T17:45:33 | K146: _ | L146: _ | M146: _ | N146: _ | O146: _ | P146: _ | Q146: _ | R146: _ | S146: _ | T146: _ | U146: _ | V146: _ | W146: _ | X146: _ | Y146: _ | Z146: _ | AA146: _ | AB146: _ | AD146: _ | AE146: =IF($K146="_","_",IF(ISNUMBER(AN146),IF(OR(INT(AD146)<>MAX(AE$1:AE145),COUNT(AN$1:AN146)=COUNT(AN:AN)),INT(AD146)))) -> _ | AF146: _ | AG146: =IF($K146="_","_",IF(COUNT(AN$1:AN146)=1,TEXT($I$30+$I$9/24,"┌yy-mm-dd hh:mm:ss┐ "),IF(COUNT(AN$1:AN146)=COUNT(AN:AN),TEXT($I$31+$I$9/24,"└yy-mm-dd hh:mm:ss┘ "),""))&TEXT(AD146,IF(AE146,"mmm d dddd hh:mm","hh:mm"))&REPT(" ",MAX(3*(5-LEN(AF146)),1))&AF146) -> _ | AH146: _ | AI146: _ | AJ146: _ | AK146: _ | AL146: _ | AM146: _ | AN146: _
A147: 2 | B147: 0 | C147: 2013-10-06T17:45:33 | K147: _ | L147: _ | M147: _ | N147: _ | O147: _ | P147: _ | Q147: _ | R147: _ | S147: _ | T147: _ | U147: _ | V147: _ | W147: _ | X147: _ | Y147: _ | Z147: _ | AA147: _ | AB147: _ | AD147: _ | AE147: =IF($K147="_","_",IF(ISNUMBER(AN147),IF(OR(INT(AD147)<>MAX(AE$1:AE146),COUNT(AN$1:AN147)=COUNT(AN:AN)),INT(AD147)))) -> _ | AF147: _ | AG147: =IF($K147="_","_",IF(COUNT(AN$1:AN147)=1,TEXT($I$30+$I$9/24,"┌yy-mm-dd hh:mm:ss┐ "),IF(COUNT(AN$1:AN147)=COUNT(AN:AN),TEXT($I$31+$I$9/24,"└yy-mm-dd hh:mm:ss┘ "),""))&TEXT(AD147,IF(AE147,"mmm d dddd hh:mm","hh:mm"))&REPT(" ",MAX(3*(5-LEN(AF147)),1))&AF147) -> _ | AH147: _ | AI147: _ | AJ147: _ | AK147: _ | AL147: _ | AM147: _ | AN147: _
A148: 2 | B148: 0 | C148: 2013-10-06T17:45:33 | K148: _ | L148: _ | M148: _ | N148: _ | O148: _ | P148: _ | Q148: _ | R148: _ | S148: _ | T148: _ | U148: _ | V148: _ | W148: _ | X148: _ | Y148: _ | Z148: _ | AA148: _ | AB148: _ | AD148: _ | AE148: =IF($K148="_","_",IF(ISNUMBER(AN148),IF(OR(INT(AD148)<>MAX(AE$1:AE147),COUNT(AN$1:AN148)=COUNT(AN:AN)),INT(AD148)))) -> _ | AF148: _ | AG148: =IF($K148="_","_",IF(COUNT(AN$1:AN148)=1,TEXT($I$30+$I$9/24,"┌yy-mm-dd hh:mm:ss┐ "),IF(COUNT(AN$1:AN148)=COUNT(AN:AN),TEXT($I$31+$I$9/24,"└yy-mm-dd hh:mm:ss┘ "),""))&TEXT(AD148,IF(AE148,"mmm d dddd hh:mm","hh:mm"))&REPT(" ",MAX(3*(5-LEN(AF148)),1))&AF148) -> _ | AH148: _ | AI148: _ | AJ148: _ | AK148: _ | AL148: _ | AM148: _ | AN148: _
A149: 2 | B149: 0 | C149: 2013-10-06T17:45:33 | K149: _ | L149: _ | M149: _ | N149: _ | O149: _ | P149: _ | Q149: _ | R149: _ | S149: _ | T149: _ | U149: _ | V149: _ | W149: _ | X149: _ | Y149: _ | Z149: _ | AA149: _ | AB149: _ | AD149: _ | AE149: =IF($K149="_","_",IF(ISNUMBER(AN149),IF(OR(INT(AD149)<>MAX(AE$1:AE148),COUNT(AN$1:AN149)=COUNT(AN:AN)),INT(AD149)))) -> _ | AF149: _ | AG149: =IF($K149="_","_",IF(COUNT(AN$1:AN149)=1,TEXT($I$30+$I$9/24,"┌yy-mm-dd hh:mm:ss┐ "),IF(COUNT(AN$1:AN149)=COUNT(AN:AN),TEXT($I$31+$I$9/24,"└yy-mm-dd hh:mm:ss┘ "),""))&TEXT(AD149,IF(AE149,"mmm d dddd hh:mm","hh:mm"))&REPT(" ",MAX(3*(5-LEN(AF149)),1))&AF149) -> _ | AH149: _ | AI149: _ | AJ149: _ | AK149: _ | AL149: _ | AM149: _ | AN149: _
A150: 1 | B150: 11000 | C150: 2013-10-06T17:45:35 | D150: 0 | E150: 0.06444 | F150: 537 | K150: _ | L150: _ | M150: _ | N150: _ | O150: _ | P150: _ | Q150: _ | R150: _ | S150: _ | T150: _ | U150: _ | V150: _ | W150: _ | X150: _ | Y150: _ | Z150: _ | AA150: _ | AB150: _ | AD150: _ | AE150: =IF($K150="_","_",IF(ISNUMBER(AN150),IF(OR(INT(AD150)<>MAX(AE$1:AE149),COUNT(AN$1:AN150)=COUNT(AN:AN)),INT(AD150)))) -> _ | AF150: _ | AG150: =IF($K150="_","_",IF(COUNT(AN$1:AN150)=1,TEXT($I$30+$I$9/24,"┌yy-mm-dd hh:mm:ss┐ "),IF(COUNT(AN$1:AN150)=COUNT(AN:AN),TEXT($I$31+$I$9/24,"└yy-mm-dd hh:mm:ss┘ "),""))&TEXT(AD150,IF(AE150,"mmm d dddd hh:mm","hh:mm"))&REPT(" ",MAX(3*(5-LEN(AF150)),1))&AF150) -> _ | AH150: _ | AI150: _ | AJ150: _ | AK150: _ | AL150: _ | AM150: _ | AN150: _
A151: 1 | B151: 13000 | C151: 2013-10-06T17:45:36 | D151: 0.28183 | E151: 0 | F151: 3382 | K151: _ | L151: _ | M151: _ | N151: _ | O151: _ | P151: _ | Q151: _ | R151: _ | S151: _ | T151: _ | U151: _ | V151: _ | W151: _ | X151: _ | Y151: _ | Z151: _ | AA151: _ | AB151: _ | AD151: _ | AE151: =IF($K151="_","_",IF(ISNUMBER(AN151),IF(OR(INT(AD151)<>MAX(AE$1:AE150),COUNT(AN$1:AN151)=COUNT(AN:AN)),INT(AD151)))) -> _ | AF151: _ | AG151: =IF($K151="_","_",IF(COUNT(AN$1:AN151)=1,TEXT($I$30+$I$9/24,"┌yy-mm-dd hh:mm:ss┐ "),IF(COUNT(AN$1:AN151)=COUNT(AN:AN),TEXT($I$31+$I$9/24,"└yy-mm-dd hh:mm:ss┘ "),""))&TEXT(AD151,IF(AE151,"mmm d dddd hh:mm","hh:mm"))&REPT(" ",MAX(3*(5-LEN(AF151)),1))&AF151) -> _ | AH151: =IF($K151="_","_",AA151/($M151*24)) -> _ | AI151: =IF($K151="_","_",(Z151-AA151)/($M151*24)) -> _ | AJ151: _ | AK151: _ | AL151: _ | AM151: =IF($K151="_","_",(AB151/60)/($M151*24)) -> _ | AN151: _
A152: 1 | B152: 6000 | C152: 2013-10-06T17:45:38 | D152: 0.04817 | E152: 0 | F152: 578 | K152: _ | L152: =IF(K152="_","_",L151+M151) -> _ | M152: _ | N152: _ | O152: _ | P152: _ | Q152: _ | R152: _ | S152: _ | T152: _ | U152: _ | V152: _ | W152: _ | X152: _ | Y152: _ | Z152: _ | AA152: _ | AB152: _ | AD152: _ | AE152: =IF($K152="_","_",IF(ISNUMBER(AN152),IF(OR(INT(AD152)<>MAX(AE$1:AE151),COUNT(AN$1:AN152)=COUNT(AN:AN)),INT(AD152)))) -> _ | AF152: _ | AG152: =IF($K152="_","_",IF(COUNT(AN$1:AN152)=1,TEXT($I$30+$I$9/24,"┌yy-mm-dd hh:mm:ss┐ "),IF(COUNT(AN$1:AN152)=COUNT(AN:AN),TEXT($I$31+$I$9/24,"└yy-mm-dd hh:mm:ss┘ "),""))&TEXT(AD152,IF(AE152,"mmm d dddd hh:mm","hh:mm"))&REPT(" ",MAX(3*(5-LEN(AF152)),1))&AF152) -> _ | AH152: _ | AI152: _ | AJ152: _ | AK152: _ | AL152: _ | AM152: _ | AN152: _
A153: 2 | B153: 0 | C153: 2013-10-06T17:45:39 | K153: _ | L153: _ | M153: _ | N153: _ | O153: _ | P153: _ | Q153: _ | R153: _ | S153: _ | T153: _ | U153: _ | V153: _ | W153: _ | X153: _ | Y153: _ | Z153: _ | AA153: _ | AB153: _ | AD153: _ | AE153: =IF($K153="_","_",IF(ISNUMBER(AN153),IF(OR(INT(AD153)<>MAX(AE$1:AE152),COUNT(AN$1:AN153)=COUNT(AN:AN)),INT(AD153)))) -> _ | AF153: _ | AG153: =IF($K153="_","_",IF(COUNT(AN$1:AN153)=1,TEXT($I$30+$I$9/24,"┌yy-mm-dd hh:mm:ss┐ "),IF(COUNT(AN$1:AN153)=COUNT(AN:AN),TEXT($I$31+$I$9/24,"└yy-mm-dd hh:mm:ss┘ "),""))&TEXT(AD153,IF(AE153,"mmm d dddd hh:mm","hh:mm"))&REPT(" ",MAX(3*(5-LEN(AF153)),1))&AF153) -> _ | AH153: _ | AI153: _ | AJ153: _ | AK153: _ | AL153: _ | AM153: _ | AN153: _
A154: 1 | B154: 14000 | C154: 2013-10-06T17:45:40 | D154: 0 | E154: 0.00684 | F154: 36 | K154: _ | L154: _ | M154: _ | N154: _ | O154: _ | P154: _ | Q154: _ | R154: _ | S154: _ | T154: _ | U154: _ | V154: _ | W154: _ | X154: _ | Y154: _ | Z154: _ | AA154: _ | AB154: _ | AD154: _ | AE154: =IF($K154="_","_",IF(ISNUMBER(AN154),IF(OR(INT(AD154)<>MAX(AE$1:AE153),COUNT(AN$1:AN154)=COUNT(AN:AN)),INT(AD154)))) -> _ | AF154: _ | AG154: =IF($K154="_","_",IF(COUNT(AN$1:AN154)=1,TEXT($I$30+$I$9/24,"┌yy-mm-dd hh:mm:ss┐ "),IF(COUNT(AN$1:AN154)=COUNT(AN:AN),TEXT($I$31+$I$9/24,"└yy-mm-dd hh:mm:ss┘ "),""))&TEXT(AD154,IF(AE154,"mmm d dddd hh:mm","hh:mm"))&REPT(" ",MAX(3*(5-LEN(AF154)),1))&AF154) -> _ | AH154: _ | AI154: _ | AJ154: _ | AK154: _ | AL154: _ | AM154: _ | AN154: _
A155: 2 | B155: 0 | C155: 2013-10-06T17:45:41 | K155: _ | L155: _ | M155: _ | N155: _ | O155: _ | P155: _ | Q155: _ | R155: _ | S155: _ | T155: _ | U155: _ | V155: _ | W155: _ | X155: _ | Y155: _ | Z155: _ | AA155: _ | AB155: _ | AD155: _ | AE155: =IF($K155="_","_",IF(ISNUMBER(AN155),IF(OR(INT(AD155)<>MAX(AE$1:AE154),COUNT(AN$1:AN155)=COUNT(AN:AN)),INT(AD155)))) -> _ | AF155: _ | AG155: =IF($K155="_","_",IF(COUNT(AN$1:AN155)=1,TEXT($I$30+$I$9/24,"┌yy-mm-dd hh:mm:ss┐ "),IF(COUNT(AN$1:AN155)=COUNT(AN:AN),TEXT($I$31+$I$9/24,"└yy-mm-dd hh:mm:ss┘ "),""))&TEXT(AD155,IF(AE155,"mmm d dddd hh:mm","hh:mm"))&REPT(" ",MAX(3*(5-LEN(AF155)),1))&AF155) -> _ | AH155: _ | AI155: _ | AJ155: _ | AK155: _ | AL155: _ | AM155: _ | AN155: _
A156: 1 | B156: 25000 | C156: 2013-10-06T17:45:45 | D156: 0.092 | E156: 0.07805 | F156: 23 | K156: _ | L156: _ | M156: _ | N156: _ | O156: _ | P156: _ | Q156: _ | R156: _ | S156: _ | T156: _ | U156: _ | V156: _ | W156: _ | X156: _ | Y156: _ | Z156: _ | AA156: _ | AB156: _ | AD156: _ | AE156: =IF($K156="_","_",IF(ISNUMBER(AN156),IF(OR(INT(AD156)<>MAX(AE$1:AE155),COUNT(AN$1:AN156)=COUNT(AN:AN)),INT(AD156)))) -> _ | AF156: _ | AG156: =IF($K156="_","_",IF(COUNT(AN$1:AN156)=1,TEXT($I$30+$I$9/24,"┌yy-mm-dd hh:mm:ss┐ "),IF(COUNT(AN$1:AN156)=COUNT(AN:AN),TEXT($I$31+$I$9/24,"└yy-mm-dd hh:mm:ss┘ "),""))&TEXT(AD156,IF(AE156,"mmm d dddd hh:mm","hh:mm"))&REPT(" ",MAX(3*(5-LEN(AF156)),1))&AF156) -> _ | AH156: _ | AI156: _ | AJ156: _ | AK156: _ | AL156: _ | AM156: _ | AN156: _
A157: 1 | B157: 26000 | C157: 2013-10-06T17:45:50 | D157: 5.67833 | E157: 3.97115 | F157: 761 | K157: _ | L157: _ | M157: _ | N157: _ | O157: _ | P157: _ | Q157: _ | R157: _ | S157: _ | T157: _ | U157: _ | V157: _ | W157: _ | X157: _ | Y157: _ | Z157: _ | AA157: _ | AB157: _ | AD157: _ | AE157: =IF($K157="_","_",IF(ISNUMBER(AN157),IF(OR(INT(AD157)<>MAX(AE$1:AE156),COUNT(AN$1:AN157)=COUNT(AN:AN)),INT(AD157)))) -> _ | AF157: _ | AG157: =IF($K157="_","_",IF(COUNT(AN$1:AN157)=1,TEXT($I$30+$I$9/24,"┌yy-mm-dd hh:mm:ss┐ "),IF(COUNT(AN$1:AN157)=COUNT(AN:AN),TEXT($I$31+$I$9/24,"└yy-mm-dd hh:mm:ss┘ "),""))&TEXT(AD157,IF(AE157,"mmm d dddd hh:mm","hh:mm"))&REPT(" ",MAX(3*(5-LEN(AF157)),1))&AF157) -> _ | AH157: _ | AI157: _ | AJ157: _ | AK157: _ | AL157: _ | AM157: _ | AN157: _
A158: 1 | B158: 19000 | C158: 2013-10-06T17:46:06 | D158: 0.805 | E158: 0.1645 | F158: 210 | K158: _ | L158: _ | M158: _ | N158: _ | O158: _ | P158: _ | Q158: _ | R158: _ | S158: _ | T158: _ | U158: _ | V158: _ | W158: _ | X158: _ | Y158: _ | Z158: _ | AA158: _ | AB158: _ | AD158: _ | AE158: =IF($K158="_","_",IF(ISNUMBER(AN158),IF(OR(INT(AD158)<>MAX(AE$1:AE157),COUNT(AN$1:AN158)=COUNT(AN:AN)),INT(AD158)))) -> _ | AF158: _ | AG158: =IF($K158="_","_",IF(COUNT(AN$1:AN158)=1,TEXT($I$30+$I$9/24,"┌yy-mm-dd hh:mm:ss┐ "),IF(COUNT(AN$1:AN158)=COUNT(AN:AN),TEXT($I$31+$I$9/24,"└yy-mm-dd hh:mm:ss┘ "),""))&TEXT(AD158,IF(AE158,"mmm d dddd hh:mm","hh:mm"))&REPT(" ",MAX(3*(5-LEN(AF158)),1))&AF158) -> _ | AH158: _ | AI158: _ | AJ158: _ | AK158: _ | AL158: _ | AM158: _ | AN158: _
A159: 2 | B159: 0 | C159: 2013-10-06T17:46:06 | K159: _ | L159: _ | M159: _ | N159: _ | O159: _ | P159: _ | Q159: _ | R159: _ | S159: _ | T159: _ | U159: _ | V159: _ | W159: _ | X159: _ | Y159: _ | Z159: _ | AA159: _ | AB159: _ | AD159: _ | AE159: =IF($K159="_","_",IF(ISNUMBER(AN159),IF(OR(INT(AD159)<>MAX(AE$1:AE158),COUNT(AN$1:AN159)=COUNT(AN:AN)),INT(AD159)))) -> _ | AF159: _ | AG159: =IF($K159="_","_",IF(COUNT(AN$1:AN159)=1,TEXT($I$30+$I$9/24,"┌yy-mm-dd hh:mm:ss┐ "),IF(COUNT(AN$1:AN159)=COUNT(AN:AN),TEXT($I$31+$I$9/24,"└yy-mm-dd hh:mm:ss┘ "),""))&TEXT(AD159,IF(AE159,"mmm d dddd hh:mm","hh:mm"))&REPT(" ",MAX(3*(5-LEN(AF159)),1))&AF159) -> _ | AH159: _ | AI159: _ | AJ159: _ | AK159: _ | AL159: _ | AM159: _ | AN159: _
A160: 1 | B160: 17000 | C160: 2013-10-06T17:46:07 | D160: 0.03483 | E160: 0.03483 | F160: 19 | K160: _ | L160: _ | M160: _ | N160: _ | O160: _ | P160: _ | Q160: _ | R160: _ | S160: _ | T160: _ | U160: _ | V160: _ | W160: _ | X160: _ | Y160: _ | Z160: _ | AA160: _ | AB160: _ | AD160: _ | AE160: =IF($K160="_","_",IF(ISNUMBER(AN160),IF(OR(INT(AD160)<>MAX(AE$1:AE159),COUNT(AN$1:AN160)=COUNT(AN:AN)),INT(AD160)))) -> _ | AF160: _ | AG160: =IF($K160="_","_",IF(COUNT(AN$1:AN160)=1,TEXT($I$30+$I$9/24,"┌yy-mm-dd hh:mm:ss┐ "),IF(COUNT(AN$1:AN160)=COUNT(AN:AN),TEXT($I$31+$I$9/24,"└yy-mm-dd hh:mm:ss┘ "),""))&TEXT(AD160,IF(AE160,"mmm d dddd hh:mm","hh:mm"))&REPT(" ",MAX(3*(5-LEN(AF160)),1))&AF160) -> _ | AH160: _ | AI160: _ | AJ160: _ | AK160: _ | AL160: _ | AM160: _ | AN160: _
A161: 2 | B161: 0 | C161: 2013-10-06T17:46:08 | K161: _ | L161: _ | M161: _ | N161: _ | O161: _ | P161: _ | Q161: _ | R161: _ | S161: _ | T161: _ | U161: _ | V161: _ | W161: _ | X161: _ | Y161: _ | Z161: _ | AA161: _ | AB161: _ | AD161: _ | AE161: =IF($K161="_","_",IF(ISNUMBER(AN161),IF(OR(INT(AD161)<>MAX(AE$1:AE160),COUNT(AN$1:AN161)=COUNT(AN:AN)),INT(AD161)))) -> _ | AF161: _ | AG161: =IF($K161="_","_",IF(COUNT(AN$1:AN161)=1,TEXT($I$30+$I$9/24,"┌yy-mm-dd hh:mm:ss┐ "),IF(COUNT(AN$1:AN161)=COUNT(AN:AN),TEXT($I$31+$I$9/24,"└yy-mm-dd hh:mm:ss┘ "),""))&TEXT(AD161,IF(AE161,"mmm d dddd hh:mm","hh:mm"))&REPT(" ",MAX(3*(5-LEN(AF161)),1))&AF161) -> _ | AH161: _ | AI161: _ | AJ161: _ | AK161: _ | AL161: _ | AM161: _ | AN161: _
A162: 2 | B162: 0 | C162: 2013-10-06T17:46:14 | K162: _ | L162: _ | M162: _ | N162: _ | O162: _ | P162: _ | Q162: _ | R162: _ | S162: _ | T162: _ | U162: _ | V162: _ | W162: _ | X162: _ | Y162: _ | Z162: _ | AA162: _ | AB162: _ | AD162: _ | AE162: =IF($K162="_","_",IF(ISNUMBER(AN162),IF(OR(INT(AD162)<>MAX(AE$1:AE161),COUNT(AN$1:AN162)=COUNT(AN:AN)),INT(AD162)))) -> _ | AF162: _ | AG162: =IF($K162="_","_",IF(COUNT(AN$1:AN162)=1,TEXT($I$30+$I$9/24,"┌yy-mm-dd hh:mm:ss┐ "),IF(COUNT(AN$1:AN162)=COUNT(AN:AN),TEXT($I$31+$I$9/24,"└yy-mm-dd hh:mm:ss┘ "),""))&TEXT(AD162,IF(AE162,"mmm d dddd hh:mm","hh:mm"))&REPT(" ",MAX(3*(5-LEN(AF162)),1))&AF162) -> _ | AH162: _ | AI162: _ | AJ162: _ | AK162: _ | AL162: _ | AM162: _ | AN162: _
A163: 2 | B163: 0 | C163: 2013-10-06T17:46:16 | K163: _ | L163: _ | M163: _ | N163: _ | O163: _ | P163: _ | Q163: _ | R163: _ | S163: _ | T163: _ | U163: _ | V163: _ | W163: _ | X163: _ | Y163: _ | Z163: _ | AA163: _ | AB163: _ | AD163: _ | AE163: =IF($K163="_","_",IF(ISNUMBER(AN163),IF(OR(INT(AD163)<>MAX(AE$1:AE162),COUNT(AN$1:AN163)=COUNT(AN:AN)),INT(AD163)))) -> _ | AF163: _ | AG163: =IF($K163="_","_",IF(COUNT(AN$1:AN163)=1,TEXT($I$30+$I$9/24,"┌yy-mm-dd hh:mm:ss┐ "),IF(COUNT(AN$1:AN163)=COUNT(AN:AN),TEXT($I$31+$I$9/24,"└yy-mm-dd hh:mm:ss┘ "),""))&TEXT(AD163,IF(AE163,"mmm d dddd hh:mm","hh:mm"))&REPT(" ",MAX(3*(5-LEN(AF163)),1))&AF163) -> _ | AH163: _ | AI163: _ | AJ163: _ | AK163: _ | AL163: _ | AM163: _ | AN163: _
A164: 2 | B164: 0 | C164: 2013-10-06T17:46:16 | K164: _ | L164: _ | M164: _ | N164: _ | O164: _ | P164: _ | Q164: _ | R164: _ | S164: _ | T164: _ | U164: _ | V164: _ | W164: _ | X164: _ | Y164: _ | Z164: _ | AA164: _ | AB164: _ | AD164: _ | AE164: =IF($K164="_","_",IF(ISNUMBER(AN164),IF(OR(INT(AD164)<>MAX(AE$1:AE163),COUNT(AN$1:AN164)=COUNT(AN:AN)),INT(AD164)))) -> _ | AF164: _ | AG164: =IF($K164="_","_",IF(COUNT(AN$1:AN164)=1,TEXT($I$30+$I$9/24,"┌yy-mm-dd hh:mm:ss┐ "),IF(COUNT(AN$1:AN164)=COUNT(AN:AN),TEXT($I$31+$I$9/24,"└yy-mm-dd hh:mm:ss┘ "),""))&TEXT(AD164,IF(AE164,"mmm d dddd hh:mm","hh:mm"))&REPT(" ",MAX(3*(5-LEN(AF164)),1))&AF164) -> _ | AH164: _ | AI164: _ | AJ164: _ | AK164: _ | AL164: _ | AM164: _ | AN164: _
A165: 2 | B165: 0 | C165: 2013-10-06T17:46:16 | K165: _ | L165: _ | M165: _ | N165: _ | O165: _ | P165: _ | Q165: _ | R165: _ | S165: _ | T165: _ | U165: _ | V165: _ | W165: _ | X165: _ | Y165: _ | Z165: _ | AA165: _ | AB165: _ | AD165: _ | AE165: =IF($K165="_","_",IF(ISNUMBER(AN165),IF(OR(INT(AD165)<>MAX(AE$1:AE164),COUNT(AN$1:AN165)=COUNT(AN:AN)),INT(AD165)))) -> _ | AF165: _ | AG165: =IF($K165="_","_",IF(COUNT(AN$1:AN165)=1,TEXT($I$30+$I$9/24,"┌yy-mm-dd hh:mm:ss┐ "),IF(COUNT(AN$1:AN165)=COUNT(AN:AN),TEXT($I$31+$I$9/24,"└yy-mm-dd hh:mm:ss┘ "),""))&TEXT(AD165,IF(AE165,"mmm d dddd hh:mm","hh:mm"))&REPT(" ",MAX(3*(5-LEN(AF165)),1))&AF165) -> _ | AH165: _ | AI165: _ | AJ165: _ | AK165: _ | AL165: _ | AM165: _ | AN165: _
A166: 2 | B166: 0 | C166: 2013-10-06T17:46:16 | K166: _ | L166: _ | M166: _ | N166: _ | O166: _ | P166: _ | Q166: _ | R166: _ | S166: _ | T166: _ | U166: _ | V166: _ | W166: _ | X166: _ | Y166: _ | Z166: _ | AA166: _ | AB166: _ | AD166: _ | AE166: =IF($K166="_","_",IF(ISNUMBER(AN166),IF(OR(INT(AD166)<>MAX(AE$1:AE165),COUNT(AN$1:AN166)=COUNT(AN:AN)),INT(AD166)))) -> _ | AF166: _ | AG166: =IF($K166="_","_",IF(COUNT(AN$1:AN166)=1,TEXT($I$30+$I$9/24,"┌yy-mm-dd hh:mm:ss┐ "),IF(COUNT(AN$1:AN166)=COUNT(AN:AN),TEXT($I$31+$I$9/24,"└yy-mm-dd hh:mm:ss┘ "),""))&TEXT(AD166,IF(AE166,"mmm d dddd hh:mm","hh:mm"))&REPT(" ",MAX(3*(5-LEN(AF166)),1))&AF166) -> _ | AH166: _ | AI166: _ | AJ166: _ | AK166: _ | AL166: _ | AM166: _ | AN166: _
A167: 2 | B167: 0 | C167: 2013-10-06T17:46:33 | K167: _ | L167: _ | M167: _ | N167: _ | O167: _ | P167: _ | Q167: _ | R167: _ | S167: _ | T167: _ | U167: _ | V167: _ | W167: _ | X167: _ | Y167: _ | Z167: _ | AA167: _ | AB167: _ | AD167: _ | AE167: =IF($K167="_","_",IF(ISNUMBER(AN167),IF(OR(INT(AD167)<>MAX(AE$1:AE166),COUNT(AN$1:AN167)=COUNT(AN:AN)),INT(AD167)))) -> _ | AF167: _ | AG167: =IF($K167="_","_",IF(COUNT(AN$1:AN167)=1,TEXT($I$30+$I$9/24,"┌yy-mm-dd hh:mm:ss┐ "),IF(COUNT(AN$1:AN167)=COUNT(AN:AN),TEXT($I$31+$I$9/24,"└yy-mm-dd hh:mm:ss┘ "),""))&TEXT(AD167,IF(AE167,"mmm d dddd hh:mm","hh:mm"))&REPT(" ",MAX(3*(5-LEN(AF167)),1))&AF167) -> _ | AH167: _ | AI167: _ | AJ167: _ | AK167: _ | AL167: _ | AM167: _ | AN167: _
A168: 1 | B168: 15000 | C168: 2013-10-06T17:46:41 | D168: 0.13992 | E168: 0 | F168: 1679 | K168: _ | L168: _ | M168: _ | N168: _ | O168: _ | P168: _ | Q168: _ | R168: _ | S168: _ | T168: _ | U168: _ | V168: _ | W168: _ | X168: _ | Y168: _ | Z168: _ | AA168: _ | AB168: _ | AD168: _ | AE168: =IF($K168="_","_",IF(ISNUMBER(AN168),IF(OR(INT(AD168)<>MAX(AE$1:AE167),COUNT(AN$1:AN168)=COUNT(AN:AN)),INT(AD168)))) -> _ | AF168: _ | AG168: =IF($K168="_","_",IF(COUNT(AN$1:AN168)=1,TEXT($I$30+$I$9/24,"┌yy-mm-dd hh:mm:ss┐ "),IF(COUNT(AN$1:AN168)=COUNT(AN:AN),TEXT($I$31+$I$9/24,"└yy-mm-dd hh:mm:ss┘ "),""))&TEXT(AD168,IF(AE168,"mmm d dddd hh:mm","hh:mm"))&REPT(" ",MAX(3*(5-LEN(AF168)),1))&AF168) -> _ | AH168: _ | AI168: _ | AJ168: _ | AK168: _ | AL168: _ | AM168: _ | AN168: _
A169: 1 | B169: 24000 | C169: 2013-10-06T17:46:45 | D169: 0 | E169: 0.0166 | F169: 498 | K169: _ | L169: _ | M169: _ | N169: _ | O169: _ | P169: _ | Q169: _ | R169: _ | S169: _ | T169: _ | U169: _ | V169: _ | W169: _ | X169: _ | Y169: _ | Z169: _ | AA169: _ | AB169: _ | AD169: _ | AE169: =IF($K169="_","_",IF(ISNUMBER(AN169),IF(OR(INT(AD169)<>MAX(AE$1:AE168),COUNT(AN$1:AN169)=COUNT(AN:AN)),INT(AD169)))) -> _ | AF169: _ | AG169: =IF($K169="_","_",IF(COUNT(AN$1:AN169)=1,TEXT($I$30+$I$9/24,"┌yy-mm-dd hh:mm:ss┐ "),IF(COUNT(AN$1:AN169)=COUNT(AN:AN),TEXT($I$31+$I$9/24,"└yy-mm-dd hh:mm:ss┘ "),""))&TEXT(AD169,IF(AE169,"mmm d dddd hh:mm","hh:mm"))&REPT(" ",MAX(3*(5-LEN(AF169)),1))&AF169) -> _ | AH169: _ | AI169: _ | AJ169: _ | AK169: _ | AL169: _ | AM169: _ | AN169: _
A170: 2 | B170: 0 | C170: 2013-10-06T17:46:52 | K170: _ | L170: _ | M170: _ | N170: _ | O170: _ | P170: _ | Q170: _ | R170: _ | S170: _ | T170: _ | U170: _ | V170: _ | W170: _ | X170: _ | Y170: _ | Z170: _ | AA170: _ | AB170: _ | AD170: _ | AE170: =IF($K170="_","_",IF(ISNUMBER(AN170),IF(OR(INT(AD170)<>MAX(AE$1:AE169),COUNT(AN$1:AN170)=COUNT(AN:AN)),INT(AD170)))) -> _ | AF170: _ | AG170: =IF($K170="_","_",IF(COUNT(AN$1:AN170)=1,TEXT($I$30+$I$9/24,"┌yy-mm-dd hh:mm:ss┐ "),IF(COUNT(AN$1:AN170)=COUNT(AN:AN),TEXT($I$31+$I$9/24,"└yy-mm-dd hh:mm:ss┘ "),""))&TEXT(AD170,IF(AE170,"mmm d dddd hh:mm","hh:mm"))&REPT(" ",MAX(3*(5-LEN(AF170)),1))&AF170) -> _ | AH170: _ | AI170: _ | AJ170: _ | AK170: _ | AL170: _ | AM170: _ | AN170: _
A171: 2 | B171: 0 | C171: 2013-10-06T17:46:55 | K171: _ | L171: _ | M171: _ | N171: _ | O171: _ | P171: _ | Q171: _ | R171: _ | S171: _ | T171: _ | U171: _ | V171: _ | W171: _ | X171: _ | Y171: _ | Z171: _ | AA171: _ | AB171: _ | AD171: _ | AE171: =IF($K171="_","_",IF(ISNUMBER(AN171),IF(OR(INT(AD171)<>MAX(AE$1:AE170),COUNT(AN$1:AN171)=COUNT(AN:AN)),INT(AD171)))) -> _ | AF171: _ | AG171: =IF($K171="_","_",IF(COUNT(AN$1:AN171)=1,TEXT($I$30+$I$9/24,"┌yy-mm-dd hh:mm:ss┐ "),IF(COUNT(AN$1:AN171)=COUNT(AN:AN),TEXT($I$31+$I$9/24,"└yy-mm-dd hh:mm:ss┘ "),""))&TEXT(AD171,IF(AE171,"mmm d dddd hh:mm","hh:mm"))&REPT(" ",MAX(3*(5-LEN(AF171)),1))&AF171) -> _ | AH171: _ | AI171: _ | AJ171: _ | AK171: _ | AL171: _ | AM171: _ | AN171: _
A172: 2 | B172: 0 | C172: 2013-10-06T17:46:55 | K172: _ | L172: _ | M172: _ | N172: _ | O172: _ | P172: _ | Q172: _ | R172: _ | S172: _ | T172: _ | U172: _ | V172: _ | W172: _ | X172: _ | Y172: _ | Z172: _ | AA172: _ | AB172: _ | AD172: _ | AE172: =IF($K172="_","_",IF(ISNUMBER(AN172),IF(OR(INT(AD172)<>MAX(AE$1:AE171),COUNT(AN$1:AN172)=COUNT(AN:AN)),INT(AD172)))) -> _ | AF172: _ | AG172: =IF($K172="_","_",IF(COUNT(AN$1:AN172)=1,TEXT($I$30+$I$9/24,"┌yy-mm-dd hh:mm:ss┐ "),IF(COUNT(AN$1:AN172)=COUNT(AN:AN),TEXT($I$31+$I$9/24,"└yy-mm-dd hh:mm:ss┘ "),""))&TEXT(AD172,IF(AE172,"mmm d dddd hh:mm","hh:mm"))&REPT(" ",MAX(3*(5-LEN(AF172)),1))&AF172) -> _ | AH172: _ | AI172: _ | AJ172: _ | AK172: _ | AL172: _ | AM172: _ | AN172: _
A173: 2 | B173: 0 | C173: 2013-10-06T17:46:55 | K173: _ | L173: _ | M173: _ | N173: _ | O173: _ | P173: _ | Q173: _ | R173: _ | S173: _ | T173: _ | U173: _ | V173: _ | W173: _ | X173: _ | Y173: _ | Z173: _ | AA173: _ | AB173: _ | AD173: _ | AE173: =IF($K173="_","_",IF(ISNUMBER(AN173),IF(OR(INT(AD173)<>MAX(AE$1:AE172),COUNT(AN$1:AN173)=COUNT(AN:AN)),INT(AD173)))) -> _ | AF173: _ | AG173: =IF($K173="_","_",IF(COUNT(AN$1:AN173)=1,TEXT($I$30+$I$9/24,"┌yy-mm-dd hh:mm:ss┐ "),IF(COUNT(AN$1:AN173)=COUNT(AN:AN),TEXT($I$31+$I$9/24,"└yy-mm-dd hh:mm:ss┘ "),""))&TEXT(AD173,IF(AE173,"mmm d dddd hh:mm","hh:mm"))&REPT(" ",MAX(3*(5-LEN(AF173)),1))&AF173) -> _ | AH173: _ | AI173: _ | AJ173: _ | AK173: _ | AL173: _ | AM173: _ | AN173: _
A174: 1 | B174: 14000 | C174: 2013-10-06T17:46:58 | D174: 0 | E174: 0.00684 | F174: 36 | K174: _ | L174: _ | M174: _ | N174: _ | O174: _ | P174: _ | Q174: _ | R174: _ | S174: _ | T174: _ | U174: _ | V174: _ | W174: _ | X174: _ | Y174: _ | Z174: _ | AA174: _ | AB174: _ | AD174: _ | AE174: =IF($K174="_","_",IF(ISNUMBER(AN174),IF(OR(INT(AD174)<>MAX(AE$1:AE173),COUNT(AN$1:AN174)=COUNT(AN:AN)),INT(AD174)))) -> _ | AF174: _ | AG174: =IF($K174="_","_",IF(COUNT(AN$1:AN174)=1,TEXT($I$30+$I$9/24,"┌yy-mm-dd hh:mm:ss┐ "),IF(COUNT(AN$1:AN174)=COUNT(AN:AN),TEXT($I$31+$I$9/24,"└yy-mm-dd hh:mm:ss┘ "),""))&TEXT(AD174,IF(AE174,"mmm d dddd hh:mm","hh:mm"))&REPT(" ",MAX(3*(5-LEN(AF174)),1))&AF174) -> _ | AH174: _ | AI174: _ | AJ174: _ | AK174: _ | AL174: _ | AM174: _ | AN174: _
A175: 2 | B175: 0 | C175: 2013-10-06T17:46:58 | K175: _ | L175: _ | M175: _ | N175: _ | O175: _ | P175: _ | Q175: _ | R175: _ | S175: _ | T175: _ | U175: _ | V175: _ | W175: _ | X175: _ | Y175: _ | Z175: _ | AA175: _ | AB175: _ | AD175: _ | AE175: =IF($K175="_","_",IF(ISNUMBER(AN175),IF(OR(INT(AD175)<>MAX(AE$1:AE174),COUNT(AN$1:AN175)=COUNT(AN:AN)),INT(AD175)))) -> _ | AF175: _ | AG175: =IF($K175="_","_",IF(COUNT(AN$1:AN175)=1,TEXT($I$30+$I$9/24,"┌yy-mm-dd hh:mm:ss┐ "),IF(COUNT(AN$1:AN175)=COUNT(AN:AN),TEXT($I$31+$I$9/24,"└yy-mm-dd hh:mm:ss┘ "),""))&TEXT(AD175,IF(AE175,"mmm d dddd hh:mm","hh:mm"))&REPT(" ",MAX(3*(5-LEN(AF175)),1))&AF175) -> _ | AH175: _ | AI175: _ | AJ175: _ | AK175: _ | AL175: _ | AM175: _ | AN175: _
A176: 1 | B176: 17000 | C176: 2013-10-06T17:47:00 | D176: 0 | E176: 0.05868 | F176: 489 | K176: _ | L176: _ | M176: _ | N176: _ | O176: _ | P176: _ | Q176: _ | R176: _ | S176: _ | T176: _ | U176: _ | V176: _ | W176: _ | X176: _ | Y176: _ | Z176: _ | AA176: _ | AB176: _ | AD176: _ | AE176: =IF($K176="_","_",IF(ISNUMBER(AN176),IF(OR(INT(AD176)<>MAX(AE$1:AE175),COUNT(AN$1:AN176)=COUNT(AN:AN)),INT(AD176)))) -> _ | AF176: _ | AG176: =IF($K176="_","_",IF(COUNT(AN$1:AN176)=1,TEXT($I$30+$I$9/24,"┌yy-mm-dd hh:mm:ss┐ "),IF(COUNT(AN$1:AN176)=COUNT(AN:AN),TEXT($I$31+$I$9/24,"└yy-mm-dd hh:mm:ss┘ "),""))&TEXT(AD176,IF(AE176,"mmm d dddd hh:mm","hh:mm"))&REPT(" ",MAX(3*(5-LEN(AF176)),1))&AF176) -> _ | AH176: _ | AI176: _ | AJ176: _ | AK176: _ | AL176: _ | AM176: _ | AN176: _
A177: 1 | B177: 10000 | C177: 2013-10-06T17:47:00 | D177: 0.00425 | E177: 0 | F177: 51 | K177: _ | L177: _ | M177: _ | N177: _ | O177: _ | P177: _ | Q177: _ | R177: _ | S177: _ | T177: _ | U177: _ | V177: _ | W177: _ | X177: _ | Y177: _ | Z177: _ | AA177: _ | AB177: _ | AD177: _ | AE177: =IF($K177="_","_",IF(ISNUMBER(AN177),IF(OR(INT(AD177)<>MAX(AE$1:AE176),COUNT(AN$1:AN177)=COUNT(AN:AN)),INT(AD177)))) -> _ | AF177: _ | AG177: =IF($K177="_","_",IF(COUNT(AN$1:AN177)=1,TEXT($I$30+$I$9/24,"┌yy-mm-dd hh:mm:ss┐ "),IF(COUNT(AN$1:AN177)=COUNT(AN:AN),TEXT($I$31+$I$9/24,"└yy-mm-dd hh:mm:ss┘ "),""))&TEXT(AD177,IF(AE177,"mmm d dddd hh:mm","hh:mm"))&REPT(" ",MAX(3*(5-LEN(AF177)),1))&AF177) -> _ | AH177: _ | AI177: _ | AJ177: _ | AK177: _ | AL177: _ | AM177: _ | AN177: _
A178: 2 | B178: 0 | C178: 2013-10-06T17:47:03 | K178: _ | L178: _ | M178: _ | N178: _ | O178: _ | P178: _ | Q178: _ | R178: _ | S178: _ | T178: _ | U178: _ | V178: _ | W178: _ | X178: _ | Y178: _ | Z178: _ | AA178: _ | AB178: _ | AD178: _ | AE178: =IF($K178="_","_",IF(ISNUMBER(AN178),IF(OR(INT(AD178)<>MAX(AE$1:AE177),COUNT(AN$1:AN178)=COUNT(AN:AN)),INT(AD178)))) -> _ | AF178: _ | AG178: =IF($K178="_","_",IF(COUNT(AN$1:AN178)=1,TEXT($I$30+$I$9/24,"┌yy-mm-dd hh:mm:ss┐ "),IF(COUNT(AN$1:AN178)=COUNT(AN:AN),TEXT($I$31+$I$9/24,"└yy-mm-dd hh:mm:ss┘ "),""))&TEXT(AD178,IF(AE178,"mmm d dddd hh:mm","hh:mm"))&REPT(" ",MAX(3*(5-LEN(AF178)),1))&AF178) -> _ | AH178: _ | AI178: _ | AJ178: _ | AK178: _ | AL178: _ | AM178: _ | AN178: _
A179: 1 | B179: 3000 | C179: 2013-10-06T17:47:03 | D179: 0.011 | E179: 0.01127 | F179: 6 | K179: _ | L179: _ | M179: _ | N179: _ | O179: _ | P179: _ | Q179: _ | R179: _ | S179: _ | T179: _ | U179: _ | V179: _ | W179: _ | X179: _ | Y179: _ | Z179: _ | AA179: _ | AB179: _ | AD179: _ | AE179: =IF($K179="_","_",IF(ISNUMBER(AN179),IF(OR(INT(AD179)<>MAX(AE$1:AE178),COUNT(AN$1:AN179)=COUNT(AN:AN)),INT(AD179)))) -> _ | AF179: _ | AG179: =IF($K179="_","_",IF(COUNT(AN$1:AN179)=1,TEXT($I$30+$I$9/24,"┌yy-mm-dd hh:mm:ss┐ "),IF(COUNT(AN$1:AN179)=COUNT(AN:AN),TEXT($I$31+$I$9/24,"└yy-mm-dd hh:mm:ss┘ "),""))&TEXT(AD179,IF(AE179,"mmm d dddd hh:mm","hh:mm"))&REPT(" ",MAX(3*(5-LEN(AF179)),1))&AF179) -> _ | AH179: _ | AI179: _ | AJ179: _ | AK179: _ | AL179: _ | AM179: _ | AN179: _
A180: 2 | B180: 0 | C180: 2013-10-06T17:47:04 | K180: _ | L180: _ | M180: _ | N180: _ | O180: _ | P180: _ | Q180: _ | R180: _ | S180: _ | T180: _ | U180: _ | V180: _ | W180: _ | X180: _ | Y180: _ | Z180: _ | AA180: _ | AB180: _ | AD180: _ | AE180: =IF($K180="_","_",IF(ISNUMBER(AN180),IF(OR(INT(AD180)<>MAX(AE$1:AE179),COUNT(AN$1:AN180)=COUNT(AN:AN)),INT(AD180)))) -> _ | AF180: _ | AG180: =IF($K180="_","_",IF(COUNT(AN$1:AN180)=1,TEXT($I$30+$I$9/24,"┌yy-mm-dd hh:mm:ss┐ "),IF(COUNT(AN$1:AN180)=COUNT(AN:AN),TEXT($I$31+$I$9/24,"└yy-mm-dd hh:mm:ss┘ "),""))&TEXT(AD180,IF(AE180,"mmm d dddd hh:mm","hh:mm"))&REPT(" ",MAX(3*(5-LEN(AF180)),1))&AF180) -> _ | AH180: _ | AI180: _ | AJ180: _ | AK180: _ | AL180: _ | AM180: _ | AN180: _
A181: 2 | B181: 0 | C181: 2013-10-06T17:47:06 | K181: _ | L181: _ | M181: _ | N181: _ | O181: _ | P181: _ | Q181: _ | R181: _ | S181: _ | T181: _ | U181: _ | V181: _ | W181: _ | X181: _ | Y181: _ | Z181: _ | AA181: _ | AB181: _ | AD181: _ | AE181: =IF($K181="_","_",IF(ISNUMBER(AN181),IF(OR(INT(AD181)<>MAX(AE$1:AE180),COUNT(AN$1:AN181)=COUNT(AN:AN)),INT(AD181)))) -> _ | AF181: _ | AG181: =IF($K181="_","_",IF(COUNT(AN$1:AN181)=1,TEXT($I$30+$I$9/24,"┌yy-mm-dd hh:mm:ss┐ "),IF(COUNT(AN$1:AN181)=COUNT(AN:AN),TEXT($I$31+$I$9/24,"└yy-mm-dd hh:mm:ss┘ "),""))&TEXT(AD181,IF(AE181,"mmm d dddd hh:mm","hh:mm"))&REPT(" ",MAX(3*(5-LEN(AF181)),1))&AF181) -> _ | AH181: _ | AI181: _ | AJ181: _ | AK181: _ | AL181: _ | AM181: _ | AN181: _
A182: 2 | B182: 0 | C182: 2013-10-06T17:47:06 | K182: _ | L182: _ | M182: _ | N182: _ | O182: _ | P182: _ | Q182: _ | R182: _ | S182: _ | T182: _ | U182: _ | V182: _ | W182: _ | X182: _ | Y182: _ | Z182: _ | AA182: _ | AB182: _ | AD182: _ | AE182: =IF($K182="_","_",IF(ISNUMBER(AN182),IF(OR(INT(AD182)<>MAX(AE$1:AE181),COUNT(AN$1:AN182)=COUNT(AN:AN)),INT(AD182)))) -> _ | AF182: _ | AG182: =IF($K182="_","_",IF(COUNT(AN$1:AN182)=1,TEXT($I$30+$I$9/24,"┌yy-mm-dd hh:mm:ss┐ "),IF(COUNT(AN$1:AN182)=COUNT(AN:AN),TEXT($I$31+$I$9/24,"└yy-mm-dd hh:mm:ss┘ "),""))&TEXT(AD182,IF(AE182,"mmm d dddd hh:mm","hh:mm"))&REPT(" ",MAX(3*(5-LEN(AF182)),1))&AF182) -> _ | AH182: _ | AI182: _ | AJ182: _ | AK182: _ | AL182: _ | AM182: _ | AN182: _
A183: 2 | B183: 0 | C183: 2013-10-06T17:47:06 | K183: _ | L183: _ | M183: _ | N183: _ | O183: _ | P183: _ | Q183: _ | R183: _ | S183: _ | T183: _ | U183: _ | V183: _ | W183: _ | X183: _ | Y183: _ | Z183: _ | AA183: _ | AB183: _ | AD183: _ | AE183: =IF($K183="_","_",IF(ISNUMBER(AN183),IF(OR(INT(AD183)<>MAX(AE$1:AE182),COUNT(AN$1:AN183)=COUNT(AN:AN)),INT(AD183)))) -> _ | AF183: _ | AG183: =IF($K183="_","_",IF(COUNT(AN$1:AN183)=1,TEXT($I$30+$I$9/24,"┌yy-mm-dd hh:mm:ss┐ "),IF(COUNT(AN$1:AN183)=COUNT(AN:AN),TEXT($I$31+$I$9/24,"└yy-mm-dd hh:mm:ss┘ "),""))&TEXT(AD183,IF(AE183,"mmm d dddd hh:mm","hh:mm"))&REPT(" ",MAX(3*(5-LEN(AF183)),1))&AF183) -> _ | AH183: _ | AI183: _ | AJ183: _ | AK183: _ | AL183: _ | AM183: _ | AN183: _
A184: 2 | B184: 0 | C184: 2013-10-06T17:47:06 | K184: _ | L184: _ | M184: _ | N184: _ | O184: _ | P184: _ | Q184: _ | R184: _ | S184: _ | T184: _ | U184: _ | V184: _ | W184: _ | X184: _ | Y184: _ | Z184: _ | AA184: _ | AB184: _ | AD184: _ | AE184: =IF($K184="_","_",IF(ISNUMBER(AN184),IF(OR(INT(AD184)<>MAX(AE$1:AE183),COUNT(AN$1:AN184)=COUNT(AN:AN)),INT(AD184)))) -> _ | AF184: _ | AG184: =IF($K184="_","_",IF(COUNT(AN$1:AN184)=1,TEXT($I$30+$I$9/24,"┌yy-mm-dd hh:mm:ss┐ "),IF(COUNT(AN$1:AN184)=COUNT(AN:AN),TEXT($I$31+$I$9/24,"└yy-mm-dd hh:mm:ss┘ "),""))&TEXT(AD184,IF(AE184,"mmm d dddd hh:mm","hh:mm"))&REPT(" ",MAX(3*(5-LEN(AF184)),1))&AF184) -> _ | AH184: _ | AI184: _ | AJ184: _ | AK184: _ | AL184: _ | AM184: _ | AN184: _
A185: 2 | B185: 0 | C185: 2013-10-06T17:47:06 | K185: _ | L185: _ | M185: _ | N185: _ | O185: _ | P185: _ | Q185: _ | R185: _ | S185: _ | T185: _ | U185: _ | V185: _ | W185: _ | X185: _ | Y185: _ | Z185: _ | AA185: _ | AB185: _ | AD185: _ | AE185: =IF($K185="_","_",IF(ISNUMBER(AN185),IF(OR(INT(AD185)<>MAX(AE$1:AE184),COUNT(AN$1:AN185)=COUNT(AN:AN)),INT(AD185)))) -> _ | AF185: _ | AG185: =IF($K185="_","_",IF(COUNT(AN$1:AN185)=1,TEXT($I$30+$I$9/24,"┌yy-mm-dd hh:mm:ss┐ "),IF(COUNT(AN$1:AN185)=COUNT(AN:AN),TEXT($I$31+$I$9/24,"└yy-mm-dd hh:mm:ss┘ "),""))&TEXT(AD185,IF(AE185,"mmm d dddd hh:mm","hh:mm"))&REPT(" ",MAX(3*(5-LEN(AF185)),1))&AF185) -> _ | AH185: _ | AI185: _ | AJ185: _ | AK185: _ | AL185: _ | AM185: _ | AN185: _
A186: 1 | B186: 31000 | C186: 2013-10-06T17:47:07 | D186: 0 | E186: 0.00037 | F186: 3 | K186: _ | L186: _ | M186: _ | N186: _ | O186: _ | P186: _ | Q186: _ | R186: _ | S186: _ | T186: _ | U186: _ | V186: _ | W186: _ | X186: _ | Y186: _ | Z186: _ | AA186: _ | AB186: _ | AD186: _ | AE186: =IF($K186="_","_",IF(ISNUMBER(AN186),IF(OR(INT(AD186)<>MAX(AE$1:AE185),COUNT(AN$1:AN186)=COUNT(AN:AN)),INT(AD186)))) -> _ | AF186: _ | AG186: =IF($K186="_","_",IF(COUNT(AN$1:AN186)=1,TEXT($I$30+$I$9/24,"┌yy-mm-dd hh:mm:ss┐ "),IF(COUNT(AN$1:AN186)=COUNT(AN:AN),TEXT($I$31+$I$9/24,"└yy-mm-dd hh:mm:ss┘ "),""))&TEXT(AD186,IF(AE186,"mmm d dddd hh:mm","hh:mm"))&REPT(" ",MAX(3*(5-LEN(AF186)),1))&AF186) -> _ | AH186: _ | AI186: _ | AJ186: _ | AK186: _ | AL186: _ | AM186: _ | AN186: _
A187: 1 | B187: 43000 | C187: 2013-10-06T17:47:08 | D187: 0 | E187: 0.0008 | F187: 9 | K187: _ | L187: _ | M187: _ | N187: _ | O187: _ | P187: _ | Q187: _ | R187: _ | S187: _ | T187: _ | U187: _ | V187: _ | W187: _ | X187: _ | Y187: _ | Z187: _ | AA187: _ | AB187: _ | AD187: _ | AE187: =IF($K187="_","_",IF(ISNUMBER(AN187),IF(OR(INT(AD187)<>MAX(AE$1:AE186),COUNT(AN$1:AN187)=COUNT(AN:AN)),INT(AD187)))) -> _ | AF187: _ | AG187: =IF($K187="_","_",IF(COUNT(AN$1:AN187)=1,TEXT($I$30+$I$9/24,"┌yy-mm-dd hh:mm:ss┐ "),IF(COUNT(AN$1:AN187)=COUNT(AN:AN),TEXT($I$31+$I$9/24,"└yy-mm-dd hh:mm:ss┘ "),""))&TEXT(AD187,IF(AE187,"mmm d dddd hh:mm","hh:mm"))&REPT(" ",MAX(3*(5-LEN(AF187)),1))&AF187) -> _ | AH187: _ | AI187: _ | AJ187: _ | AK187: _ | AL187: _ | AM187: _ | AN187: _
A188: 2 | B188: 0 | C188: 2013-10-06T17:47:11 | K188: _ | L188: _ | M188: _ | N188: _ | O188: _ | P188: _ | Q188: _ | R188: _ | S188: _ | T188: _ | U188: _ | V188: _ | W188: _ | X188: _ | Y188: _ | Z188: _ | AA188: _ | AB188: _ | AD188: _ | AE188: =IF($K188="_","_",IF(ISNUMBER(AN188),IF(OR(INT(AD188)<>MAX(AE$1:AE187),COUNT(AN$1:AN188)=COUNT(AN:AN)),INT(AD188)))) -> _ | AF188: _ | AG188: =IF($K188="_","_",IF(COUNT(AN$1:AN188)=1,TEXT($I$30+$I$9/24,"┌yy-mm-dd hh:mm:ss┐ "),IF(COUNT(AN$1:AN188)=COUNT(AN:AN),TEXT($I$31+$I$9/24,"└yy-mm-dd hh:mm:ss┘ "),""))&TEXT(AD188,IF(AE188,"mmm d dddd hh:mm","hh:mm"))&REPT(" ",MAX(3*(5-LEN(AF188)),1))&AF188) -> _ | AH188: _ | AI188: _ | AJ188: _ | AK188: _ | AL188: _ | AM188: _ | AN188: _
A189: 2 | B189: 0 | C189: 2013-10-06T17:47:13 | K189: _ | L189: _ | M189: _ | N189: _ | O189: _ | P189: _ | Q189: _ | R189: _ | S189: _ | T189: _ | U189: _ | V189: _ | W189: _ | X189: _ | Y189: _ | Z189: _ | AA189: _ | AB189: _ | AD189: _ | AE189: =IF($K189="_","_",IF(ISNUMBER(AN189),IF(OR(INT(AD189)<>MAX(AE$1:AE188),COUNT(AN$1:AN189)=COUNT(AN:AN)),INT(AD189)))) -> _ | AF189: _ | AG189: =IF($K189="_","_",IF(COUNT(AN$1:AN189)=1,TEXT($I$30+$I$9/24,"┌yy-mm-dd hh:mm:ss┐ "),IF(COUNT(AN$1:AN189)=COUNT(AN:AN),TEXT($I$31+$I$9/24,"└yy-mm-dd hh:mm:ss┘ "),""))&TEXT(AD189,IF(AE189,"mmm d dddd hh:mm","hh:mm"))&REPT(" ",MAX(3*(5-LEN(AF189)),1))&AF189) -> _ | AH189: _ | AI189: _ | AJ189: _ | AK189: _ | AL189: _ | AM189: _ | AN189: _
A190: 1 | B190: 9000 | C190: 2013-10-06T17:47:14 | D190: 0.11333 | E190: 0 | F190: 1360 | K190: _ | L190: _ | M190: _ | N190: _ | O190: _ | P190: _ | Q190: _ | R190: _ | S190: _ | T190: _ | U190: _ | V190: _ | W190: _ | X190: _ | Y190: _ | Z190: _ | AA190: _ | AB190: _ | AD190: _ | AE190: =IF($K190="_","_",IF(ISNUMBER(AN190),IF(OR(INT(AD190)<>MAX(AE$1:AE189),COUNT(AN$1:AN190)=COUNT(AN:AN)),INT(AD190)))) -> _ | AF190: _ | AG190: =IF($K190="_","_",IF(COUNT(AN$1:AN190)=1,TEXT($I$30+$I$9/24,"┌yy-mm-dd hh:mm:ss┐ "),IF(COUNT(AN$1:AN190)=COUNT(AN:AN),TEXT($I$31+$I$9/24,"└yy-mm-dd hh:mm:ss┘ "),""))&TEXT(AD190,IF(AE190,"mmm d dddd hh:mm","hh:mm"))&REPT(" ",MAX(3*(5-LEN(AF190)),1))&AF190) -> _ | AH190: _ | AI190: _ | AJ190: _ | AK190: _ | AL190: _ | AM190: _ | AN190: _
A191: 1 | B191: 14000 | C191: 2013-10-06T17:47:16 | D191: 0 | E191: 0.09291 | F191: 489 | K191: _ | L191: _ | M191: _ | N191: _ | O191: _ | P191: _ | Q191: _ | R191: _ | S191: _ | T191: _ | U191: _ | V191: _ | W191: _ | X191: _ | Y191: _ | Z191: _ | AA191: _ | AB191: _ | AD191: _ | AE191: =IF($K191="_","_",IF(ISNUMBER(AN191),IF(OR(INT(AD191)<>MAX(AE$1:AE190),COUNT(AN$1:AN191)=COUNT(AN:AN)),INT(AD191)))) -> _ | AF191: _ | AG191: =IF($K191="_","_",IF(COUNT(AN$1:AN191)=1,TEXT($I$30+$I$9/24,"┌yy-mm-dd hh:mm:ss┐ "),IF(COUNT(AN$1:AN191)=COUNT(AN:AN),TEXT($I$31+$I$9/24,"└yy-mm-dd hh:mm:ss┘ "),""))&TEXT(AD191,IF(AE191,"mmm d dddd hh:mm","hh:mm"))&REPT(" ",MAX(3*(5-LEN(AF191)),1))&AF191) -> _ | AH191: _ | AI191: _ | AJ191: _ | AK191: _ | AL191: _ | AM191: _ | AN191: _
A192: 1 | B192: 24000 | C192: 2013-10-06T17:47:17 | D192: 0 | E192: 0.00498 | F192: 103 | K192: _ | L192: _ | M192: _ | N192: _ | O192: _ | P192: _ | Q192: _ | R192: _ | S192: _ | T192: _ | U192: _ | V192: _ | W192: _ | X192: _ | Y192: _ | Z192: _ | AA192: _ | AB192: _ | AD192: _ | AE192: =IF($K192="_","_",IF(ISNUMBER(AN192),IF(OR(INT(AD192)<>MAX(AE$1:AE191),COUNT(AN$1:AN192)=COUNT(AN:AN)),INT(AD192)))) -> _ | AF192: _ | AG192: =IF($K192="_","_",IF(COUNT(AN$1:AN192)=1,TEXT($I$30+$I$9/24,"┌yy-mm-dd hh:mm:ss┐ "),IF(COUNT(AN$1:AN192)=COUNT(AN:AN),TEXT($I$31+$I$9/24,"└yy-mm-dd hh:mm:ss┘ "),""))&TEXT(AD192,IF(AE192,"mmm d dddd hh:mm","hh:mm"))&REPT(" ",MAX(3*(5-LEN(AF192)),1))&AF192) -> _ | AH192: _ | AI192: _ | AJ192: _ | AK192: _ | AL192: _ | AM192: _ | AN192: _
A193: 1 | B193: 9000 | C193: 2013-10-06T17:47:27 | D193: 0 | E193: 0.02204 | F193: 116 | K193: _ | L193: _ | M193: _ | N193: _ | O193: _ | P193: _ | Q193: _ | R193: _ | S193: _ | T193: _ | U193: _ | V193: _ | W193: _ | X193: _ | Y193: _ | Z193: _ | AA193: _ | AB193: _ | AD193: _ | AE193: =IF($K193="_","_",IF(ISNUMBER(AN193),IF(OR(INT(AD193)<>MAX(AE$1:AE192),COUNT(AN$1:AN193)=COUNT(AN:AN)),INT(AD193)))) -> _ | AF193: _ | AG193: =IF($K193="_","_",IF(COUNT(AN$1:AN193)=1,TEXT($I$30+$I$9/24,"┌yy-mm-dd hh:mm:ss┐ "),IF(COUNT(AN$1:AN193)=COUNT(AN:AN),TEXT($I$31+$I$9/24,"└yy-mm-dd hh:mm:ss┘ "),""))&TEXT(AD193,IF(AE193,"mmm d dddd hh:mm","hh:mm"))&REPT(" ",MAX(3*(5-LEN(AF193)),1))&AF193) -> _ | AH193: _ | AI193: _ | AJ193: _ | AK193: _ | AL193: _ | AM193: _ | AN193: _
A194: 2 | B194: 0 | C194: 2013-10-06T17:47:29 | K194: _ | L194: _ | M194: _ | N194: _ | O194: _ | P194: =IF($K194="_","_",IF(MOD(ROW()-1,2)=1,IF($K194<$I$27,"<"&($L194+$M194),">=0"),P$1)) -> _ | Q194: =IF($K194="_","_",IF(MOD(ROW()-1,2)=1,">="&$I$39,Q$1)) -> _ | R194: _ | S194: _ | T194: =IF($K194="_","_",IF(MOD(ROW()-1,2)=0,IF($K194<$I$27,"<"&($L194+$M194),">=0"),T$1)) -> _ | U194: =IF($K194="_","_",IF(MOD(ROW()-1,2)=0,">="&$I$39,U$1)) -> _ | V194: =IF($K194="_","_",DCOUNT($A:$F,"Time",IF(MOD(ROW()-1,2)=1,$O193:$P194,$S193:$T194))) -> _ | W194: =IF($K194="_","_",DCOUNT($A:$F,"Time",IF(MOD(ROW()-1,2)=1,$N193:$P194,$R193:$T194))) -> _ | X194: =IF($K194="_","_",DCOUNT($A:$F,"Time",IF(MOD(ROW()-1,2)=1,$N193:$Q194,$R193:$U194))) -> _ | Y194: =IF($K194="_","_",DSUM($A:$F,Y$1,IF(MOD(ROW()-1,2)=1,$N193:$P194,$R193:$T194))) -> _ | Z194: =IF($K194="_","_",DSUM($A:$F,Z$1,IF(MOD(ROW()-1,2)=1,$N193:$P194,$R193:$T194))) -> _ | AA194: =IF($K194="_","_",DSUM($A:$F,AA$1,IF(MOD(ROW()-1,2)=1,$N193:$P194,$R193:$T194))) -> _ | AB194: =IF($K194="_","_",DSUM($A:$F,AB$1,IF(MOD(ROW()-1,2)=1,$N193:$P194,$R193:$T194))) -> _ | AD194: =IF($K194="_","_",L194+M194/2+$I$9/24) -> _ | AE194: =IF($K194="_","_",IF(ISNUMBER(AN194),IF(OR(INT(AD194)<>MAX(AE$1:AE193),COUNT(AN$1:AN194)=COUNT(AN:AN)),INT(AD194)))) -> _ | AF194: _ | AG194: =IF($K194="_","_",IF(COUNT(AN$1:AN194)=1,TEXT($I$30+$I$9/24,"┌yy-mm-dd hh:mm:ss┐ "),IF(COUNT(AN$1:AN194)=COUNT(AN:AN),TEXT($I$31+$I$9/24,"└yy-mm-dd hh:mm:ss┘ "),""))&TEXT(AD194,IF(AE194,"mmm d dddd hh:mm","hh:mm"))&REPT(" ",MAX(3*(5-LEN(AF194)),1))&AF194) -> _ | AH194: _ | AI194: _ | AJ194: =IF($K194="_","_",IF(W194=0,NA(),Y194/W194/1000*$I$59)) -> _ | AK194: =IF($K194="_","_",X194/($M194*24*60)*$I$60) -> _ | AL194: =IF($K194="_","_",(V194-X194)/($M194*24*60)*$I$60) -> _ | AM194: _ | AN194: =IF($K194="_","_",IF(MOD(ROW()-2,$I$37)=0,0,NA())) -> _
A195: 2 | B195: 0 | C195: 2013-10-06T17:47:31 | K195: =IF(ISNUMBER(K194),IF(K194<$I$27,K194+1,"_"),"_") -> _ | L195: _ | M195: =IF(K195="_","_",M194/$I$29) -> _ | N195: =IF($K195="_","_",IF(MOD(ROW()-1,2)=1,"=1",N$1)) -> _ | O195: =IF($K195="_","_",IF(MOD(ROW()-1,2)=1,">="&$L195,O$1)) -> _ | P195: _ | Q195: _ | R195: =IF($K195="_","_",IF(MOD(ROW()-1,2)=0,"=1",R$1)) -> _ | S195: =IF($K195="_","_",IF(MOD(ROW()-1,2)=0,">="&$L195,S$1)) -> _ | T195: _ | U195: _ | V195: _ | W195: _ | X195: _ | Y195: _ | Z195: _ | AA195: _ | AB195: _ | AD195: _ | AE195: =IF($K195="_","_",IF(ISNUMBER(AN195),IF(OR(INT(AD195)<>MAX(AE$1:AE194),COUNT(AN$1:AN195)=COUNT(AN:AN)),INT(AD195)))) -> _ | AF195: =IF($K195="_","_","Δ"&IF(M195>1,TEXT(M195,"0\d"),IF(M195>1/24,TEXT(M195*24,"0\h"),IF(M195>1/(24*60),TEXT(M195*24*60,"0\m"),TEXT(M195*24*60*60,"0\s"))))) -> _ | AG195: =IF($K195="_","_",IF(COUNT(AN$1:AN195)=1,TEXT($I$30+$I$9/24,"┌yy-mm-dd hh:mm:ss┐ "),IF(COUNT(AN$1:AN195)=COUNT(AN:AN),TEXT($I$31+$I$9/24,"└yy-mm-dd hh:mm:ss┘ "),""))&TEXT(AD195,IF(AE195,"mmm d dddd hh:mm","hh:mm"))&REPT(" ",MAX(3*(5-LEN(AF195)),1))&AF195) -> _ | AH195: _ | AI195: _ | AJ195: _ | AK195: _ | AL195: _ | AM195: _ | AN195: _
A196: 2 | B196: 0 | C196: 2013-10-06T17:47:31 | K196: _ | L196: _ | M196: _ | N196: _ | O196: _ | P196: _ | Q196: _ | R196: _ | S196: _ | T196: _ | U196: _ | V196: _ | W196: _ | X196: _ | Y196: _ | Z196: _ | AA196: _ | AB196: _ | AD196: _ | AE196: =IF($K196="_","_",IF(ISNUMBER(AN196),IF(OR(INT(AD196)<>MAX(AE$1:AE195),COUNT(AN$1:AN196)=COUNT(AN:AN)),INT(AD196)))) -> _ | AF196: _ | AG196: =IF($K196="_","_",IF(COUNT(AN$1:AN196)=1,TEXT($I$30+$I$9/24,"┌yy-mm-dd hh:mm:ss┐ "),IF(COUNT(AN$1:AN196)=COUNT(AN:AN),TEXT($I$31+$I$9/24,"└yy-mm-dd hh:mm:ss┘ "),""))&TEXT(AD196,IF(AE196,"mmm d dddd hh:mm","hh:mm"))&REPT(" ",MAX(3*(5-LEN(AF196)),1))&AF196) -> _ | AH196: _ | AI196: _ | AJ196: _ | AK196: _ | AL196: _ | AM196: _ | AN196: _
A197: 2 | B197: 0 | C197: 2013-10-06T17:47:32 | K197: _ | L197: _ | M197: _ | N197: _ | O197: _ | P197: _ | Q197: _ | R197: _ | S197: _ | T197: _ | U197: _ | V197: _ | W197: _ | X197: _ | Y197: _ | Z197: _ | AA197: _ | AB197: _ | AD197: _ | AE197: =IF($K197="_","_",IF(ISNUMBER(AN197),IF(OR(INT(AD197)<>MAX(AE$1:AE196),COUNT(AN$1:AN197)=COUNT(AN:AN)),INT(AD197)))) -> _ | AF197: _ | AG197: =IF($K197="_","_",IF(COUNT(AN$1:AN197)=1,TEXT($I$30+$I$9/24,"┌yy-mm-dd hh:mm:ss┐ "),IF(COUNT(AN$1:AN197)=COUNT(AN:AN),TEXT($I$31+$I$9/24,"└yy-mm-dd hh:mm:ss┘ "),""))&TEXT(AD197,IF(AE197,"mmm d dddd hh:mm","hh:mm"))&REPT(" ",MAX(3*(5-LEN(AF197)),1))&AF197) -> _ | AH197: _ | AI197: _ | AJ197: _ | AK197: _ | AL197: _ | AM197: _ | AN197: _
A198: 1 | B198: 22000 | C198: 2013-10-06T17:47:33 | D198: 0 | E198: 0.03763 | F198: 426 | K198: _ | L198: _ | M198: _ | N198: _ | O198: _ | P198: _ | Q198: _ | R198: _ | S198: _ | T198: _ | U198: _ | V198: _ | W198: _ | X198: _ | Y198: _ | Z198: _ | AA198: _ | AB198: _ | AD198: _ | AE198: =IF($K198="_","_",IF(ISNUMBER(AN198),IF(OR(INT(AD198)<>MAX(AE$1:AE197),COUNT(AN$1:AN198)=COUNT(AN:AN)),INT(AD198)))) -> _ | AF198: _ | AG198: =IF($K198="_","_",IF(COUNT(AN$1:AN198)=1,TEXT($I$30+$I$9/24,"┌yy-mm-dd hh:mm:ss┐ "),IF(COUNT(AN$1:AN198)=COUNT(AN:AN),TEXT($I$31+$I$9/24,"└yy-mm-dd hh:mm:ss┘ "),""))&TEXT(AD198,IF(AE198,"mmm d dddd hh:mm","hh:mm"))&REPT(" ",MAX(3*(5-LEN(AF198)),1))&AF198) -> _ | AH198: _ | AI198: _ | AJ198: _ | AK198: _ | AL198: _ | AM198: _ | AN198: _
A199: 1 | B199: 10000 | C199: 2013-10-06T17:47:33 | D199: 0.04775 | E199: 0 | F199: 573 | K199: _ | L199: _ | M199: _ | N199: _ | O199: _ | P199: _ | Q199: _ | R199: _ | S199: _ | T199: _ | U199: _ | V199: _ | W199: _ | X199: _ | Y199: _ | Z199: _ | AA199: _ | AB199: _ | AD199: _ | AE199: =IF($K199="_","_",IF(ISNUMBER(AN199),IF(OR(INT(AD199)<>MAX(AE$1:AE198),COUNT(AN$1:AN199)=COUNT(AN:AN)),INT(AD199)))) -> _ | AF199: _ | AG199: =IF($K199="_","_",IF(COUNT(AN$1:AN199)=1,TEXT($I$30+$I$9/24,"┌yy-mm-dd hh:mm:ss┐ "),IF(COUNT(AN$1:AN199)=COUNT(AN:AN),TEXT($I$31+$I$9/24,"└yy-mm-dd hh:mm:ss┘ "),""))&TEXT(AD199,IF(AE199,"mmm d dddd hh:mm","hh:mm"))&REPT(" ",MAX(3*(5-LEN(AF199)),1))&AF199) -> _ | AH199: _ | AI199: _ | AJ199: _ | AK199: _ | AL199: _ | AM199: _ | AN199: _
A200: 1 | B200: 32000 | C200: 2013-10-06T17:47:33 | D200: 0 | E200: 0.0304 | F200: 160 | K200: _ | L200: _ | M200: _ | N200: _ | O200: _ | P200: _ | Q200: _ | R200: _ | S200: _ | T200: _ | U200: _ | V200: _ | W200: _ | X200: _ | Y200: _ | Z200: _ | AA200: _ | AB200: _ | AD200: _ | AE200: =IF($K200="_","_",IF(ISNUMBER(AN200),IF(OR(INT(AD200)<>MAX(AE$1:AE199),COUNT(AN$1:AN200)=COUNT(AN:AN)),INT(AD200)))) -> _ | AF200: _ | AG200: =IF($K200="_","_",IF(COUNT(AN$1:AN200)=1,TEXT($I$30+$I$9/24,"┌yy-mm-dd hh:mm:ss┐ "),IF(COUNT(AN$1:AN200)=COUNT(AN:AN),TEXT($I$31+$I$9/24,"└yy-mm-dd hh:mm:ss┘ "),""))&TEXT(AD200,IF(AE200,"mmm d dddd hh:mm","hh:mm"))&REPT(" ",MAX(3*(5-LEN(AF200)),1))&AF200) -> _ | AH200: _ | AI200: _ | AJ200: _ | AK200: _ | AL200: _ | AM200: _ | AN200: _
... 9850 more rows
